"Client","Service Area","Expenditure Code","Paid Date","Trans No","Amount","Type of Expenditure","Supplier ID","Supplier Name"
"OCC","General Fund","Z110205","01/08/2017","1038986 - 2","198.35","Revenue","20019050","SMS CONNECTIONS LTD"
"OCC","General Fund","Z970590","18/07/2017","46294528 - 1","6203.92","Revenue","20016580","HMRC"
"OCC","General Fund","Z400404","21/07/2017","46294570 - 1","500","Revenue","36005603","RUN JERICHO"
"OCC","General Fund","Z400404","21/07/2017","46294572 - 1","500","Revenue","36022756","FLORENCE PARK FESTIVAL"
"OCC","General Fund","Z400404","21/07/2017","46294575 - 0","8331.02","Revenue","36721135","ST CLARES COLLEGE"
"OCC","General Fund","Z970590","15/08/2017","46294865 - 1","5572.2","Revenue","20016580","HMRC"
"OCC","General Fund","Z400404","15/08/2017","46294940 - 1","1753.18","Revenue","20000000","GENERAL EXPENSES"
"OCC","General Fund","Z400404","15/08/2017","46294941 - 1","608.02","Revenue","20000000","GENERAL EXPENSES"
"OCC","General Fund","Z400404","11/08/2017","46294995 - 0","587.5","Revenue","36020405","OXFORDSHIRE FEDERATION OF WOMEN'S INSTITUTES"
"OCC","General Fund","Z400404","18/08/2017","46295031 - 1","2500","Revenue","36018649","COWLEY ROAD WORKS"
"OCC","General Fund","Z400404","18/08/2017","46295033 - 1","500","Revenue","36022674","LOVE OXFORD"
"OCC","General Fund","Z400404","08/09/2017","46295184 - 0","700","Revenue","36023809","OXFORD HARMONIC CHOIR"
"OCC","General Fund","Z400404","08/09/2017","46295186 - 0","1000","Revenue","36019053","HEADINGTON ACTION"
"OCC","General Fund","Z970590","12/09/2017","46295195 - 1","4610.76","Revenue","20016580","HMRC"
"OCC","General Fund","Z400404","12/09/2017","46295211 - 1","501.2","Revenue","20000000","GENERAL EXPENSES"
"OCC","General Fund","Z110205","19/09/2017","46295275 - 2","219.8","Revenue","20000000","GENERAL EXPENSES"
"OCC","General Fund","Z400404","22/09/2017","46295302 - 0","1000","Revenue","36801188","PENNY TYACK"
"OCC","General Fund","Z400404","29/09/2017","46295362 - 0","500","Revenue","36801943","M&A SOCIAL ENTERPRISE"
"OCC","General Fund","Z400404","29/09/2017","46295365 - 1","500","Revenue","36009432","STAGECOACH IN OXFORDSHIRE"
"OCC","Assistant Chief Executive","D3802","18/07/2017","1038016 - 1","3228","Revenue","20019631","DLM DISTRIBUTION"
"OCC","Assistant Chief Executive","D3401","04/07/2017","1038045 - 0","3500","Revenue","20019473","WATERSHED ARTS TRUST LTD"
"OCC","Assistant Chief Executive","D3411","11/07/2017","1038174 - 0","56088","Revenue","20013711","DELOITTE LLP"
"OCC","Assistant Chief Executive","D3802","01/08/2017","1038328 - 1","1250","Revenue","20016562","ARTISAN INTELLEGENT PRINT SOLUTIONS"
"OCC","Assistant Chief Executive","D3802","18/07/2017","1038700 - 0","1242","Revenue","20007856","NEWSQUEST MIDLANDS, WALES & SOUTH WEST"
"OCC","Assistant Chief Executive","D3802","18/07/2017","1038701 - 0","574.56","Revenue","20007856","NEWSQUEST MIDLANDS, WALES & SOUTH WEST"
"OCC","Assistant Chief Executive","A0108","25/07/2017","1038783 - 0","12870","Revenue","20016203","PENNA PLC"
"OCC","Assistant Chief Executive","A0108","15/08/2017","1038867 - 0","12540","Revenue","20016203","PENNA PLC"
"OCC","Assistant Chief Executive","D3413","25/07/2017","1038912 - 0","1032.22","Revenue","20015282","INOVEM LTD"
"OCC","Assistant Chief Executive","D3401","22/08/2017","1039140 - 0","1400","Revenue","20015995","OXFORD DIGITAL MEDIA LTD"
"OCC","Assistant Chief Executive","D3401","22/08/2017","1039404 - 0","7472.5","Revenue","20019666","CONNECT PUBLIC AFFAIRS LTD"
"OCC","Assistant Chief Executive","A0108","30/08/2017","1039443 - 0","9900","Revenue","20016203","PENNA PLC"
"OCC","Assistant Chief Executive","D3804","26/09/2017","1040157 - 0","4457.35","Revenue","20018686","THE COPYRIGHT LICENSING AGENCY"
"OCC","Assistant Chief Executive","D3811","11/07/2017","46294412 - 1","2100","Revenue","20008415","HARTLEY MILNER"
"OCC","Assistant Chief Executive","A0108","18/07/2017","46294455 - 41","589.86","Revenue","20018053","REED SPECIALIST RECRUITMENT LTD"
"OCC","Assistant Chief Executive","D3701","18/07/2017","46294561 - 1","5000","Revenue","20002930","OXFORDSHIRE COUNTY COUNCIL"
"OCC","Assistant Chief Executive","D3811","25/07/2017","46294628 - 1","1000","Revenue","20000019","GRANT PAYMENTS"
"OCC","Assistant Chief Executive","A0108","22/08/2017","46295029 - 28","0.37","Revenue","20018053","REED SPECIALIST RECRUITMENT LTD"
"OCC","Transformation","A0108","04/07/2017","1038184 - 0","1000","Revenue","20006509","SOCITM LIMITED"
"OCC","Transformation","A0108","11/07/2017","1038363 - 0","1000","Revenue","20006509","SOCITM LIMITED"
"OCC","Transformation","A0108","11/07/2017","1038364 - 0","1000","Revenue","20006509","SOCITM LIMITED"
"OCC","Transformation","A0108","25/07/2017","1038440 - 0","1000","Revenue","20006509","SOCITM LIMITED"
"OCC","Transformation","A0108","25/07/2017","1038542 - 0","800","Revenue","20006509","SOCITM LIMITED"
"OCC","Transformation","A0108","15/08/2017","1038993 - 0","800","Revenue","20006509","SOCITM LIMITED"
"OCC","Transformation","A0108","15/08/2017","1039101 - 0","1000","Revenue","20006509","SOCITM LIMITED"
"OCC","Transformation","A0108","12/09/2017","1039497 - 0","1000","Revenue","20006509","SOCITM LIMITED"
"OCC","Transformation","A0108","12/09/2017","1039589 - 0","3000","Revenue","20006509","SOCITM LIMITED"
"OCC","Transformation","A0108","19/09/2017","1039839 - 0","1000","Revenue","20006509","SOCITM LIMITED"
"OCC","Transformation","A0108","26/09/2017","1039886 - 0","1000","Revenue","20006509","SOCITM LIMITED"
"OCC","Transformation","A0108","18/07/2017","46294455 - 5","18678.93","Revenue","20018053","REED SPECIALIST RECRUITMENT LTD"
"OCC","Transformation","A0108","22/08/2017","46295029 - 12","24866.76","Revenue","20018053","REED SPECIALIST RECRUITMENT LTD"
"OCC","Transformation","A0108","12/09/2017","46295239 - 1","27523.39","Revenue","20018053","REED SPECIALIST RECRUITMENT LTD"
"OCC","Business Improvement","D3415","18/07/2017","1036202 - 0","746.25","Revenue","20002930","OXFORDSHIRE COUNTY COUNCIL"
"OCC","Business Improvement","D3411","18/07/2017","1037070 - 1","22950","Revenue","20008268","UNIT 4 BUSINESS SOFTWARE LTD."
"OCC","Business Improvement","D3411","18/07/2017","1037203 - 1","2550","Revenue","20008268","UNIT 4 BUSINESS SOFTWARE LTD."
"OCC","Business Improvement","D3411","18/07/2017","1037204 - 1","1100","Revenue","20008268","UNIT 4 BUSINESS SOFTWARE LTD."
"OCC","Business Improvement","D3411","18/07/2017","1037205 - 1","2200","Revenue","20008268","UNIT 4 BUSINESS SOFTWARE LTD."
"OCC","Business Improvement","A0622","11/07/2017","1037635 - 1","3240","Revenue","20019589","FREEDOM OF SPEECH LTD"
"OCC","Business Improvement","D3411","18/07/2017","1037882 - 1","550","Revenue","20008268","UNIT 4 BUSINESS SOFTWARE LTD."
"OCC","Business Improvement","D3520","04/07/2017","1038007 - 0","645","Revenue","20019579","F15 TECHNOLOGY LTD T/A 4NETWORKS.CO.UK"
"OCC","Business Improvement","D3520","04/07/2017","1038008 - 0","2703","Revenue","20019579","F15 TECHNOLOGY LTD T/A 4NETWORKS.CO.UK"
"OCC","Business Improvement","D3520","04/07/2017","1038010 - 0","9233","Revenue","20019579","F15 TECHNOLOGY LTD T/A 4NETWORKS.CO.UK"
"OCC","Business Improvement","D3513","04/07/2017","1038051 - 0","1136.04","Revenue","20012320","NORTHGATE PUBLIC SERVICES (UK) LTD"
"OCC","Business Improvement","D3301","04/07/2017","1038059 - 0","692.5","Revenue","20015097","HOUND ENVELOPES LTD"
"OCC","Business Improvement","A0630","04/07/2017","1038180 - 0","591.6","Revenue","20016197","THE KING'S CENTRE LTD"
"OCC","Business Improvement","D3503","01/08/2017","1038248 - 1","19656.63","Revenue","20006940","BT GLOBAL SERVIES"
"OCC","Business Improvement","D3501","04/07/2017","1038263 - 0","1203.99","Revenue","20019101","CRITIQOM LTD"
"OCC","Business Improvement","Y021","15/08/2017","1038310 - 0","4500","Capital","20019354","INTEGRA ASSOCIATES"
"OCC","Business Improvement","D3303","18/07/2017","1038316 - 0","3325","Revenue","20002930","OXFORDSHIRE COUNTY COUNCIL"
"OCC","Business Improvement","D3513","04/07/2017","1038350 - 0","6460","Revenue","20018384","TRUSTED TERMINAL LTD (TRADING AS TRUST ID)"
"OCC","Business Improvement","D3513","01/08/2017","1038375 - 1","784","Revenue","20006940","BT GLOBAL SERVIES"
"OCC","Business Improvement","A0630","18/07/2017","1038420 - 0","787.95","Revenue","20019193","PEOPLE FIRST CONSULTANCY LTD.,"
"OCC","Business Improvement","D3411","25/07/2017","1038427 - 1","5151.88","Revenue","20017632","DURADIAMOND HEALTHCARE LTD"
"OCC","Business Improvement","D3503","11/07/2017","1038478 - 1","710.41","Revenue","20008028","VODAFONE LIMITED (CORPORATE)"
"OCC","Business Improvement","D3531","11/07/2017","1038481 - 1","449.07","Revenue","20007978","VIRGIN MEDIA PAYMENTS LTD"
"OCC","Business Improvement","D3401","04/07/2017","1038505 - 0","798","Revenue","20008015","M TECH COMUNICATIONS BRISTOL LTD"
"OCC","Business Improvement","D3401","11/07/2017","1038506 - 0","1295","Revenue","20008015","M TECH COMUNICATIONS BRISTOL LTD"
"OCC","Business Improvement","D3531","11/07/2017","1038519 - 1","3012.09","Revenue","20016588","VODAFONE LTD"
"OCC","Business Improvement","D3513","18/07/2017","1038555 - 1","1541.19","Revenue","20006550","ORACLE CORPORATION UK LTD"
"OCC","Business Improvement","D3513","18/07/2017","1038556 - 1","3082.35","Revenue","20006550","ORACLE CORPORATION UK LTD"
"OCC","Business Improvement","D3401","25/07/2017","1038572 - 0","48985.15","Revenue","20013052","SCC (SPECIALIST COMPUTER CENTRES PLC)"
"OCC","Business Improvement","D3401","25/07/2017","1038573 - 0","1900","Revenue","20013052","SCC (SPECIALIST COMPUTER CENTRES PLC)"
"OCC","Business Improvement","D3401","25/07/2017","1038574 - 0","48985.15","Revenue","20013052","SCC (SPECIALIST COMPUTER CENTRES PLC)"
"OCC","Business Improvement","D3401","25/07/2017","1038575 - 0","1900","Revenue","20013052","SCC (SPECIALIST COMPUTER CENTRES PLC)"
"OCC","Business Improvement","D3513","11/07/2017","1038586 - 0","480","Revenue","20018572","AGILE COLLECTIVE LTD"
"OCC","Business Improvement","A0631","25/07/2017","1038588 - 0","2100","Revenue","20019479","DAISY BOGG CONSULTANCY LTD"
"OCC","Business Improvement","A0630","25/07/2017","1038603 - 0","1651.43","Revenue","20007924","SOUTH CENTRAL AMBULANCE SERVICE"
"OCC","Business Improvement","D3501","18/07/2017","1038615 - 0","615.46","Revenue","20019101","CRITIQOM LTD"
"OCC","Business Improvement","D3501","11/07/2017","1038618 - 0","640.44","Revenue","20019101","CRITIQOM LTD"
"OCC","Business Improvement","A0632","25/07/2017","1038661 - 0","4865","Revenue","20018733","REALWORLD CONSULTING LTD"
"OCC","Business Improvement","D3503","01/08/2017","1038669 - 1","22756.76","Revenue","20006940","BT GLOBAL SERVIES"
"OCC","Business Improvement","D3401","18/07/2017","1038683 - 0","20142","Revenue","20018486","GRANT THORNTON UK LLP"
"OCC","Business Improvement","D3411","18/07/2017","1038692 - 0","1900","Revenue","20013463","IDOX SOFTWARE LTD"
"OCC","Business Improvement","D3411","18/07/2017","1038693 - 0","2400","Revenue","20013463","IDOX SOFTWARE LTD"
"OCC","Business Improvement","D3429","18/07/2017","1038743 - 0","492.5","Revenue","20010933","KENT COUNTY COUNCIL"
"OCC","Business Improvement","D3411","15/08/2017","1038756 - 0","12575","Revenue","20008268","UNIT 4 BUSINESS SOFTWARE LTD."
"OCC","Business Improvement","D3301","25/07/2017","1038779 - 0","1994.41","Revenue","20007849","LYRECO UK LTD"
"OCC","Business Improvement","D3520","01/08/2017","1038819 - 0","9046.8","Revenue","20012388","BT BUSINESS DIRECT"
"OCC","Business Improvement","D3531","25/07/2017","1038848 - 1","4059.94","Revenue","20016588","VODAFONE LTD"
"OCC","Business Improvement","D3503","08/08/2017","1038857 - 1","18531.02","Revenue","20006940","BT GLOBAL SERVIES"
"OCC","Business Improvement","D3513","08/08/2017","1038881 - 0","24707","Revenue","20019668","PLANET IT LTD"
"OCC","Business Improvement","D3513","08/08/2017","1038894 - 0","975.5","Revenue","20007875","MIDLAND HR"
"OCC","Business Improvement","D3501","25/07/2017","1038948 - 0","655.43","Revenue","20019101","CRITIQOM LTD"
"OCC","Business Improvement","D3303","25/07/2017","1038957 - 0","434.24","Revenue","20019101","CRITIQOM LTD"
"OCC","Business Improvement","D3508","01/08/2017","1038971 - 0","1254","Revenue","20010153","CIVICA UK LTD"
"OCC","Business Improvement","D3501","01/08/2017","1038978 - 0","775.64","Revenue","20019101","CRITIQOM LTD"
"OCC","Business Improvement","D3303","01/08/2017","1038979 - 0","716.67","Revenue","20019101","CRITIQOM LTD"
"OCC","Business Improvement","A0637","15/08/2017","1039006 - 0","1134","Revenue","20019410","CITY & GUILDS ILM"
"OCC","Business Improvement","D3429","08/08/2017","1039034 - 0","612","Revenue","20010933","KENT COUNTY COUNCIL"
"OCC","Business Improvement","Y021","15/08/2017","1039052 - 0","9000","Capital","20019354","INTEGRA ASSOCIATES"
"OCC","Business Improvement","D3411","15/08/2017","1039055 - 0","1800","Revenue","20019354","INTEGRA ASSOCIATES"
"OCC","Business Improvement","Y021","15/08/2017","1039056 - 0","900","Capital","20019354","INTEGRA ASSOCIATES"
"OCC","Business Improvement","D3401","22/08/2017","1039069 - 0","3700.5","Revenue","20019405","ROCKSURE SYSTEMS LTD"
"OCC","Business Improvement","D3301","22/08/2017","1039082 - 0","1235","Revenue","20015097","HOUND ENVELOPES LTD"
"OCC","Business Improvement","D3401","15/08/2017","1039089 - 0","20045.47","Revenue","20013052","SCC (SPECIALIST COMPUTER CENTRES PLC)"
"OCC","Business Improvement","D3513","01/08/2017","1039095 - 0","2200","Revenue","20019354","INTEGRA ASSOCIATES"
"OCC","Business Improvement","A0637","15/08/2017","1039097 - 0","1890","Revenue","20019410","CITY & GUILDS ILM"
"OCC","Business Improvement","D3303","15/08/2017","1039099 - 0","6678","Revenue","20002930","OXFORDSHIRE COUNTY COUNCIL"
"OCC","Business Improvement","D3520","08/08/2017","1039142 - 0","3094","Revenue","20012388","BT BUSINESS DIRECT"
"OCC","Business Improvement","D3501","08/08/2017","1039142 - 1","5","Revenue","20012388","BT BUSINESS DIRECT"
"OCC","Business Improvement","D3401","15/08/2017","1039193 - 0","1495","Revenue","20008015","M TECH COMUNICATIONS BRISTOL LTD"
"OCC","Business Improvement","D3301","08/08/2017","1039242 - 0","629.5","Revenue","20015540","TWOFOLD LTD"
"OCC","Business Improvement","D3513","15/08/2017","1039259 - 0","480","Revenue","20018572","AGILE COLLECTIVE LTD"
"OCC","Business Improvement","D3501","30/08/2017","1039338 - 0","926.95","Revenue","20019101","CRITIQOM LTD"
"OCC","Business Improvement","D3301","30/08/2017","1039341 - 0","2119.67","Revenue","20007849","LYRECO UK LTD"
"OCC","Business Improvement","D3501","15/08/2017","1039342 - 0","2341.33","Revenue","20019101","CRITIQOM LTD"
"OCC","Business Improvement","D3303","15/08/2017","1039344 - 0","640.61","Revenue","20019101","CRITIQOM LTD"
"OCC","Business Improvement","D3503","15/08/2017","1039363 - 1","616.96","Revenue","20006940","BT GLOBAL SERVIES"
"OCC","Business Improvement","D3503","15/08/2017","1039364 - 1","22756.76","Revenue","20006940","BT GLOBAL SERVIES"
"OCC","Business Improvement","D3503","15/08/2017","1039365 - 1","784","Revenue","20006940","BT GLOBAL SERVIES"
"OCC","Business Improvement","D3513","15/08/2017","1039375 - 0","1250","Revenue","20012320","NORTHGATE PUBLIC SERVICES (UK) LTD"
"OCC","Business Improvement","D3513","22/08/2017","1039376 - 1","9620.87","Revenue","20012320","NORTHGATE PUBLIC SERVICES (UK) LTD"
"OCC","Business Improvement","D3503","15/08/2017","1039389 - 1","701.15","Revenue","20008028","VODAFONE LIMITED (CORPORATE)"
"OCC","Business Improvement","C2505","15/08/2017","1039391 - 1","1394.9","Revenue","20006596","OXFORD BUS COMPANY LTD"
"OCC","Business Improvement","C2505","15/08/2017","1039392 - 1","1766.1","Revenue","20006596","OXFORD BUS COMPANY LTD"
"OCC","Business Improvement","D3531","15/08/2017","1039394 - 1","4059.94","Revenue","20016588","VODAFONE LTD"
"OCC","Business Improvement","D3513","15/08/2017","1039415 - 0","9850","Revenue","20018907","CLOUD 9 TECHNOLOGIES"
"OCC","Business Improvement","D3501","30/08/2017","1039430 - 0","736.82","Revenue","20019101","CRITIQOM LTD"
"OCC","Business Improvement","D3513","30/08/2017","1039438 - 1","784","Revenue","20006940","BT GLOBAL SERVIES"
"OCC","Business Improvement","D3503","22/08/2017","1039441 - 1","1430.69","Revenue","20016411","""JOHNNIE"" JOHNSON HOUSING TRUST"
"OCC","Business Improvement","D3411","30/08/2017","1039452 - 0","5151.88","Revenue","20017632","DURADIAMOND HEALTHCARE LTD"
"OCC","Business Improvement","D3511","05/09/2017","1039454 - 0","4200","Revenue","20012320","NORTHGATE PUBLIC SERVICES (UK) LTD"
"OCC","Business Improvement","D3411","30/08/2017","1039465 - 0","10950","Revenue","20008268","UNIT 4 BUSINESS SOFTWARE LTD."
"OCC","Business Improvement","D3520","05/09/2017","1039478 - 0","579.95","Revenue","20002302","MISCO"
"OCC","Business Improvement","D3501","05/09/2017","1039478 - 1","15","Revenue","20002302","MISCO"
"OCC","Business Improvement","D3411","30/08/2017","1039521 - 0","839.49","Revenue","20017397","IKEN BUSINESS LTD"
"OCC","Business Improvement","D3513","05/09/2017","1039528 - 0","842.55","Revenue","20012320","NORTHGATE PUBLIC SERVICES (UK) LTD"
"OCC","Business Improvement","D3513","22/08/2017","1039549 - 0","5230","Revenue","20016036","WEBASPX"
"OCC","Business Improvement","D3503","12/09/2017","1039565 - 1","19655.59","Revenue","20006940","BT GLOBAL SERVIES"
"OCC","Business Improvement","D3411","19/09/2017","1039596 - 0","6650","Revenue","20012320","NORTHGATE PUBLIC SERVICES (UK) LTD"
"OCC","Business Improvement","D3513","12/09/2017","1039597 - 0","850.66","Revenue","20012320","NORTHGATE PUBLIC SERVICES (UK) LTD"
"OCC","Business Improvement","A0638","30/08/2017","1039604 - 0","3626","Revenue","20013807","QA LTD"
"OCC","Business Improvement","D3501","05/09/2017","1039613 - 0","1235.95","Revenue","20019101","CRITIQOM LTD"
"OCC","Business Improvement","D3521","30/08/2017","1039679 - 0","919.85","Revenue","20008022","NEOPOST FINANCE LIMITED"
"OCC","Business Improvement","D3521","30/08/2017","1039682 - 0","3228.29","Revenue","20018722","SHARP BUSINESS SYSTEMS UK PLC"
"OCC","Business Improvement","D3521","30/08/2017","1039683 - 0","944.34","Revenue","20018722","SHARP BUSINESS SYSTEMS UK PLC"
"OCC","Business Improvement","D3513","05/09/2017","1039685 - 0","1200","Revenue","20008268","UNIT 4 BUSINESS SOFTWARE LTD."
"OCC","Business Improvement","D3513","05/09/2017","1039696 - 0","2200","Revenue","20019354","INTEGRA ASSOCIATES"
"OCC","Business Improvement","D3401","19/09/2017","1039729 - 0","1900","Revenue","20013052","SCC (SPECIALIST COMPUTER CENTRES PLC)"
"OCC","Business Improvement","D3401","19/09/2017","1039730 - 0","48936.98","Revenue","20013052","SCC (SPECIALIST COMPUTER CENTRES PLC)"
"OCC","Business Improvement","D3501","12/09/2017","1039754 - 0","788.3","Revenue","20019101","CRITIQOM LTD"
"OCC","Business Improvement","D3513","26/09/2017","1039764 - 0","10000","Revenue","20013463","IDOX SOFTWARE LTD"
"OCC","Business Improvement","D3503","12/09/2017","1039779 - 1","707.59","Revenue","20008028","VODAFONE LIMITED (CORPORATE)"
"OCC","Business Improvement","D3513","12/09/2017","1039814 - 0","480","Revenue","20018572","AGILE COLLECTIVE LTD"
"OCC","Business Improvement","A0637","26/09/2017","1039815 - 0","1146","Revenue","20019410","CITY & GUILDS ILM"
"OCC","Business Improvement","D3513","19/09/2017","1039821 - 0","9205.62","Revenue","20007875","MIDLAND HR"
"OCC","Business Improvement","D3513","19/09/2017","1039822 - 0","528.14","Revenue","20007875","MIDLAND HR"
"OCC","Business Improvement","D3513","19/09/2017","1039823 - 1","5809.48","Revenue","20007875","MIDLAND HR"
"OCC","Business Improvement","D3513","19/09/2017","1039824 - 1","950.64","Revenue","20007875","MIDLAND HR"
"OCC","Business Improvement","D3411","31/08/2017","1039841 - 0","1250","Revenue","20017632","DURADIAMOND HEALTHCARE LTD"
"OCC","Business Improvement","D3411","26/09/2017","1039842 - 0","5151.88","Revenue","20017632","DURADIAMOND HEALTHCARE LTD"
"OCC","Business Improvement","D3511","26/09/2017","1039851 - 0","5000","Revenue","20012320","NORTHGATE PUBLIC SERVICES (UK) LTD"
"OCC","Business Improvement","D3411","26/09/2017","1039851 - 1","42200","Revenue","20012320","NORTHGATE PUBLIC SERVICES (UK) LTD"
"OCC","Business Improvement","D3513","12/09/2017","1039912 - 0","4883.76","Revenue","20017397","IKEN BUSINESS LTD"
"OCC","Business Improvement","D3411","12/09/2017","1039918 - 0","475","Revenue","20014438","NORTHGATE ARINSO UK LTD"
"OCC","Business Improvement","D3301","26/09/2017","1039922 - 0","1391.37","Revenue","20007849","LYRECO UK LTD"
"OCC","Business Improvement","D3306","26/09/2017","1040045 - 1","17749.91","Revenue","20018722","SHARP BUSINESS SYSTEMS UK PLC"
"OCC","Business Improvement","D3513","26/09/2017","1040082 - 0","18171.93","Revenue","20018546","JAAMA LTD"
"OCC","Business Improvement","D3501","26/09/2017","1040152 - 0","684.6","Revenue","20003547","PITNEY BOWES LTD"
"OCC","Business Improvement","D3428","26/09/2017","1040155 - 0","1250","Revenue","20017632","DURADIAMOND HEALTHCARE LTD"
"OCC","Business Improvement","D3803","26/09/2017","1040174 - 0","867","Revenue","20008142","TRAX"
"OCC","Business Improvement","D3411","08/08/2017","46294122 - 1","8139.9","Revenue","20018748","OPTUM HEALTH SOLUTIONS (UK) LTD"
"OCC","Business Improvement","A0108","18/07/2017","46294455 - 2","19984.35","Revenue","20018053","REED SPECIALIST RECRUITMENT LTD"
"OCC","Business Improvement","A0108","18/07/2017","46294455 - 3","13936.94","Revenue","20018053","REED SPECIALIST RECRUITMENT LTD"
"OCC","Business Improvement","A0108","18/07/2017","46294455 - 6","358.34","Revenue","20018053","REED SPECIALIST RECRUITMENT LTD"
"OCC","Business Improvement","A0108","18/07/2017","46294455 - 24","1227.42","Revenue","20018053","REED SPECIALIST RECRUITMENT LTD"
"OCC","Business Improvement","A0108","18/07/2017","46294455 - 30","4680.8","Revenue","20018053","REED SPECIALIST RECRUITMENT LTD"
"OCC","Business Improvement","D3411","25/07/2017","46294506 - 4","42","Revenue","20011499","TOPS"
"OCC","Business Improvement","A0630","25/07/2017","46294653 - 1","6395","Revenue","20015868","RISKEX LIMITED"
"OCC","Business Improvement","D3411","30/08/2017","46294879 - 3","42","Revenue","20011499","TOPS"
"OCC","Business Improvement","A0108","22/08/2017","46295029 - 10","2805.76","Revenue","20018053","REED SPECIALIST RECRUITMENT LTD"
"OCC","Business Improvement","A0108","22/08/2017","46295029 - 11","15999.12","Revenue","20018053","REED SPECIALIST RECRUITMENT LTD"
"OCC","Business Improvement","A0108","22/08/2017","46295029 - 16","3087.88","Revenue","20018053","REED SPECIALIST RECRUITMENT LTD"
"OCC","Business Improvement","A0108","22/08/2017","46295029 - 17","3311.55","Revenue","20018053","REED SPECIALIST RECRUITMENT LTD"
"OCC","Business Improvement","A0108","22/08/2017","46295029 - 18","5311.26","Revenue","20018053","REED SPECIALIST RECRUITMENT LTD"
"OCC","Business Improvement","Y021","22/08/2017","46295029 - 23","49.81","Capital","20018053","REED SPECIALIST RECRUITMENT LTD"
"OCC","Business Improvement","Y021","22/08/2017","46295029 - 48","9246.16","Capital","20018053","REED SPECIALIST RECRUITMENT LTD"
"OCC","Business Improvement","A0108","12/09/2017","46295239 - 2","9918.28","Revenue","20018053","REED SPECIALIST RECRUITMENT LTD"
"OCC","Business Improvement","A0108","12/09/2017","46295239 - 4","4193.28","Revenue","20018053","REED SPECIALIST RECRUITMENT LTD"
"OCC","Business Improvement","A0108","12/09/2017","46295239 - 5","2156.69","Revenue","20018053","REED SPECIALIST RECRUITMENT LTD"
"OCC","Business Improvement","A0108","12/09/2017","46295239 - 12","3220.94","Revenue","20018053","REED SPECIALIST RECRUITMENT LTD"
"OCC","Business Improvement","A0108","12/09/2017","46295239 - 14","5032.95","Revenue","20018053","REED SPECIALIST RECRUITMENT LTD"
"OCC","Business Improvement","Y021","12/09/2017","46295239 - 40","7299.6","Capital","20018053","REED SPECIALIST RECRUITMENT LTD"
"OCC","Business Improvement","B1501","25/07/2017","47020869 - 1","513.47","Revenue","20002402","SOUTHERN ELECTRIC PLC"
"OCC","Welfare Reform Team","D3701","04/07/2017","1038368 - 0","8050","Revenue","20010391","SOHA HOUSING LIMITED"
"OCC","Welfare Reform Team","D3701","25/07/2017","1039007 - 0","3731.25","Revenue","20008142","TRAX"
"OCC","Welfare Reform Team","D3701","01/08/2017","1039051 - 0","6076.5","Revenue","20009131","FILM OXFORD"
"OCC","Welfare Reform Team","D3701","15/08/2017","1039091 - 0","1713.75","Revenue","20018674","WORKERS EDUCATIONAL ASSOCIATION"
"OCC","Welfare Reform Team","D3701","01/08/2017","1039105 - 0","1100","Revenue","20011006","ASPIRE OXFORDSHIRE COMMUNITY ENTERPRISE LTD"
"OCC","Welfare Reform Team","D3701","01/08/2017","1039117 - 0","3270","Revenue","20009273","ASYLUM WELCOME"
"OCC","Welfare Reform Team","D3802","12/09/2017","1039283 - 0","851.26","Revenue","20008780","LEYS NEWS LTD"
"OCC","Welfare Reform Team","D3411","19/09/2017","1039957 - 0","8300","Revenue","20019701","ADVICE UK"
"OCC","Welfare Reform Team","D3701","19/09/2017","1040015 - 1","3363.88","Revenue","20019535","STARTUPONLINE"
"OCC","Welfare Reform Team","D3701","19/09/2017","1040052 - 0","4385.75","Revenue","20009449","OXFORDSHIRE PLAY ASSOCIATION"
"OCC","Welfare Reform Team","D3701","19/09/2017","1040070 - 0","2123.81","Revenue","20019515","SOUTH OXFORDSHIRE FOOD & EDUCATION ALLIANCE"
"OCC","Welfare Reform Team","D3701","26/09/2017","1040099 - 0","3962","Revenue","20019529","SYNOLOS CIC"
"OCC","Welfare Reform Team","D3701","26/09/2017","1040129 - 0","7910.64","Revenue","20017749","YELLOW SUBMARINE"
"OCC","Welfare Reform Team","D3701","26/09/2017","1040175 - 0","12348.74","Revenue","20011006","ASPIRE OXFORDSHIRE COMMUNITY ENTERPRISE LTD"
"OCC","Welfare Reform Team","D3701","26/09/2017","1040178 - 0","11685","Revenue","20009795","EMBS Community College Ltd.,"
"OCC","Regeneration & Economy","B1701","11/07/2017","1037653 - 1","1000","Revenue","20019562","MATTHEWS & GOODMAN LLP"
"OCC","Regeneration & Economy","D3411","07/07/2017","1038200 - 0","1400","Revenue","20019171","GREEN & PARTNERS"
"OCC","Regeneration & Economy","D3411","04/07/2017","1038471 - 0","2250","Revenue","20008541","KEMP & KEMP LLP"
"OCC","Regeneration & Economy","D3701","11/07/2017","1038476 - 0","23750","Revenue","20018382","EXPERIENCE OXFORDSHIRE"
"OCC","Regeneration & Economy","D3701","11/07/2017","1038477 - 0","21500","Revenue","20018382","EXPERIENCE OXFORDSHIRE"
"OCC","Regeneration & Economy","D3401","11/07/2017","1038491 - 0","1000","Revenue","20018382","EXPERIENCE OXFORDSHIRE"
"OCC","Regeneration & Economy","D3804","25/07/2017","1038504 - 0","1750","Revenue","20018975","ALCIUM SOFTWARE LTD"
"OCC","Regeneration & Economy","D3602","01/08/2017","1038546 - 0","833.33","Revenue","20009746","OXFORD SPIRES HOTEL"
"OCC","Regeneration & Economy","D3401","01/08/2017","1038547 - 0","621.63","Revenue","20009746","OXFORD SPIRES HOTEL"
"OCC","Regeneration & Economy","D3411","01/08/2017","1038551 - 0","2500","Revenue","20015341","DAVIS COFFER LYONS"
"OCC","Regeneration & Economy","Y021","11/07/2017","1038590 - 0","2800","Capital","20002369","RIDGE & PARTNERS LLP"
"OCC","Regeneration & Economy","D3411","11/07/2017","1038595 - 0","3594","Revenue","20017253","BOND DICKINSON LLP"
"OCC","Regeneration & Economy","D3411","11/07/2017","1038610 - 0","2250","Revenue","20008541","KEMP & KEMP LLP"
"OCC","Regeneration & Economy","D3417","18/07/2017","1038722 - 0","499.5","Revenue","20018460","VEALE WASBROUGH VIZARD"
"OCC","Regeneration & Economy","D3417","18/07/2017","1038723 - 1","520.5","Revenue","20018460","VEALE WASBROUGH VIZARD"
"OCC","Regeneration & Economy","D3411","18/07/2017","1038737 - 0","2500","Revenue","20016567","CARTER JONAS"
"OCC","Regeneration & Economy","B1101","18/07/2017","1038754 - 0","1850","Revenue","20016109","DYNO-ROD THAMES VALLEY REGION LTD"
"OCC","Regeneration & Economy","B1101","18/07/2017","1038755 - 0","950","Revenue","20016109","DYNO-ROD THAMES VALLEY REGION LTD"
"OCC","Regeneration & Economy","D3411","18/07/2017","1038760 - 1","1416.67","Revenue","20003549","BOSSOMS BOATYARD LTD"
"OCC","Regeneration & Economy","D3411","25/07/2017","1039005 - 0","1289.52","Revenue","20019433","MACQUARIE EQUIPMENT FINANCE (UK) LTD"
"OCC","Regeneration & Economy","Y021","08/08/2017","1039078 - 0","9400","Capital","20002369","RIDGE & PARTNERS LLP"
"OCC","Regeneration & Economy","D3401","15/08/2017","1039186 - 1","550","Revenue","20014394","CREDITSAFE UK LTD"
"OCC","Regeneration & Economy","A0702","22/08/2017","1039222 - 0","1682","Revenue","20010691","REED BUSINESS INFORMATION LTD"
"OCC","Regeneration & Economy","D3411","08/08/2017","1039251 - 0","1416.67","Revenue","20003549","BOSSOMS BOATYARD LTD"
"OCC","Regeneration & Economy","Y021","05/09/2017","1039456 - 0","900","Capital","20019003","PICK EVERARD"
"OCC","Regeneration & Economy","D3411","05/09/2017","1039464 - 1","1670","Revenue","20017933","KEVAN WITT ASSOCIATES(2012) LTD T/A GLOBAL SURVEYS"
"OCC","Regeneration & Economy","Y021","05/09/2017","1039474 - 0","2620","Capital","20019003","PICK EVERARD"
"OCC","Regeneration & Economy","D3401","22/08/2017","1039502 - 0","677.7","Revenue","20017906","AECOM LTD"
"OCC","Regeneration & Economy","Y021","12/09/2017","1039506 - 0","4000","Capital","20002369","RIDGE & PARTNERS LLP"
"OCC","Regeneration & Economy","Y000","22/08/2017","1039517 - 0","27724","Capital","20016787","WILLMOTT DIXON CONSTRUCTION LTD"
"OCC","Regeneration & Economy","D3411","12/09/2017","1039552 - 0","2030","Revenue","20010039","MARRIOTTS"
"OCC","Regeneration & Economy","D3411","05/09/2017","1039713 - 0","2550","Revenue","20015341","DAVIS COFFER LYONS"
"OCC","Regeneration & Economy","D3401","12/09/2017","1039745 - 0","450","Revenue","20018553","CITY INSIGHTS (LONDON) LTD"
"OCC","Regeneration & Economy","D3411","26/09/2017","1039891 - 0","4250","Revenue","20008467","JONES LANG LASALLE LTD"
"OCC","Regeneration & Economy","D3401","19/09/2017","1039923 - 0","25000","Revenue","20017906","AECOM LTD"
"OCC","Regeneration & Economy","D3411","19/09/2017","1039924 - 0","4513.66","Revenue","20015438","WYG ENVIRONMENT PLANNING TRANSPORT LTD"
"OCC","Regeneration & Economy","D3411","19/09/2017","1039943 - 0","2250","Revenue","20016567","CARTER JONAS"
"OCC","Regeneration & Economy","D3411","19/09/2017","1039945 - 0","3000","Revenue","20010039","MARRIOTTS"
"OCC","Regeneration & Economy","D3411","26/09/2017","1039946 - 0","2000","Revenue","20015341","DAVIS COFFER LYONS"
"OCC","Regeneration & Economy","D3411","19/09/2017","1039951 - 0","3195","Revenue","20018670","Cushman & Wakefield"
"OCC","Regeneration & Economy","D3411","19/09/2017","1039982 - 0","1300","Revenue","20019638","JAMES MACKINTOSH ARCHITECTS LTD.,"
"OCC","Regeneration & Economy","A0108","18/07/2017","46294455 - 19","12638.73","Revenue","20018053","REED SPECIALIST RECRUITMENT LTD"
"OCC","Regeneration & Economy","K9550","25/07/2017","46294616 - 1","6875","Revenue","20012815","ST MICHAELS PCC"
"OCC","Regeneration & Economy","A0108","22/08/2017","46295029 - 24","9159.12","Revenue","20018053","REED SPECIALIST RECRUITMENT LTD"
"OCC","Regeneration & Economy","A0108","12/09/2017","46295239 - 37","4755.08","Revenue","20018053","REED SPECIALIST RECRUITMENT LTD"
"OCC","Regeneration & Economy","B1501","04/07/2017","47020294 - 0","1370.82","Revenue","20011411","NPOWER"
"OCC","Regeneration & Economy","B1501","04/07/2017","47020295 - 1","715.86","Revenue","20011411","NPOWER"
"OCC","Regeneration & Economy","B1501","04/07/2017","47020298 - 0","1097.71","Revenue","20011411","NPOWER"
"OCC","Regeneration & Economy","B1501","04/07/2017","47020300 - 0","1243.67","Revenue","20011411","NPOWER"
"OCC","Regeneration & Economy","B1501","04/07/2017","47020301 - 1","967.83","Revenue","20011411","NPOWER"
"OCC","Regeneration & Economy","B1501","04/07/2017","47020304 - 0","1471.7","Revenue","20011411","NPOWER"
"OCC","Regeneration & Economy","B1501","04/07/2017","47020307 - 1","2119.96","Revenue","20011411","NPOWER"
"OCC","Regeneration & Economy","B1501","04/07/2017","47020308 - 0","954.54","Revenue","20011411","NPOWER"
"OCC","Regeneration & Economy","B1501","04/07/2017","47020311 - 0","577.02","Revenue","20011411","NPOWER"
"OCC","Regeneration & Economy","B1501","04/07/2017","47020316 - 0","825.59","Revenue","20011411","NPOWER"
"OCC","Regeneration & Economy","B1501","04/07/2017","47020317 - 1","775.69","Revenue","20011411","NPOWER"
"OCC","Regeneration & Economy","B1501","04/07/2017","47020319 - 1","1011.57","Revenue","20011411","NPOWER"
"OCC","Regeneration & Economy","B1501","04/07/2017","47020322 - 0","1848.77","Revenue","20011411","NPOWER"
"OCC","Regeneration & Economy","B1501","04/07/2017","47020323 - 0","1362.37","Revenue","20011411","NPOWER"
"OCC","Regeneration & Economy","B1501","04/07/2017","47020324 - 1","1983.24","Revenue","20011411","NPOWER"
"OCC","Regeneration & Economy","B1501","04/07/2017","47020325 - 0","1077.85","Revenue","20011411","NPOWER"
"OCC","Regeneration & Economy","B1501","04/07/2017","47020328 - 1","1157.38","Revenue","20011411","NPOWER"
"OCC","Regeneration & Economy","B1501","18/07/2017","47020555 - 0","1594.16","Revenue","20011411","NPOWER"
"OCC","Regeneration & Economy","B1501","18/07/2017","47020562 - 0","640.93","Revenue","20011411","NPOWER"
"OCC","Regeneration & Economy","B1501","25/07/2017","47020880 - 1","1198.62","Revenue","20002402","SOUTHERN ELECTRIC PLC"
"OCC","Regeneration & Economy","B1501","22/08/2017","47021305 - 1","1600.56","Revenue","20011411","NPOWER"
"OCC","Regeneration & Economy","B1501","22/08/2017","47021312 - 0","649.74","Revenue","20011411","NPOWER"
"OCC","Regeneration & Economy","B1830","05/09/2017","47021508 - 1","967.4","Revenue","20019401","CASTLE WATER"
"OCC","Regeneration & Economy","B1830","12/09/2017","47021511 - 0","931.49","Revenue","20019401","CASTLE WATER"
"OCC","Regeneration & Economy","B1830","26/09/2017","47021617 - 0","747.36","Revenue","20019401","CASTLE WATER"
"OCC","Regeneration & Economy","B1501","26/09/2017","47021655 - 0","1584.88","Revenue","20011411","NPOWER"
"OCC","Regeneration & Economy","B1501","26/09/2017","47021662 - 1","586.79","Revenue","20011411","NPOWER"
"OCC","Planning, Sustainable Dev & Regulatory","Y005","04/07/2017","1037267 - 0","1283.96","Capital","20012692","FREECHOICE GROUP"
"OCC","Planning, Sustainable Dev & Regulatory","A0108","01/08/2017","1037436 - 1","3660.39","Revenue","20018827","THE OYSTER PARTNERSHIP LTD"
"OCC","Planning, Sustainable Dev & Regulatory","Y005","04/07/2017","1037829 - 0","4575","Capital","20012692","FREECHOICE GROUP"
"OCC","Planning, Sustainable Dev & Regulatory","Y005","04/07/2017","1037840 - 0","11000","Capital","20017827","OWEN CASHELL GENERAL BUILDER"
"OCC","Planning, Sustainable Dev & Regulatory","D3802","04/07/2017","1038277 - 0","537.6","Revenue","20007856","NEWSQUEST MIDLANDS, WALES & SOUTH WEST"
"OCC","Planning, Sustainable Dev & Regulatory","Y005","04/07/2017","1038308 - 0","5650","Capital","20012692","FREECHOICE GROUP"
"OCC","Planning, Sustainable Dev & Regulatory","D3411","11/07/2017","1038314 - 0","6000","Revenue","20018276","DESIGN COUNCIL"
"OCC","Planning, Sustainable Dev & Regulatory","D3411","11/07/2017","1038326 - 0","6400","Revenue","20018276","DESIGN COUNCIL"
"OCC","Planning, Sustainable Dev & Regulatory","D3411","18/07/2017","1038331 - 0","22502.1","Revenue","20013591","PETER BRETT ASSOCIATES LLP"
"OCC","Planning, Sustainable Dev & Regulatory","D3411","11/07/2017","1038334 - 0","16818.98","Revenue","20013591","PETER BRETT ASSOCIATES LLP"
"OCC","Planning, Sustainable Dev & Regulatory","D3411","18/07/2017","1038335 - 0","36365.48","Revenue","20013591","PETER BRETT ASSOCIATES LLP"
"OCC","Planning, Sustainable Dev & Regulatory","D3411","18/07/2017","1038336 - 0","17276.66","Revenue","20013591","PETER BRETT ASSOCIATES LLP"
"OCC","Planning, Sustainable Dev & Regulatory","D3411","18/07/2017","1038337 - 0","21249.69","Revenue","20013591","PETER BRETT ASSOCIATES LLP"
"OCC","Planning, Sustainable Dev & Regulatory","Y021","11/07/2017","1038351 - 0","14750","Capital","20013684","ATKINS LIMITED"
"OCC","Planning, Sustainable Dev & Regulatory","D3411","18/07/2017","1038360 - 0","23639.34","Revenue","20013591","PETER BRETT ASSOCIATES LLP"
"OCC","Planning, Sustainable Dev & Regulatory","D3411","18/07/2017","1038361 - 0","24765.87","Revenue","20013591","PETER BRETT ASSOCIATES LLP"
"OCC","Planning, Sustainable Dev & Regulatory","D3411","18/07/2017","1038362 - 0","8037.03","Revenue","20013591","PETER BRETT ASSOCIATES LLP"
"OCC","Planning, Sustainable Dev & Regulatory","D3411","18/07/2017","1038369 - 0","20709.8","Revenue","20013591","PETER BRETT ASSOCIATES LLP"
"OCC","Planning, Sustainable Dev & Regulatory","Y005","04/07/2017","1038416 - 0","4820","Capital","20019646","DREAMING SPIRES CONSTRUCTION LTD.,"
"OCC","Planning, Sustainable Dev & Regulatory","Y005","04/07/2017","1038417 - 0","4820","Capital","20019646","DREAMING SPIRES CONSTRUCTION LTD.,"
"OCC","Planning, Sustainable Dev & Regulatory","Y005","04/07/2017","1038430 - 0","1790","Capital","20012692","FREECHOICE GROUP"
"OCC","Planning, Sustainable Dev & Regulatory","Y005","11/07/2017","1038446 - 0","3727","Capital","20015923","ABLE LIVING SOLUTIONS"
"OCC","Planning, Sustainable Dev & Regulatory","Y005","04/07/2017","1038453 - 0","598.5","Capital","20000222","ELLIOTT & JORDAN LTD"
"OCC","Planning, Sustainable Dev & Regulatory","A0622","18/07/2017","1038490 - 0","504","Revenue","20011276","TREVOR ROBERTS ASSOCIATES LTD"
"OCC","Planning, Sustainable Dev & Regulatory","D3802","11/07/2017","1038515 - 0","485.1","Revenue","20007856","NEWSQUEST MIDLANDS, WALES & SOUTH WEST"
"OCC","Planning, Sustainable Dev & Regulatory","Y005","18/07/2017","1038545 - 0","850.93","Capital","20018869","ATHEY & MASON PLUMBING & HEATING LTD"
"OCC","Planning, Sustainable Dev & Regulatory","Y005","25/07/2017","1038591 - 0","4025","Capital","20012692","FREECHOICE GROUP"
"OCC","Planning, Sustainable Dev & Regulatory","D3401","11/07/2017","1038592 - 0","656","Revenue","20012692","FREECHOICE GROUP"
"OCC","Planning, Sustainable Dev & Regulatory","A0622","11/07/2017","1038598 - 0","715","Revenue","20011276","TREVOR ROBERTS ASSOCIATES LTD"
"OCC","Planning, Sustainable Dev & Regulatory","D3411","11/07/2017","1038612 - 0","17500","Revenue","20008467","JONES LANG LASALLE LTD"
"OCC","Planning, Sustainable Dev & Regulatory","D3401","18/07/2017","1038619 - 0","1163.5","Revenue","20014638","S & R CHILDS FUNERAL SERVICES"
"OCC","Planning, Sustainable Dev & Regulatory","Y005","11/07/2017","1038622 - 0","3988","Capital","20016993","OXFORDSHIRE WET ROOMS & SHOWERS"
"OCC","Planning, Sustainable Dev & Regulatory","A0702","25/07/2017","1038636 - 0","2625","Revenue","20009528","HAYMARKET MEDIA GROUP"
"OCC","Planning, Sustainable Dev & Regulatory","A0702","25/07/2017","1038637 - 0","1460","Revenue","20009528","HAYMARKET MEDIA GROUP"
"OCC","Planning, Sustainable Dev & Regulatory","D3802","18/07/2017","1038640 - 0","539","Revenue","20007856","NEWSQUEST MIDLANDS, WALES & SOUTH WEST"
"OCC","Planning, Sustainable Dev & Regulatory","D3401","11/07/2017","1038641 - 0","1190","Revenue","20018246","LSD PROMOTIONS LTD"
"OCC","Planning, Sustainable Dev & Regulatory","Y005","18/07/2017","1038673 - 0","3950","Capital","20012692","FREECHOICE GROUP"
"OCC","Planning, Sustainable Dev & Regulatory","D3401","18/07/2017","1038699 - 0","980","Revenue","20009530","OSBORNE RICHARDSON LTD"
"OCC","Planning, Sustainable Dev & Regulatory","Y005","25/07/2017","1038751 - 0","4535","Capital","20014420","C M RAYSON BUILDERS"
"OCC","Planning, Sustainable Dev & Regulatory","D3802","25/07/2017","1038764 - 0","452.76","Revenue","20007856","NEWSQUEST MIDLANDS, WALES & SOUTH WEST"
"OCC","Planning, Sustainable Dev & Regulatory","Y021","08/08/2017","1038788 - 0","2170","Capital","20011285","SHELLEY SIGNS LIMITED"
"OCC","Planning, Sustainable Dev & Regulatory","Y005","18/07/2017","1038795 - 0","4133","Capital","20015923","ABLE LIVING SOLUTIONS"
"OCC","Planning, Sustainable Dev & Regulatory","Y005","18/07/2017","1038804 - 0","740.51","Capital","20018869","ATHEY & MASON PLUMBING & HEATING LTD"
"OCC","Planning, Sustainable Dev & Regulatory","D3401","18/07/2017","1038804 - 1","500","Revenue","20018869","ATHEY & MASON PLUMBING & HEATING LTD"
"OCC","Planning, Sustainable Dev & Regulatory","D3401","18/07/2017","1038804 - 2","35.87","Revenue","20018869","ATHEY & MASON PLUMBING & HEATING LTD"
"OCC","Planning, Sustainable Dev & Regulatory","A0108","01/08/2017","1038875 - 0","2837.43","Revenue","20018827","THE OYSTER PARTNERSHIP LTD"
"OCC","Planning, Sustainable Dev & Regulatory","Y173","08/08/2017","1038917 - 0","1140","Capital","20013684","ATKINS LIMITED"
"OCC","Planning, Sustainable Dev & Regulatory","Y021","25/07/2017","1038918 - 0","4000","Capital","20013684","ATKINS LIMITED"
"OCC","Planning, Sustainable Dev & Regulatory","D3703","25/07/2017","1038924 - 1","2060.72","Revenue","20016102","LABC"
"OCC","Planning, Sustainable Dev & Regulatory","Y005","01/08/2017","1038945 - 0","4200","Capital","20014420","C M RAYSON BUILDERS"
"OCC","Planning, Sustainable Dev & Regulatory","C2501","15/08/2017","1039039 - 0","968.98","Revenue","20006596","OXFORD BUS COMPANY LTD"
"OCC","Planning, Sustainable Dev & Regulatory","D3802","22/08/2017","1039044 - 1","539","Revenue","20007856","NEWSQUEST MIDLANDS, WALES & SOUTH WEST"
"OCC","Planning, Sustainable Dev & Regulatory","A0646","01/08/2017","1039077 - 0","787.5","Revenue","20019647","ROYAL SOCIETY FOR PUBLIC HEALTH"
"OCC","Planning, Sustainable Dev & Regulatory","Y005","26/09/2017","1039085 - 0","4960","Capital","20014420","C M RAYSON BUILDERS"
"OCC","Planning, Sustainable Dev & Regulatory","Y005","22/08/2017","1039094 - 0","4880","Capital","20012692","FREECHOICE GROUP"
"OCC","Planning, Sustainable Dev & Regulatory","D3411","01/08/2017","1039109 - 0","2460","Revenue","20019524","WHITE LAND STRATEGIES LTD"
"OCC","Planning, Sustainable Dev & Regulatory","D3411","08/08/2017","1039110 - 0","5000","Revenue","20019524","WHITE LAND STRATEGIES LTD"
"OCC","Planning, Sustainable Dev & Regulatory","Y005","15/08/2017","1039191 - 0","2760","Capital","20012692","FREECHOICE GROUP"
"OCC","Planning, Sustainable Dev & Regulatory","Y005","15/08/2017","1039192 - 0","1650","Capital","20012692","FREECHOICE GROUP"
"OCC","Planning, Sustainable Dev & Regulatory","B1101","15/08/2017","1039221 - 0","3646","Revenue","20015923","ABLE LIVING SOLUTIONS"
"OCC","Planning, Sustainable Dev & Regulatory","D3411","22/08/2017","1039257 - 0","7493.75","Revenue","20017818","RICARDO-AEA LTD"
"OCC","Planning, Sustainable Dev & Regulatory","Y005","08/08/2017","1039275 - 0","4200","Capital","20014420","C M RAYSON BUILDERS"
"OCC","Planning, Sustainable Dev & Regulatory","D3401","08/08/2017","1039276 - 0","557.5","Revenue","20002859","BRUEL & KJAER (UK) LTD"
"OCC","Planning, Sustainable Dev & Regulatory","D3802","15/08/2017","1039293 - 0","540","Revenue","20007856","NEWSQUEST MIDLANDS, WALES & SOUTH WEST"
"OCC","Planning, Sustainable Dev & Regulatory","D3401","15/08/2017","1039311 - 0","1866","Revenue","20009530","OSBORNE RICHARDSON LTD"
"OCC","Planning, Sustainable Dev & Regulatory","Y005","26/09/2017","1039314 - 0","6050","Capital","20012692","FREECHOICE GROUP"
"OCC","Planning, Sustainable Dev & Regulatory","D3401","15/08/2017","1039318 - 0","3577.75","Revenue","20009530","OSBORNE RICHARDSON LTD"
"OCC","Planning, Sustainable Dev & Regulatory","D3401","15/08/2017","1039329 - 0","906","Revenue","20009530","OSBORNE RICHARDSON LTD"
"OCC","Planning, Sustainable Dev & Regulatory","D3401","05/09/2017","1039335 - 0","2223","Revenue","20006232","K DESIGN"
"OCC","Planning, Sustainable Dev & Regulatory","Y005","15/08/2017","1039427 - 0","4818.07","Capital","20019646","DREAMING SPIRES CONSTRUCTION LTD.,"
"OCC","Planning, Sustainable Dev & Regulatory","D3401","05/09/2017","1039445 - 0","3270","Revenue","20018909","POLLUTION MONITORS LIMITED"
"OCC","Planning, Sustainable Dev & Regulatory","D3401","22/08/2017","1039448 - 0","885","Revenue","20009530","OSBORNE RICHARDSON LTD"
"OCC","Planning, Sustainable Dev & Regulatory","Y005","22/08/2017","1039457 - 0","14293","Capital","20012692","FREECHOICE GROUP"
"OCC","Planning, Sustainable Dev & Regulatory","B1165","22/08/2017","1039499 - 0","53220","Revenue","20019179","SPIRIT SOLAR LTD"
"OCC","Planning, Sustainable Dev & Regulatory","B1165","22/08/2017","1039500 - 0","26610","Revenue","20019179","SPIRIT SOLAR LTD"
"OCC","Planning, Sustainable Dev & Regulatory","Y005","19/09/2017","1039534 - 1","3702.58","Capital","20014420","C M RAYSON BUILDERS"
"OCC","Planning, Sustainable Dev & Regulatory","B1103","12/09/2017","1039616 - 0","750","Revenue","20019652","AQUALOGIC (WC) LTD"
"OCC","Planning, Sustainable Dev & Regulatory","D3501","12/09/2017","1039616 - 1","15","Revenue","20019652","AQUALOGIC (WC) LTD"
"OCC","Planning, Sustainable Dev & Regulatory","D3401","05/09/2017","1039671 - 0","1162.92","Revenue","20014638","S & R CHILDS FUNERAL SERVICES"
"OCC","Planning, Sustainable Dev & Regulatory","Y005","30/08/2017","1039684 - 0","4732","Capital","20015923","ABLE LIVING SOLUTIONS"
"OCC","Planning, Sustainable Dev & Regulatory","Y005","26/09/2017","1039775 - 0","4960","Capital","20014420","C M RAYSON BUILDERS"
"OCC","Planning, Sustainable Dev & Regulatory","Y005","05/09/2017","1039789 - 0","800","Capital","20016167","MR P A SMITH"
"OCC","Planning, Sustainable Dev & Regulatory","D3401","15/09/2017","1039790 - 0","1000","Revenue","20015921","RIGHT ANGLE DESIGN"
"OCC","Planning, Sustainable Dev & Regulatory","Y005","19/09/2017","1039811 - 0","1440","Capital","20012692","FREECHOICE GROUP"
"OCC","Planning, Sustainable Dev & Regulatory","D3401","26/09/2017","1039825 - 0","450","Revenue","20019179","SPIRIT SOLAR LTD"
"OCC","Planning, Sustainable Dev & Regulatory","D3411","26/09/2017","1039917 - 0","25000","Revenue","20008467","JONES LANG LASALLE LTD"
"OCC","Planning, Sustainable Dev & Regulatory","Y005","19/09/2017","1039942 - 0","806.46","Capital","20012692","FREECHOICE GROUP"
"OCC","Planning, Sustainable Dev & Regulatory","D3417","19/09/2017","1039959 - 0","525","Revenue","20014117","MR DOUGLAS EDWARDS"
"OCC","Planning, Sustainable Dev & Regulatory","Y005","26/09/2017","1039971 - 0","11780.4","Capital","20000222","ELLIOTT & JORDAN LTD"
"OCC","Planning, Sustainable Dev & Regulatory","Y005","19/09/2017","1040008 - 0","6560","Capital","20017827","OWEN CASHELL GENERAL BUILDER"
"OCC","Planning, Sustainable Dev & Regulatory","Y005","19/09/2017","1040027 - 0","10000","Capital","20015923","ABLE LIVING SOLUTIONS"
"OCC","Planning, Sustainable Dev & Regulatory","D3306","26/09/2017","1040041 - 1","818.5","Revenue","20002121","CANON (UK) LTD"
"OCC","Planning, Sustainable Dev & Regulatory","Y021","26/09/2017","1040119 - 0","9972.36","Capital","20019694","FRANKLIN EV LTD"
"OCC","Planning, Sustainable Dev & Regulatory","B1165","26/09/2017","1040158 - 0","15966","Revenue","20019179","SPIRIT SOLAR LTD"
"OCC","Planning, Sustainable Dev & Regulatory","D3401","26/09/2017","1040164 - 0","1162.92","Revenue","20014638","S & R CHILDS FUNERAL SERVICES"
"OCC","Planning, Sustainable Dev & Regulatory","D3401","26/09/2017","1040165 - 0","1162.92","Revenue","20014638","S & R CHILDS FUNERAL SERVICES"
"OCC","Planning, Sustainable Dev & Regulatory","D3411","04/07/2017","46294292 - 1","725","Revenue","20000000","GENERAL EXPENSES"
"OCC","Planning, Sustainable Dev & Regulatory","D3411","18/07/2017","46294449 - 1","725","Revenue","20000000","GENERAL EXPENSES"
"OCC","Planning, Sustainable Dev & Regulatory","D3411","18/07/2017","46294449 - 2","46.8","Revenue","20000000","GENERAL EXPENSES"
"OCC","Planning, Sustainable Dev & Regulatory","A0108","18/07/2017","46294455 - 8","37626.74","Revenue","20018053","REED SPECIALIST RECRUITMENT LTD"
"OCC","Planning, Sustainable Dev & Regulatory","A0108","18/07/2017","46294455 - 21","3087.66","Revenue","20018053","REED SPECIALIST RECRUITMENT LTD"
"OCC","Planning, Sustainable Dev & Regulatory","A0108","18/07/2017","46294455 - 33","3190.01","Revenue","20018053","REED SPECIALIST RECRUITMENT LTD"
"OCC","Planning, Sustainable Dev & Regulatory","D3411","25/07/2017","46294506 - 14","99","Revenue","20011499","TOPS"
"OCC","Planning, Sustainable Dev & Regulatory","A0965","01/08/2017","46294700 - 3","3","Revenue","20014779","CYCLESCHEME LIMITED"
"OCC","Planning, Sustainable Dev & Regulatory","D3701","01/08/2017","46294714 - 1","500","Revenue","20000000","GENERAL EXPENSES"
"OCC","Planning, Sustainable Dev & Regulatory","D3701","01/08/2017","46294714 - 2","500","Revenue","20000000","GENERAL EXPENSES"
"OCC","Planning, Sustainable Dev & Regulatory","D3411","08/08/2017","46294745 - 1","11455","Revenue","20008848","LAND USE CONSULTANTS"
"OCC","Planning, Sustainable Dev & Regulatory","D3411","30/08/2017","46294879 - 11","126","Revenue","20011499","TOPS"
"OCC","Planning, Sustainable Dev & Regulatory","D3401","15/08/2017","46294920 - 1","2500","Revenue","20000000","GENERAL EXPENSES"
"OCC","Planning, Sustainable Dev & Regulatory","A0108","22/08/2017","46295029 - 9","22228.69","Revenue","20018053","REED SPECIALIST RECRUITMENT LTD"
"OCC","Planning, Sustainable Dev & Regulatory","A0108","22/08/2017","46295029 - 25","2468.59","Revenue","20018053","REED SPECIALIST RECRUITMENT LTD"
"OCC","Planning, Sustainable Dev & Regulatory","A0108","22/08/2017","46295029 - 26","2316.86","Revenue","20018053","REED SPECIALIST RECRUITMENT LTD"
"OCC","Planning, Sustainable Dev & Regulatory","D3411","26/09/2017","46295190 - 12","102","Revenue","20011499","TOPS"
"OCC","Planning, Sustainable Dev & Regulatory","A0108","12/09/2017","46295239 - 25","11763.41","Revenue","20018053","REED SPECIALIST RECRUITMENT LTD"
"OCC","Planning, Sustainable Dev & Regulatory","Y021","11/07/2017","48021830 - 1","14750","Capital","20013684","ATKINS LIMITED"
"OCC","Planning, Sustainable Dev & Regulatory","Y021","08/08/2017","48021834 - 1","7892","Capital","20004730","LITTLEMORE PARISH COUNCIL"
"OCC","Housing Services","B1103","11/07/2017","1038219 - 3","4820.35","Revenue","20000210","BARKER & EVANS LTD"
"OCC","Housing Services","Y021","11/07/2017","1038309 - 0","41219.77","Capital","20017269","CROFT BUILDING & CONSERVATION LTD"
"OCC","Housing Services","B1101","18/07/2017","1038332 - 0","515","Revenue","20013257","CITY INSULATION CONTRACTORS LIMITED"
"OCC","Housing Services","D3600","04/07/2017","1038388 - 0","1565.67","Revenue","20011006","ASPIRE OXFORDSHIRE COMMUNITY ENTERPRISE LTD"
"OCC","Housing Services","A0622","04/07/2017","1038426 - 0","1650","Revenue","20019650","ROD LAIRD LTD T/A ROD LAIRD ORGANISATION"
"OCC","Housing Services","B1103","04/07/2017","1038433 - 6","9381.55","Revenue","20002568","PYROTEC SERVICES LTD"
"OCC","Housing Services","B1103","04/07/2017","1038445 - 0","502.5","Revenue","20004494","COTSWOLD LIFTS LTD"
"OCC","Housing Services","D3510","04/07/2017","1038455 - 0","3848.52","Revenue","20012480","HOUSEMARK LTD"
"OCC","Housing Services","B1101","04/07/2017","1038474 - 0","597.5","Revenue","20019316","TRUTH LTD T/A KJC FELT ROOFING"
"OCC","Housing Services","B1101","04/07/2017","1038475 - 0","750","Revenue","20019316","TRUTH LTD T/A KJC FELT ROOFING"
"OCC","Housing Services","D3001","18/07/2017","1038493 - 0","572.68","Revenue","20016872","MOREFLOORLESS LTD T/AS CARPETS 4 LESS"
"OCC","Housing Services","B1101","25/07/2017","1038539 - 0","970","Revenue","20010433","IDEAL FLOORING (OXFORD) LTD"
"OCC","Housing Services","D3611","11/07/2017","1038560 - 1","3000","Revenue","20007933","LETTING & PROPERTY MANAGEMENT"
"OCC","Housing Services","D3611","11/07/2017","1038561 - 1","2850","Revenue","20007933","LETTING & PROPERTY MANAGEMENT"
"OCC","Housing Services","D3611","11/07/2017","1038562 - 1","2850","Revenue","20007933","LETTING & PROPERTY MANAGEMENT"
"OCC","Housing Services","D3611","11/07/2017","1038563 - 1","4680","Revenue","20007933","LETTING & PROPERTY MANAGEMENT"
"OCC","Housing Services","D3611","11/07/2017","1038564 - 1","2475","Revenue","20007933","LETTING & PROPERTY MANAGEMENT"
"OCC","Housing Services","D3611","11/07/2017","1038565 - 1","4980","Revenue","20007933","LETTING & PROPERTY MANAGEMENT"
"OCC","Housing Services","B1103","18/07/2017","1038578 - 1","5581.86","Revenue","20000386","OTIS LIMITED"
"OCC","Housing Services","B1103","25/07/2017","1038581 - 0","19886.75","Revenue","20000210","BARKER & EVANS LTD"
"OCC","Housing Services","B1101","11/07/2017","1038613 - 0","830","Revenue","20011854","OXFORD FABRICATION LTD"
"OCC","Housing Services","B1153","11/07/2017","1038625 - 1","8261.37","Revenue","20000249","SSE CONTRACTING LTD"
"OCC","Housing Services","B1101","11/07/2017","1038643 - 0","2699.45","Revenue","20019316","TRUTH LTD T/A KJC FELT ROOFING"
"OCC","Housing Services","B1103","25/07/2017","1038659 - 0","600","Revenue","20017850","SAFESITE LTD"
"OCC","Housing Services","D3611","11/07/2017","1038663 - 1","4000","Revenue","20012518","JAMES  C.  PENNY ESTATE AGENTS LTD"
"OCC","Housing Services","A0108","18/07/2017","1038664 - 0","851","Revenue","20002820","BADENOCH & CLARK LTD"
"OCC","Housing Services","B1103","25/07/2017","1038704 - 0","1605.62","Revenue","20016705","SOUTHERN ELECTRIC POWER DISTRIBUTION PLC"
"OCC","Housing Services","B1101","18/07/2017","1038734 - 0","985","Revenue","20006929","ISIS SCAFFOLDING LTD"
"OCC","Housing Services","B1103","18/07/2017","1038735 - 3","1155","Revenue","20013614","SMS ENVIRONMENTAL LIMITED"
"OCC","Housing Services","B1103","18/07/2017","1038750 - 0","104","Revenue","20013614","SMS ENVIRONMENTAL LIMITED"
"OCC","Housing Services","B1103","25/07/2017","1038789 - 0","1049.21","Revenue","20016705","SOUTHERN ELECTRIC POWER DISTRIBUTION PLC"
"OCC","Housing Services","B1103","18/07/2017","1038842 - 2","4107.5","Revenue","20013614","SMS ENVIRONMENTAL LIMITED"
"OCC","Housing Services","D3611","25/07/2017","1038844 - 1","2000","Revenue","20012518","JAMES  C.  PENNY ESTATE AGENTS LTD"
"OCC","Housing Services","A0622","08/08/2017","1038937 - 0","2587","Revenue","20019335","EAST CAMBRIDGESHIRE DISTRICT COUNCIL"
"OCC","Housing Services","B1101","01/08/2017","1038950 - 0","2175","Revenue","20002568","PYROTEC SERVICES LTD"
"OCC","Housing Services","B1101","01/08/2017","1038951 - 0","1369","Revenue","20002568","PYROTEC SERVICES LTD"
"OCC","Housing Services","B1101","01/08/2017","1038953 - 0","2464","Revenue","20002568","PYROTEC SERVICES LTD"
"OCC","Housing Services","B1101","01/08/2017","1038954 - 0","560","Revenue","20002568","PYROTEC SERVICES LTD"
"OCC","Housing Services","B1101","25/07/2017","1038961 - 0","4498.87","Revenue","20011508","D A MILES & SONS"
"OCC","Housing Services","B1101","25/07/2017","1038962 - 0","3895","Revenue","20011508","D A MILES & SONS"
"OCC","Housing Services","B1101","25/07/2017","1038963 - 0","1850","Revenue","20011508","D A MILES & SONS"
"OCC","Housing Services","B1103","01/08/2017","1038986 - 0","991.77","Revenue","20019050","SMS CONNECTIONS LTD"
"OCC","Housing Services","A0108","22/08/2017","1039088 - 0","1040.44","Revenue","20018833","JAMES ANDREWS RECRUITMENT SOLUTIONS LTD"
"OCC","Housing Services","B1101","15/08/2017","1039113 - 0","450","Revenue","20013032","VINTEC LABORATORIES LTD"
"OCC","Housing Services","D3001","01/08/2017","1039125 - 0","430","Revenue","20007932","FURNISHED HOMES (UNDERLEY FURNISHINGS) LTD"
"OCC","Housing Services","D3001","01/08/2017","1039126 - 0","430","Revenue","20007932","FURNISHED HOMES (UNDERLEY FURNISHINGS) LTD"
"OCC","Housing Services","D3001","01/08/2017","1039127 - 0","430","Revenue","20007932","FURNISHED HOMES (UNDERLEY FURNISHINGS) LTD"
"OCC","Housing Services","D3001","01/08/2017","1039128 - 0","430","Revenue","20007932","FURNISHED HOMES (UNDERLEY FURNISHINGS) LTD"
"OCC","Housing Services","D3001","01/08/2017","1039129 - 0","430","Revenue","20007932","FURNISHED HOMES (UNDERLEY FURNISHINGS) LTD"
"OCC","Housing Services","D3001","01/08/2017","1039130 - 0","430","Revenue","20007932","FURNISHED HOMES (UNDERLEY FURNISHINGS) LTD"
"OCC","Housing Services","D3001","01/08/2017","1039157 - 0","430","Revenue","20007932","FURNISHED HOMES (UNDERLEY FURNISHINGS) LTD"
"OCC","Housing Services","B1101","15/08/2017","1039162 - 0","4981","Revenue","20002568","PYROTEC SERVICES LTD"
"OCC","Housing Services","B1101","15/08/2017","1039164 - 0","1935.62","Revenue","20002568","PYROTEC SERVICES LTD"
"OCC","Housing Services","B1101","15/08/2017","1039165 - 0","4270","Revenue","20002568","PYROTEC SERVICES LTD"
"OCC","Housing Services","B1103","15/08/2017","1039169 - 3","1348.73","Revenue","20000210","BARKER & EVANS LTD"
"OCC","Housing Services","B1103","08/08/2017","1039172 - 0","596.25","Revenue","20004494","COTSWOLD LIFTS LTD"
"OCC","Housing Services","D3611","15/08/2017","1039200 - 1","5361","Revenue","20010650","MR JOHN KEOWN"
"OCC","Housing Services","D3611","15/08/2017","1039201 - 1","5361","Revenue","20010650","MR JOHN KEOWN"
"OCC","Housing Services","D3611","15/08/2017","1039202 - 1","5025","Revenue","20010650","MR JOHN KEOWN"
"OCC","Housing Services","B1101","15/08/2017","1039210 - 0","1175","Revenue","20002568","PYROTEC SERVICES LTD"
"OCC","Housing Services","B1101","15/08/2017","1039211 - 0","2175","Revenue","20002568","PYROTEC SERVICES LTD"
"OCC","Housing Services","B1101","15/08/2017","1039212 - 0","2382","Revenue","20002568","PYROTEC SERVICES LTD"
"OCC","Housing Services","B1103","08/08/2017","1039243 - 0","7759","Revenue","20013614","SMS ENVIRONMENTAL LIMITED"
"OCC","Housing Services","D3811","30/08/2017","1039252 - 0","5000","Revenue","20009543","RESPONSE ORGANISATION"
"OCC","Housing Services","D3001","08/08/2017","1039256 - 0","430","Revenue","20007932","FURNISHED HOMES (UNDERLEY FURNISHINGS) LTD"
"OCC","Housing Services","B1101","15/08/2017","1039262 - 0","1932","Revenue","20002568","PYROTEC SERVICES LTD"
"OCC","Housing Services","B1101","15/08/2017","1039264 - 0","1147","Revenue","20002568","PYROTEC SERVICES LTD"
"OCC","Housing Services","B1101","15/08/2017","1039267 - 0","4624","Revenue","20002568","PYROTEC SERVICES LTD"
"OCC","Housing Services","B1101","15/08/2017","1039310 - 0","765","Revenue","20019316","TRUTH LTD T/A KJC FELT ROOFING"
"OCC","Housing Services","B1103","30/08/2017","1039327 - 0","9549","Revenue","20000210","BARKER & EVANS LTD"
"OCC","Housing Services","B1101","15/08/2017","1039355 - 0","2500","Revenue","20019316","TRUTH LTD T/A KJC FELT ROOFING"
"OCC","Housing Services","A0108","05/09/2017","1039418 - 0","1040.44","Revenue","20018833","JAMES ANDREWS RECRUITMENT SOLUTIONS LTD"
"OCC","Housing Services","B1103","22/08/2017","1039420 - 5","120","Revenue","20013614","SMS ENVIRONMENTAL LIMITED"
"OCC","Housing Services","B1103","22/08/2017","1039421 - 1","651","Revenue","20013614","SMS ENVIRONMENTAL LIMITED"
"OCC","Housing Services","D3600","15/08/2017","1039425 - 0","1004.59","Revenue","20011006","ASPIRE OXFORDSHIRE COMMUNITY ENTERPRISE LTD"
"OCC","Housing Services","D3510","22/08/2017","1039488 - 0","9703.86","Revenue","20012480","HOUSEMARK LTD"
"OCC","Housing Services","D3600","22/08/2017","1039519 - 0","926.9","Revenue","20011006","ASPIRE OXFORDSHIRE COMMUNITY ENTERPRISE LTD"
"OCC","Housing Services","B1101","30/08/2017","1039523 - 0","5115","Revenue","20002568","PYROTEC SERVICES LTD"
"OCC","Housing Services","B1103","12/09/2017","1039529 - 0","19903.34","Revenue","20000210","BARKER & EVANS LTD"
"OCC","Housing Services","B1103","22/08/2017","1039535 - 0","510","Revenue","20017892","TRIPLE POLE ELECTRICS LTD"
"OCC","Housing Services","B1101","19/09/2017","1039592 - 0","2748.33","Revenue","20019417","DMA SIGNS LTD"
"OCC","Housing Services","B1206","12/09/2017","1039605 - 0","3017.84","Revenue","20000210","BARKER & EVANS LTD"
"OCC","Housing Services","B1101","05/09/2017","1039627 - 0","1108.78","Revenue","20000210","BARKER & EVANS LTD"
"OCC","Housing Services","B1101","19/09/2017","1039669 - 0","5834","Revenue","20010433","IDEAL FLOORING (OXFORD) LTD"
"OCC","Housing Services","B1101","05/09/2017","1039676 - 0","557","Revenue","20000397","WINDRUSH DOOR & WINDOW SERVICES LTD"
"OCC","Housing Services","B1103","05/09/2017","1039716 - 0","1086.18","Revenue","20002568","PYROTEC SERVICES LTD"
"OCC","Housing Services","B1101","12/09/2017","1039725 - 0","950","Revenue","20019316","TRUTH LTD T/A KJC FELT ROOFING"
"OCC","Housing Services","B1101","12/09/2017","1039726 - 0","540","Revenue","20019316","TRUTH LTD T/A KJC FELT ROOFING"
"OCC","Housing Services","B1103","12/09/2017","1039735 - 0","360","Revenue","20004494","COTSWOLD LIFTS LTD"
"OCC","Housing Services","B1101","19/09/2017","1039799 - 0","497.5","Revenue","20004165","SCHINDLER LTD"
"OCC","Housing Services","B1103","26/09/2017","1039830 - 2","1588.45","Revenue","20000210","BARKER & EVANS LTD"
"OCC","Housing Services","B1101","19/09/2017","1039889 - 0","450","Revenue","20019316","TRUTH LTD T/A KJC FELT ROOFING"
"OCC","Housing Services","D3426","12/09/2017","1039894 - 0","1080","Revenue","20011972","EXTREME ENVIRONMENTAL SERVICES LTD"
"OCC","Housing Services","B1103","26/09/2017","1039978 - 0","643.4","Revenue","20006133","GREENFLOW"
"OCC","Housing Services","B1153","19/09/2017","1040009 - 0","490","Revenue","20000249","SSE CONTRACTING LTD"
"OCC","Housing Services","B1153","19/09/2017","1040023 - 0","1214.55","Revenue","20000249","SSE CONTRACTING LTD"
"OCC","Housing Services","B1103","26/09/2017","1040030 - 0","1910","Revenue","20000227","GEORGE HENRY & CO RELAY LTD"
"OCC","Housing Services","D3611","19/09/2017","1040032 - 1","17680","Revenue","20011218","FOCUSPLAIN LIMITED"
"OCC","Housing Services","D3611","19/09/2017","1040033 - 1","17290","Revenue","20011218","FOCUSPLAIN LIMITED"
"OCC","Housing Services","D3611","19/09/2017","1040034 - 1","19760","Revenue","20011218","FOCUSPLAIN LIMITED"
"OCC","Housing Services","B1103","26/09/2017","1040048 - 0","2250","Revenue","20006133","GREENFLOW"
"OCC","Housing Services","B1101","26/09/2017","1040054 - 0","1195","Revenue","20019316","TRUTH LTD T/A KJC FELT ROOFING"
"OCC","Housing Services","B1101","26/09/2017","1040055 - 0","550","Revenue","20019316","TRUTH LTD T/A KJC FELT ROOFING"
"OCC","Housing Services","B1101","26/09/2017","1040056 - 0","1070","Revenue","20019316","TRUTH LTD T/A KJC FELT ROOFING"
"OCC","Housing Services","B1203","26/09/2017","1040159 - 0","1151.98","Revenue","20018616","LIFT SPECIALIST LTD"
"OCC","Housing Services","B1101","26/09/2017","1040220 - 0","429","Revenue","20014562","NBC BIRD & PEST SOLUTIONS LTD"
"OCC","Housing Services","F5033","04/07/2017","46294294 - 1","1150","Revenue","20003455","MRS MASOMEH FARAHANI"
"OCC","Housing Services","F5033","04/07/2017","46294295 - 1","797.99","Revenue","20000010","HOUSING PAYMENTS"
"OCC","Housing Services","F5033","04/07/2017","46294305 - 1","800","Revenue","20015668","LINCOMBE PROPERTY SERVICES"
"OCC","Housing Services","D3701","04/07/2017","46294309 - 1","650","Revenue","20014363","OCC ROSE HILL PRIMARY SCHOOL"
"OCC","Housing Services","F5033","04/07/2017","46294310 - 1","3885","Revenue","20019634","MR LUKE KING"
"OCC","Housing Services","D3426","04/07/2017","46294318 - 1","795","Revenue","20019484","MR DOUGLAS HUGHES T/A OXFORDSHIRE ESTATES"
"OCC","Housing Services","B1186","04/07/2017","46294320 - 1","4833.33","Revenue","20000010","HOUSING PAYMENTS"
"OCC","Housing Services","F5033","04/07/2017","46294332 - 1","2800","Revenue","20019653","MRS SAMEENA GARDINER"
"OCC","Housing Services","F5033","04/07/2017","46294334 - 1","2800","Revenue","20019653","MRS SAMEENA GARDINER"
"OCC","Housing Services","F5033","11/07/2017","46294378 - 1","1000","Revenue","20019642","RICHARD TIMMS"
"OCC","Housing Services","F5033","11/07/2017","46294379 - 1","615.12","Revenue","20019642","RICHARD TIMMS"
"OCC","Housing Services","F5033","11/07/2017","46294380 - 1","545.49","Revenue","20019642","RICHARD TIMMS"
"OCC","Housing Services","F5033","11/07/2017","46294381 - 1","1780","Revenue","20019642","RICHARD TIMMS"
"OCC","Housing Services","F5033","11/07/2017","46294425 - 1","900","Revenue","20019446","MR E ALDWORTH"
"OCC","Housing Services","F5033","11/07/2017","46294426 - 1","2775","Revenue","20015351","ADMIRAL HOMES"
"OCC","Housing Services","D3426","11/07/2017","46294429 - 1","608.01","Revenue","20019484","MR DOUGLAS HUGHES T/A OXFORDSHIRE ESTATES"
"OCC","Housing Services","D3426","11/07/2017","46294446 - 1","500","Revenue","20000010","HOUSING PAYMENTS"
"OCC","Housing Services","F5033","18/07/2017","46294453 - 1","4232.76","Revenue","20019505","PENNY & SINCLAIR LTD"
"OCC","Housing Services","A0108","18/07/2017","46294455 - 4","28625.28","Revenue","20018053","REED SPECIALIST RECRUITMENT LTD"
"OCC","Housing Services","A0108","18/07/2017","46294455 - 34","2163.62","Revenue","20018053","REED SPECIALIST RECRUITMENT LTD"
"OCC","Housing Services","D3426","18/07/2017","46294456 - 1","1091.04","Revenue","20010650","MR JOHN KEOWN"
"OCC","Housing Services","D3426","18/07/2017","46294457 - 1","1091.04","Revenue","20010650","MR JOHN KEOWN"
"OCC","Housing Services","D3426","18/07/2017","46294460 - 1","1091.04","Revenue","20010650","MR JOHN KEOWN"
"OCC","Housing Services","D3701","18/07/2017","46294480 - 1","2960","Revenue","20009876","REFUGEE RESOURCE"
"OCC","Housing Services","D3701","18/07/2017","46294481 - 1","16765","Revenue","20009273","ASYLUM WELCOME"
"OCC","Housing Services","D3701","18/07/2017","46294482 - 1","11285","Revenue","20007948","CHENEY SCHOOL ACADEMY TRUST"
"OCC","Housing Services","D3701","08/08/2017","46294505 - 1","4396.08","Revenue","20018950","BROADWAY REAL ENTERPRISES LIMITED"
"OCC","Housing Services","D3411","25/07/2017","46294506 - 12","42","Revenue","20011499","TOPS"
"OCC","Housing Services","D3426","18/07/2017","46294535 - 1","1050","Revenue","20000018","Homelessness Holding Fee Misc Account"
"OCC","Housing Services","D3426","18/07/2017","46294562 - 1","1832.76","Revenue","20019469","MS EMMA MCLEOD"
"OCC","Housing Services","F5033","18/07/2017","46294563 - 1","700","Revenue","20000010","HOUSING PAYMENTS"
"OCC","Housing Services","D3426","18/07/2017","46294566 - 1","2432.76","Revenue","20019670","MR MICHAEL GROEN & MR ADAM WILLETT"
"OCC","Housing Services","D3426","25/07/2017","46294578 - 1","600","Revenue","20016207","MR KAZIM KARABULUT"
"OCC","Housing Services","D3426","25/07/2017","46294579 - 1","621.3","Revenue","20012837","MR ARJ & MS SALLY ARUL"
"OCC","Housing Services","F5033","25/07/2017","46294581 - 1","552.74","Revenue","20019484","MR DOUGLAS HUGHES T/A OXFORDSHIRE ESTATES"
"OCC","Housing Services","F5033","25/07/2017","46294582 - 1","900","Revenue","20019484","MR DOUGLAS HUGHES T/A OXFORDSHIRE ESTATES"
"OCC","Housing Services","F5033","25/07/2017","46294583 - 1","1590","Revenue","20019484","MR DOUGLAS HUGHES T/A OXFORDSHIRE ESTATES"
"OCC","Housing Services","F5033","25/07/2017","46294606 - 1","1000","Revenue","20000010","HOUSING PAYMENTS"
"OCC","Housing Services","B1186","25/07/2017","46294615 - 1","642.47","Revenue","20000010","HOUSING PAYMENTS"
"OCC","Housing Services","D3426","25/07/2017","46294622 - 1","1050","Revenue","20019671","DAVID MOORE LETTINGS LTD"
"OCC","Housing Services","F5033","25/07/2017","46294625 - 1","1850","Revenue","20015351","ADMIRAL HOMES"
"OCC","Housing Services","F5033","25/07/2017","46294626 - 1","2775","Revenue","20015351","ADMIRAL HOMES"
"OCC","Housing Services","F5033","25/07/2017","46294627 - 1","1850","Revenue","20015351","ADMIRAL HOMES"
"OCC","Housing Services","F5033","25/07/2017","46294629 - 1","3300","Revenue","20015668","LINCOMBE PROPERTY SERVICES"
"OCC","Housing Services","D3426","01/08/2017","46294667 - 1","580","Revenue","20019639","THE GRAHAM RHODES TRUST"
"OCC","Housing Services","D3426","01/08/2017","46294671 - 1","3473.18","Revenue","20019507","MISS MARTINE GREENWOOD"
"OCC","Housing Services","F5033","01/08/2017","46294672 - 1","2775","Revenue","20015204","A B I PROPERTIES"
"OCC","Housing Services","F5033","01/08/2017","46294673 - 1","2775","Revenue","20015204","A B I PROPERTIES"
"OCC","Housing Services","F5033","01/08/2017","46294674 - 1","3300","Revenue","20015204","A B I PROPERTIES"
"OCC","Housing Services","F5033","01/08/2017","46294675 - 1","2775","Revenue","20015204","A B I PROPERTIES"
"OCC","Housing Services","F5033","01/08/2017","46294676 - 1","2775","Revenue","20015204","A B I PROPERTIES"
"OCC","Housing Services","F5033","01/08/2017","46294677 - 1","2775","Revenue","20015204","A B I PROPERTIES"
"OCC","Housing Services","F5033","01/08/2017","46294678 - 1","2775","Revenue","20010650","MR JOHN KEOWN"
"OCC","Housing Services","F5033","01/08/2017","46294679 - 1","3300","Revenue","20019588","MR P & MRS DW DOWLEY"
"OCC","Housing Services","F5033","01/08/2017","46294680 - 1","3300","Revenue","20014513","MR M LENTHALL"
"OCC","Housing Services","F5033","01/08/2017","46294681 - 1","500","Revenue","20000010","HOUSING PAYMENTS"
"OCC","Housing Services","D3426","01/08/2017","46294682 - 1","1232.76","Revenue","20019505","PENNY & SINCLAIR LTD"
"OCC","Housing Services","D3426","01/08/2017","46294683 - 1","1272.88","Revenue","20019505","PENNY & SINCLAIR LTD"
"OCC","Housing Services","D3426","01/08/2017","46294684 - 1","580","Revenue","20019626","JOHNSONS PROPERTY CONSULTANCY LTD"
"OCC","Housing Services","F5033","01/08/2017","46294707 - 1","1800","Revenue","20019674","MS NIRMLA D RAM"
"OCC","Housing Services","D3701","01/08/2017","46294708 - 1","9000","Revenue","20019675","BOTLEY SCHOOL"
"OCC","Housing Services","F5033","01/08/2017","46294713 - 1","700","Revenue","20000010","HOUSING PAYMENTS"
"OCC","Housing Services","D3426","01/08/2017","46294719 - 1","1092","Revenue","20000010","HOUSING PAYMENTS"
"OCC","Housing Services","F5033","01/08/2017","46294720 - 1","950","Revenue","20000010","HOUSING PAYMENTS"
"OCC","Housing Services","D3701","08/08/2017","46294740 - 1","1056.93","Revenue","20010170","CONNECTION SUPPORT"
"OCC","Housing Services","D3811","08/08/2017","46294741 - 1","666.67","Revenue","20009273","ASYLUM WELCOME"
"OCC","Housing Services","F5033","08/08/2017","46294748 - 1","2775","Revenue","20019371","MR FINBARR CALNAN"
"OCC","Housing Services","F5033","08/08/2017","46294755 - 1","1490","Revenue","20019686","ANDREW P HOWARD"
"OCC","Housing Services","F5033","08/08/2017","46294756 - 1","745","Revenue","20019686","ANDREW P HOWARD"
"OCC","Housing Services","F5033","08/08/2017","46294757 - 1","684.64","Revenue","20019686","ANDREW P HOWARD"
"OCC","Housing Services","F5033","08/08/2017","46294758 - 1","900","Revenue","20019686","ANDREW P HOWARD"
"OCC","Housing Services","F5033","08/08/2017","46294761 - 1","2775","Revenue","20019469","MS EMMA MCLEOD"
"OCC","Housing Services","F5033","08/08/2017","46294762 - 1","2775","Revenue","20015204","A B I PROPERTIES"
"OCC","Housing Services","D3426","08/08/2017","46294767 - 1","532.3","Revenue","20015204","A B I PROPERTIES"
"OCC","Housing Services","F5033","08/08/2017","46294768 - 1","2775","Revenue","20015204","A B I PROPERTIES"
"OCC","Housing Services","D3426","08/08/2017","46294771 - 1","1091.04","Revenue","20019570","GRANTS PRPOPERTY MANAGEMENT"
"OCC","Housing Services","D3426","08/08/2017","46294772 - 1","792","Revenue","20012837","MR ARJ & MS SALLY ARUL"
"OCC","Housing Services","D3426","08/08/2017","46294773 - 1","950","Revenue","20019484","MR DOUGLAS HUGHES T/A OXFORDSHIRE ESTATES"
"OCC","Housing Services","D3426","15/08/2017","46294864 - 1","834.08","Revenue","20019442","MR E ALDWORTH/MR MJ NASH"
"OCC","Housing Services","D3426","15/08/2017","46294869 - 1","1050","Revenue","20019671","DAVID MOORE LETTINGS LTD"
"OCC","Housing Services","D3426","15/08/2017","46294869 - 2","241.45","Revenue","20019671","DAVID MOORE LETTINGS LTD"
"OCC","Housing Services","D3426","15/08/2017","46294870 - 1","580","Revenue","20019626","JOHNSONS PROPERTY CONSULTANCY LTD"
"OCC","Housing Services","D3411","30/08/2017","46294879 - 15","99","Revenue","20011499","TOPS"
"OCC","Housing Services","F5033","15/08/2017","46294893 - 1","3632.76","Revenue","20014702","PREMIER LETTING"
"OCC","Housing Services","F5033","15/08/2017","46294894 - 1","2600","Revenue","20014702","PREMIER LETTING"
"OCC","Housing Services","F5033","15/08/2017","46294895 - 1","1000","Revenue","20014702","PREMIER LETTING"
"OCC","Housing Services","F5033","15/08/2017","46294910 - 1","3300","Revenue","20019587","MR RAMZI SANCAR"
"OCC","Housing Services","D3811","15/08/2017","46294914 - 1","2500","Revenue","20000000","GENERAL EXPENSES"
"OCC","Housing Services","D3811","15/08/2017","46294914 - 2","122.53","Revenue","20000000","GENERAL EXPENSES"
"OCC","Housing Services","F5033","15/08/2017","46294915 - 1","2400","Revenue","20000010","HOUSING PAYMENTS"
"OCC","Housing Services","F5033","15/08/2017","46294916 - 1","2432.76","Revenue","20000010","HOUSING PAYMENTS"
"OCC","Housing Services","F5033","15/08/2017","46294917 - 1","2400","Revenue","20000010","HOUSING PAYMENTS"
"OCC","Housing Services","F5033","15/08/2017","46294919 - 1","962","Revenue","20000010","HOUSING PAYMENTS"
"OCC","Housing Services","F5033","15/08/2017","46294934 - 1","2025","Revenue","20000010","HOUSING PAYMENTS"
"OCC","Housing Services","D3426","15/08/2017","46294936 - 1","500","Revenue","20000010","HOUSING PAYMENTS"
"OCC","Housing Services","D3426","15/08/2017","46294981 - 1","1610.4","Revenue","20010650","MR JOHN KEOWN"
"OCC","Housing Services","D3426","22/08/2017","46295020 - 1","500","Revenue","20019692","MS GIHAN MESHREF"
"OCC","Housing Services","D3426","22/08/2017","46295022 - 1","545.52","Revenue","20014495","GRANDE PROPERTY SERVICES"
"OCC","Housing Services","F5033","22/08/2017","46295027 - 1","2700","Revenue","20019595","AIDAN COSTELLOE"
"OCC","Housing Services","F5033","22/08/2017","46295028 - 1","2775","Revenue","20019607","SHELLEY NUTT"
"OCC","Housing Services","A0108","22/08/2017","46295029 - 8","14182.83","Revenue","20018053","REED SPECIALIST RECRUITMENT LTD"
"OCC","Housing Services","A0108","22/08/2017","46295029 - 20","3102.89","Revenue","20018053","REED SPECIALIST RECRUITMENT LTD"
"OCC","Housing Services","A0108","22/08/2017","46295029 - 21","0.6","Revenue","20018053","REED SPECIALIST RECRUITMENT LTD"
"OCC","Housing Services","A0108","22/08/2017","46295029 - 49","3705.72","Revenue","20018053","REED SPECIALIST RECRUITMENT LTD"
"OCC","Housing Services","D3426","22/08/2017","46295051 - 1","1832.76","Revenue","20000010","HOUSING PAYMENTS"
"OCC","Housing Services","F5033","22/08/2017","46295052 - 1","572.76","Revenue","20019699","MISS EMILY BORG"
"OCC","Housing Services","D3426","30/08/2017","46295067 - 1","621.3","Revenue","20012837","MR ARJ & MS SALLY ARUL"
"OCC","Housing Services","D3426","30/08/2017","46295068 - 1","792","Revenue","20012837","MR ARJ & MS SALLY ARUL"
"OCC","Housing Services","F5033","30/08/2017","46295098 - 1","4125","Revenue","20019472","APQ PROPERTIES LTD"
"OCC","Housing Services","B1606","05/09/2017","46295119 - 3","585","Revenue","20008024","KINGS SERVICES"
"OCC","Housing Services","F5033","05/09/2017","46295122 - 1","3885","Revenue","20019634","MR LUKE KING"
"OCC","Housing Services","F5033","05/09/2017","46295123 - 1","2775","Revenue","20015351","ADMIRAL HOMES"
"OCC","Housing Services","D3426","05/09/2017","46295137 - 1","580","Revenue","20019639","THE GRAHAM RHODES TRUST"
"OCC","Housing Services","D3807","05/09/2017","46295160 - 1","963.3","Revenue","20000000","GENERAL EXPENSES"
"OCC","Housing Services","D3426","12/09/2017","46295174 - 1","580","Revenue","20019639","THE GRAHAM RHODES TRUST"
"OCC","Housing Services","F5033","12/09/2017","46295179 - 1","3300","Revenue","20019428","FRANCIS PEARSON"
"OCC","Housing Services","F5033","12/09/2017","46295180 - 1","3900","Revenue","20019518","S ALI MOHAMED"
"OCC","Housing Services","F5033","12/09/2017","46295181 - 1","2775","Revenue","20019421","ALEXANDRA HELENE NOBLE"
"OCC","Housing Services","D3411","26/09/2017","46295190 - 10","42","Revenue","20011499","TOPS"
"OCC","Housing Services","F5033","12/09/2017","46295197 - 1","1300","Revenue","20014702","PREMIER LETTING"
"OCC","Housing Services","D3426","12/09/2017","46295198 - 1","4230","Revenue","20014702","PREMIER LETTING"
"OCC","Housing Services","D3426","12/09/2017","46295199 - 1","3791.04","Revenue","20014702","PREMIER LETTING"
"OCC","Housing Services","F5033","12/09/2017","46295201 - 1","745","Revenue","20019686","ANDREW P HOWARD"
"OCC","Housing Services","F5033","12/09/2017","46295203 - 1","1000","Revenue","20019712","MR ABDUL GHAFFAR"
"OCC","Housing Services","F5033","12/09/2017","46295203 - 2","1000","Revenue","20019712","MR ABDUL GHAFFAR"
"OCC","Housing Services","F5033","12/09/2017","46295203 - 3","1991.04","Revenue","20019712","MR ABDUL GHAFFAR"
"OCC","Housing Services","F5033","12/09/2017","46295204 - 1","2085.2","Revenue","20019442","MR E ALDWORTH/MR MJ NASH"
"OCC","Housing Services","D3426","12/09/2017","46295208 - 1","1050","Revenue","20019671","DAVID MOORE LETTINGS LTD"
"OCC","Housing Services","D3426","12/09/2017","46295208 - 2","120","Revenue","20019671","DAVID MOORE LETTINGS LTD"
"OCC","Housing Services","D3426","12/09/2017","46295214 - 1","580","Revenue","20019626","JOHNSONS PROPERTY CONSULTANCY LTD"
"OCC","Housing Services","A0108","12/09/2017","46295239 - 3","12273.68","Revenue","20018053","REED SPECIALIST RECRUITMENT LTD"
"OCC","Housing Services","A0108","12/09/2017","46295239 - 32","2335.26","Revenue","20018053","REED SPECIALIST RECRUITMENT LTD"
"OCC","Housing Services","A0108","12/09/2017","46295239 - 33","6167.2","Revenue","20018053","REED SPECIALIST RECRUITMENT LTD"
"OCC","Housing Services","D3426","12/09/2017","46295240 - 1","1100","Revenue","20019714","PHEASANT RETREATS LTD"
"OCC","Housing Services","D3426","19/09/2017","46295257 - 1","1102.49","Revenue","20019484","MR DOUGLAS HUGHES T/A OXFORDSHIRE ESTATES"
"OCC","Housing Services","F5033","19/09/2017","46295273 - 1","2100","Revenue","20000010","HOUSING PAYMENTS"
"OCC","Housing Services","D3426","19/09/2017","46295276 - 1","1424.85","Revenue","20019549","MRS J BEGUM"
"OCC","Housing Services","F5033","26/09/2017","46295301 - 1","720.27","Revenue","20019143","ST MUNGOS"
"OCC","Housing Services","D3426","26/09/2017","46295306 - 1","580","Revenue","20019639","THE GRAHAM RHODES TRUST"
"OCC","Housing Services","D3426","26/09/2017","46295339 - 1","986.88","Revenue","20019368","MR JOHN S & MRS VERONICA T WALTERS"
"OCC","Housing Services","D3426","26/09/2017","46295339 - 2","30","Revenue","20019368","MR JOHN S & MRS VERONICA T WALTERS"
"OCC","Housing Services","F5033","26/09/2017","46295342 - 1","4125","Revenue","20019586","MRS ZHALEH GHOMSHEI"
"OCC","Housing Services","F5033","26/09/2017","46295343 - 1","3300","Revenue","20015668","LINCOMBE PROPERTY SERVICES"
"OCC","Housing Services","F5033","26/09/2017","46295344 - 1","4530","Revenue","20015668","LINCOMBE PROPERTY SERVICES"
"OCC","Housing Services","D3426","26/09/2017","46295347 - 1","795","Revenue","20000018","Homelessness Holding Fee Misc Account"
"OCC","Housing Services","D3701","26/09/2017","46295360 - 1","521.33","Revenue","20000000","GENERAL EXPENSES"
"OCC","Housing Services","B1501","18/07/2017","47020438 - 0","485.66","Revenue","20002402","SOUTHERN ELECTRIC PLC"
"OCC","Housing Services","B1502","18/07/2017","47020491 - 0","416.8","Revenue","20002402","SOUTHERN ELECTRIC PLC"
"OCC","Housing Services","B1502","18/07/2017","47020492 - 1","433.48","Revenue","20002402","SOUTHERN ELECTRIC PLC"
"OCC","Housing Services","B1502","18/07/2017","47020533 - 1","1561.32","Revenue","20007602","TOTAL GAS & POWER LTD"
"OCC","Housing Services","B1501","18/07/2017","47020561 - 1","3903.53","Revenue","20011411","NPOWER"
"OCC","Housing Services","B1501","18/07/2017","47020565 - 0","2883.32","Revenue","20011411","NPOWER"
"OCC","Housing Services","B1830","01/08/2017","47021025 - 1","1908.71","Revenue","20019401","CASTLE WATER"
"OCC","Housing Services","B1830","01/08/2017","47021026 - 0","1699.86","Revenue","20019401","CASTLE WATER"
"OCC","Housing Services","B1502","22/08/2017","47021072 - 1","649.42","Revenue","20007602","TOTAL GAS & POWER LTD"
"OCC","Housing Services","B1501","22/08/2017","47021104 - 0","1091.77","Revenue","20002402","SOUTHERN ELECTRIC PLC"
"OCC","Housing Services","B1501","22/08/2017","47021105 - 1","928.74","Revenue","20002402","SOUTHERN ELECTRIC PLC"
"OCC","Housing Services","B1501","22/08/2017","47021311 - 1","3891.27","Revenue","20011411","NPOWER"
"OCC","Housing Services","B1501","22/08/2017","47021315 - 1","2848.77","Revenue","20011411","NPOWER"
"OCC","Housing Services","B1501","19/09/2017","47021554 - 1","940.26","Revenue","20002402","SOUTHERN ELECTRIC PLC"
"OCC","Housing Services","B1501","19/09/2017","47021556 - 1","1046","Revenue","20002402","SOUTHERN ELECTRIC PLC"
"OCC","Housing Services","B1830","19/09/2017","47021601 - 1","2132.35","Revenue","20019401","CASTLE WATER"
"OCC","Housing Services","B1502","26/09/2017","47021646 - 1","576.1","Revenue","20007602","TOTAL GAS & POWER LTD"
"OCC","Housing Services","B1501","26/09/2017","47021661 - 0","3790.4","Revenue","20011411","NPOWER"
"OCC","Housing Services","B1501","26/09/2017","47021665 - 0","2897.12","Revenue","20011411","NPOWER"
"OCC","Housing Services","Y001","18/07/2017","48021832 - 1","9500","Capital","20016580","HMRC"
"OCC","Housing Services","Y001","25/07/2017","48021833 - 1","8500","Capital","20016580","HMRC"
"OCC","Housing Services","Y001","05/09/2017","48021837 - 1","3750","Capital","20016580","HMRC"
"OCC","Community Services","D3001","04/07/2017","1036762 - 1","1101","Revenue","20002110","BROXAP LIMITED"
"OCC","Community Services","D3401","11/07/2017","1038206 - 0","480","Revenue","20016989","BACKSTAGE SUPPLIES LTD"
"OCC","Community Services","D3401","11/07/2017","1038289 - 0","850","Revenue","20005968","WESLEY MEMORIAL METHODIST CHR"
"OCC","Community Services","D3411","11/07/2017","1038315 - 0","1670","Revenue","20019317","NEIL STEVENSON"
"OCC","Community Services","D3401","18/07/2017","1038322 - 0","2707.6","Revenue","20018238","ORIGIN TECHNICAL PRODUCTIONS"
"OCC","Community Services","D3418","11/07/2017","1038341 - 0","430.5","Revenue","20018420","SHOWSEC INTERNATIONAL LTD"
"OCC","Community Services","D3418","11/07/2017","1038342 - 0","566","Revenue","20018420","SHOWSEC INTERNATIONAL LTD"
"OCC","Community Services","D3701","04/07/2017","1038347 - 0","12500","Revenue","20015597","OXFORDSHIRE MIND"
"OCC","Community Services","Y021","18/07/2017","1038366 - 0","665","Capital","20013257","CITY INSULATION CONTRACTORS LIMITED"
"OCC","Community Services","D3701","04/07/2017","1038389 - 0","15000","Revenue","20011006","ASPIRE OXFORDSHIRE COMMUNITY ENTERPRISE LTD"
"OCC","Community Services","D3401","18/07/2017","1038423 - 0","21608.25","Revenue","20016382","BLACHERE ILLUMINATION"
"OCC","Community Services","D3101","04/07/2017","1038435 - 0","613.05","Revenue","20017894","OTHC LEMON ZEST"
"OCC","Community Services","D3104","04/07/2017","1038435 - 1","3857.79","Revenue","20017894","OTHC LEMON ZEST"
"OCC","Community Services","D3401","04/07/2017","1038441 - 0","1295","Revenue","20013923","SUTCLIFFE PLAY SOUTH WEST"
"OCC","Community Services","B1601","18/07/2017","1038451 - 0","463.46","Revenue","20016920","ALLIANCE DISPOSABLES LTD"
"OCC","Community Services","D3104","11/07/2017","1038452 - 0","1637.33","Revenue","20017894","OTHC LEMON ZEST"
"OCC","Community Services","D3418","04/07/2017","1038468 - 0","1545","Revenue","20009730","R & R FRONTLINE SERVICES LTD"
"OCC","Community Services","B1602","04/07/2017","1038470 - 0","1620","Revenue","20018746","FLOOR RESTORE OXFORD LTD"
"OCC","Community Services","Y021","04/07/2017","1038510 - 0","2800","Capital","20018107","PURCELL MILLER TRITTON LLP T/A PURCELL"
"OCC","Community Services","D3411","04/07/2017","1038511 - 0","1973.8","Revenue","20018107","PURCELL MILLER TRITTON LLP T/A PURCELL"
"OCC","Community Services","D3401","11/07/2017","1038512 - 0","453","Revenue","20008015","M TECH COMUNICATIONS BRISTOL LTD"
"OCC","Community Services","D3802","11/07/2017","1038530 - 0","630","Revenue","20018450","CLEAR AND CREATIVE COMMUNICATIONS"
"OCC","Community Services","D3401","11/07/2017","1038599 - 0","1350","Revenue","20016981","SCOPE SECURITY LTD"
"OCC","Community Services","D3001","01/08/2017","1038630 - 0","1480","Revenue","20015868","RISKEX LIMITED"
"OCC","Community Services","D3411","25/07/2017","1038633 - 0","1470","Revenue","20019305","BELVEDERE PROJECT SOLUTIONS LLP"
"OCC","Community Services","D3413","18/07/2017","1038646 - 0","1980","Revenue","20002930","OXFORDSHIRE COUNTY COUNCIL"
"OCC","Community Services","D3401","25/07/2017","1038671 - 0","885","Revenue","20017816","ENGLISH NATIONAL BALLET"
"OCC","Community Services","D3413","18/07/2017","1038674 - 0","3238","Revenue","20002893","CHERWELL DISTRICT COUNCIL"
"OCC","Community Services","D3413","18/07/2017","1038675 - 0","3000","Revenue","20002893","CHERWELL DISTRICT COUNCIL"
"OCC","Community Services","D3418","25/07/2017","1038676 - 0","600","Revenue","20009730","R & R FRONTLINE SERVICES LTD"
"OCC","Community Services","D3418","25/07/2017","1038677 - 0","493.75","Revenue","20009730","R & R FRONTLINE SERVICES LTD"
"OCC","Community Services","D3411","01/08/2017","1038679 - 1","1670","Revenue","20019317","NEIL STEVENSON"
"OCC","Community Services","B1103","18/07/2017","1038686 - 0","2460","Revenue","20015211","FUSION LIFESTYLE"
"OCC","Community Services","D3418","25/07/2017","1038702 - 0","566","Revenue","20018420","SHOWSEC INTERNATIONAL LTD"
"OCC","Community Services","D3418","25/07/2017","1038703 - 0","566","Revenue","20018420","SHOWSEC INTERNATIONAL LTD"
"OCC","Community Services","D3418","25/07/2017","1038713 - 0","4542.75","Revenue","20016981","SCOPE SECURITY LTD"
"OCC","Community Services","D3401","18/07/2017","1038715 - 0","585","Revenue","20016215","BODY POLITIC DANCE LTD"
"OCC","Community Services","D3401","18/07/2017","1038728 - 0","750","Revenue","20018450","CLEAR AND CREATIVE COMMUNICATIONS"
"OCC","Community Services","D3802","18/07/2017","1038728 - 1","217","Revenue","20018450","CLEAR AND CREATIVE COMMUNICATIONS"
"OCC","Community Services","D3101","08/08/2017","1038759 - 0","725.8","Revenue","20009346","BUNNY'S"
"OCC","Community Services","D3401","01/08/2017","1038773 - 0","1118","Revenue","20016197","THE KING'S CENTRE LTD"
"OCC","Community Services","D3418","25/07/2017","1038782 - 0","566","Revenue","20018420","SHOWSEC INTERNATIONAL LTD"
"OCC","Community Services","B1601","01/08/2017","1038784 - 0","557.36","Revenue","20003172","RENTOKIL INITIAL SERVICES NO1"
"OCC","Community Services","D3001","08/08/2017","1038791 - 0","2495","Revenue","20018729","VIPA UK LTD"
"OCC","Community Services","D3001","08/08/2017","1038791 - 1","1247.5","Revenue","20018729","VIPA UK LTD"
"OCC","Community Services","D3001","08/08/2017","1038791 - 2","1247.5","Revenue","20018729","VIPA UK LTD"
"OCC","Community Services","D3411","01/08/2017","1038797 - 0","4027.35","Revenue","20019399","WENDY FLINT"
"OCC","Community Services","Y021","15/08/2017","1038860 - 0","5996","Capital","20015951","MACE LIMITED"
"OCC","Community Services","Y021","08/08/2017","1038861 - 0","5996","Capital","20015951","MACE LIMITED"
"OCC","Community Services","Y021","08/08/2017","1038862 - 0","5996","Capital","20015951","MACE LIMITED"
"OCC","Community Services","Y021","08/08/2017","1038863 - 0","7419.92","Capital","20015951","MACE LIMITED"
"OCC","Community Services","Y021","08/08/2017","1038864 - 0","5996","Capital","20015951","MACE LIMITED"
"OCC","Community Services","Y021","08/08/2017","1038865 - 0","5996","Capital","20015951","MACE LIMITED"
"OCC","Community Services","D3001","25/07/2017","1038868 - 0","510","Revenue","20018743","OXFORD SOUND & MEDIA"
"OCC","Community Services","D3401","08/08/2017","1038871 - 0","7630","Revenue","20017887","CREATE DEVELOPMENT"
"OCC","Community Services","D3401","25/07/2017","1038874 - 0","995","Revenue","20009676","FOOL'S PARADISE LTD"
"OCC","Community Services","D3102","01/08/2017","1038879 - 0","429","Revenue","20015952","COOLERAID LTD"
"OCC","Community Services","D3401","08/08/2017","1038914 - 0","750","Revenue","20019655","SATELLITE FILMS LTD"
"OCC","Community Services","D3401","08/08/2017","1038915 - 0","598.5","Revenue","20014881","GLL (GREENWICH LEISURE LTD)"
"OCC","Community Services","D3401","25/07/2017","1038932 - 0","605","Revenue","20014907","TEI WILLIAMS PRESS & ARTS MARKETING"
"OCC","Community Services","D3401","25/07/2017","1038933 - 0","475","Revenue","20014621","LAMPS & TUBES ILLUMINATIONS LTD"
"OCC","Community Services","D3418","08/08/2017","1038936 - 0","566","Revenue","20018420","SHOWSEC INTERNATIONAL LTD"
"OCC","Community Services","B1601","08/08/2017","1038977 - 0","686.2","Revenue","20000270","THE SHIELD GROUP"
"OCC","Community Services","D3413","25/07/2017","1038984 - 0","2760","Revenue","20002930","OXFORDSHIRE COUNTY COUNCIL"
"OCC","Community Services","D3803","25/07/2017","1038995 - 0","625","Revenue","20018559","THE OXFORD BAR COMPANY LTD"
"OCC","Community Services","D3401","25/07/2017","1038998 - 0","750","Revenue","20016987","SOLE REBEL TAP"
"OCC","Community Services","D3401","15/08/2017","1039000 - 0","1350","Revenue","20019632","C-12 DANCE THEATRE"
"OCC","Community Services","D3401","08/08/2017","1039009 - 0","1500","Revenue","20019649","JAMES WILTON DANCE LTD."
"OCC","Community Services","B1103","25/07/2017","1039011 - 0","2149","Revenue","20015211","FUSION LIFESTYLE"
"OCC","Community Services","B1602","01/08/2017","1039026 - 0","783.39","Revenue","20003172","RENTOKIL INITIAL SERVICES NO1"
"OCC","Community Services","D3102","15/08/2017","1039030 - 0","572","Revenue","20015952","COOLERAID LTD"
"OCC","Community Services","B1101","01/08/2017","1039035 - 0","714","Revenue","20018479","GET SUPPORT IT SERVICES LIMITED"
"OCC","Community Services","D3413","15/08/2017","1039049 - 0","500","Revenue","20009599","ABINGDON & WITNEY COLLEGE"
"OCC","Community Services","D3701","01/08/2017","1039059 - 0","1840","Revenue","20016933","OXFORD HEALTH NHS FOUNDATION TRUST"
"OCC","Community Services","D3104","01/08/2017","1039075 - 0","5236.47","Revenue","20017894","OTHC LEMON ZEST"
"OCC","Community Services","D3101","01/08/2017","1039075 - 1","2100.75","Revenue","20017894","OTHC LEMON ZEST"
"OCC","Community Services","D3418","15/08/2017","1039076 - 0","566","Revenue","20018420","SHOWSEC INTERNATIONAL LTD"
"OCC","Community Services","D3401","08/08/2017","1039083 - 0","585","Revenue","20016215","BODY POLITIC DANCE LTD"
"OCC","Community Services","D3401","01/08/2017","1039141 - 0","1500","Revenue","20019487","JONATHAN RUFFLE T/A FRESH FX"
"OCC","Community Services","D3701","08/08/2017","1039182 - 0","1500","Revenue","20004327","THE PORCH"
"OCC","Community Services","D3418","22/08/2017","1039235 - 0","566","Revenue","20018420","SHOWSEC INTERNATIONAL LTD"
"OCC","Community Services","D3418","30/08/2017","1039236 - 0","566","Revenue","20018420","SHOWSEC INTERNATIONAL LTD"
"OCC","Community Services","D3807","08/08/2017","1039237 - 0","676","Revenue","20019318","RJCC EVENTS"
"OCC","Community Services","D3101","22/08/2017","1039244 - 0","882.5","Revenue","20009224","LAMB CATERING LTD"
"OCC","Community Services","D3411","08/08/2017","1039260 - 0","3500","Revenue","20019294","Simon Leach Design"
"OCC","Community Services","D3401","22/08/2017","1039268 - 0","450","Revenue","20019272","DIVERSITI UK"
"OCC","Community Services","D3411","08/08/2017","1039269 - 0","3500","Revenue","20019294","Simon Leach Design"
"OCC","Community Services","D3705","22/08/2017","1039277 - 0","1000","Revenue","20018503","THE GIFT VOUCHER SHOP"
"OCC","Community Services","D3411","22/08/2017","1039307 - 0","1670","Revenue","20019317","NEIL STEVENSON"
"OCC","Community Services","D3413","15/08/2017","1039319 - 0","1515","Revenue","20002930","OXFORDSHIRE COUNTY COUNCIL"
"OCC","Community Services","D3001","15/08/2017","1039322 - 0","1439.9","Revenue","20008520","NEWAUTO LTD"
"OCC","Community Services","D3401","15/08/2017","1039326 - 0","1350","Revenue","20016981","SCOPE SECURITY LTD"
"OCC","Community Services","A0622","22/08/2017","1039336 - 0","742.5","Revenue","20018929","AQUILA TRAINING SERVICES LTD"
"OCC","Community Services","Y021","15/08/2017","1039349 - 0","1600","Capital","20018107","PURCELL MILLER TRITTON LLP T/A PURCELL"
"OCC","Community Services","D3411","15/08/2017","1039350 - 0","1695","Revenue","20018107","PURCELL MILLER TRITTON LLP T/A PURCELL"
"OCC","Community Services","D3802","22/08/2017","1039408 - 0","695","Revenue","20013044","THE DESIGN PLACE"
"OCC","Community Services","D3001","19/09/2017","1039412 - 0","646.8","Revenue","20019075","SCM (WYCOMBE) LTD"
"OCC","Community Services","D3418","05/09/2017","1039423 - 0","3655","Revenue","20009730","R & R FRONTLINE SERVICES LTD"
"OCC","Community Services","D3413","15/08/2017","1039431 - 0","1335","Revenue","20002930","OXFORDSHIRE COUNTY COUNCIL"
"OCC","Community Services","D3401","05/09/2017","1039450 - 0","1920","Revenue","20014306","INSTITUTE OF LICENSING"
"OCC","Community Services","D3401","30/08/2017","1039459 - 0","750","Revenue","20017816","ENGLISH NATIONAL BALLET"
"OCC","Community Services","D3418","30/08/2017","1039486 - 0","675","Revenue","20009730","R & R FRONTLINE SERVICES LTD"
"OCC","Community Services","D3401","30/08/2017","1039496 - 0","585","Revenue","20016215","BODY POLITIC DANCE LTD"
"OCC","Community Services","D3411","30/08/2017","1039509 - 0","1470","Revenue","20019305","BELVEDERE PROJECT SOLUTIONS LLP"
"OCC","Community Services","D3811","05/09/2017","1039518 - 0","1161.21","Revenue","20018260","K R JOHNSTON"
"OCC","Community Services","Y021","22/08/2017","1039537 - 0","1200","Capital","20018107","PURCELL MILLER TRITTON LLP T/A PURCELL"
"OCC","Community Services","D3401","30/08/2017","1039591 - 0","1467.15","Revenue","20017047","COMPANY CHAMELEON LTD"
"OCC","Community Services","D3802","30/08/2017","1039620 - 0","849","Revenue","20016119","HITCHED LTD"
"OCC","Community Services","D3001","30/08/2017","1039640 - 0","666.67","Revenue","20019544","THAT EVENT COMPANY LTD"
"OCC","Community Services","D3401","05/09/2017","1039655 - 0","504","Revenue","20003842","LITTLEMORE COMMUNITY ASSOCIATION"
"OCC","Community Services","D3401","05/09/2017","1039656 - 0","829","Revenue","20003842","LITTLEMORE COMMUNITY ASSOCIATION"
"OCC","Community Services","D3401","19/09/2017","1039666 - 0","1147.78","Revenue","20002568","PYROTEC SERVICES LTD"
"OCC","Community Services","D3411","12/09/2017","1039674 - 0","1800","Revenue","20019300","Katie Norgrove T/A Cultural Consulting"
"OCC","Community Services","D3401","05/09/2017","1039692 - 0","745","Revenue","20005802","WDS SIGNS LTD"
"OCC","Community Services","D3418","05/09/2017","1039704 - 0","4212","Revenue","20016981","SCOPE SECURITY LTD"
"OCC","Community Services","Y021","05/09/2017","1039723 - 0","84700","Capital","20015211","FUSION LIFESTYLE"
"OCC","Community Services","B1103","19/09/2017","1039724 - 0","2769","Revenue","20015211","FUSION LIFESTYLE"
"OCC","Community Services","D3101","05/09/2017","1039727 - 0","494.35","Revenue","20017894","OTHC LEMON ZEST"
"OCC","Community Services","D3104","05/09/2017","1039727 - 1","4549.43","Revenue","20017894","OTHC LEMON ZEST"
"OCC","Community Services","A0108","05/09/2017","1039728 - 0","1770","Revenue","20018218","THE SPORT FOR STREETS INITIATIVE"
"OCC","Community Services","D3513","05/09/2017","1039738 - 1","440.6","Revenue","20016679","AMA BUSINESS SYSTEMS LTD"
"OCC","Community Services","B1601","19/09/2017","1039743 - 0","492.06","Revenue","20018021","UNISAN"
"OCC","Community Services","B1601","05/09/2017","1039752 - 0","595.21","Revenue","20016920","ALLIANCE DISPOSABLES LTD"
"OCC","Community Services","D3401","05/09/2017","1039763 - 0","2038.04","Revenue","20015780","UNDER CONSTRUCTION THEATRE"
"OCC","Community Services","D3804","12/09/2017","1039770 - 0","2200","Revenue","20016534","COUNTY SPORTS PARTNERSHIP NETWORK"
"OCC","Community Services","Y021","05/09/2017","1039772 - 0","5996","Capital","20015951","MACE LIMITED"
"OCC","Community Services","Y021","05/09/2017","1039773 - 0","4558","Capital","20015951","MACE LIMITED"
"OCC","Community Services","D3411","26/09/2017","1039797 - 0","1470","Revenue","20019305","BELVEDERE PROJECT SOLUTIONS LLP"
"OCC","Community Services","D3411","12/09/2017","1039807 - 0","1670","Revenue","20019317","NEIL STEVENSON"
"OCC","Community Services","D3401","12/09/2017","1039835 - 0","500","Revenue","20015250","OXFORD PHILHARMONIC ORCHESTRA TRUST"
"OCC","Community Services","Y000","19/09/2017","1039901 - 0","1440","Capital","20018257","PARK TENNIS CIC"
"OCC","Community Services","Y000","19/09/2017","1039902 - 0","2900","Capital","20018257","PARK TENNIS CIC"
"OCC","Community Services","D3401","19/09/2017","1039950 - 0","4000","Revenue","20012587","OXFORD DANCE FORUM"
"OCC","Community Services","D3001","26/09/2017","1039954 - 0","1606","Revenue","20003374","CITY AUDIO VISUAL"
"OCC","Community Services","D3411","19/09/2017","1039967 - 0","10000","Revenue","20019429","OXFORD IMPACT CONSULTANCY"
"OCC","Community Services","B1103","26/09/2017","1039968 - 0","2893.32","Revenue","20015973","CBG CONSULTANTS LTD"
"OCC","Community Services","D3411","19/09/2017","1039969 - 0","6911.5","Revenue","20016762","IAN NOLAN EVENTS LTD"
"OCC","Community Services","D3411","19/09/2017","1040017 - 0","2000","Revenue","20019304","Marilyn Scott"
"OCC","Community Services","D3401","19/09/2017","1040049 - 0","560","Revenue","20002085","FUSION-OXFORD'S COMMUNITY ARTS AGENCY LIMITED"
"OCC","Community Services","D3401","19/09/2017","1040072 - 0","1833.34","Revenue","20019636","OXFORD CRUISERS LTD"
"OCC","Community Services","D3602","19/09/2017","1040073 - 1","549.5","Revenue","20009350","APSE"
"OCC","Community Services","D3301","19/09/2017","1040077 - 0","420.46","Revenue","20007849","LYRECO UK LTD"
"OCC","Community Services","D3401","19/09/2017","1040083 - 0","1350","Revenue","20016981","SCOPE SECURITY LTD"
"OCC","Community Services","D3401","26/09/2017","1040115 - 0","4299.8","Revenue","20015211","FUSION LIFESTYLE"
"OCC","Community Services","D3413","26/09/2017","1040123 - 0","2000","Revenue","20019090","OXFORDSHIRE CRICKET"
"OCC","Community Services","B1601","26/09/2017","1040156 - 0","557.36","Revenue","20003172","RENTOKIL INITIAL SERVICES NO1"
"OCC","Community Services","D3401","26/09/2017","1040168 - 0","500","Revenue","20014907","TEI WILLIAMS PRESS & ARTS MARKETING"
"OCC","Community Services","Y021","26/09/2017","1040169 - 0","13130","Capital","20015951","MACE LIMITED"
"OCC","Community Services","D3401","26/09/2017","1040191 - 0","585","Revenue","20016215","BODY POLITIC DANCE LTD"
"OCC","Community Services","D3418","26/09/2017","1040210 - 0","566","Revenue","20018420","SHOWSEC INTERNATIONAL LTD"
"OCC","Community Services","D3418","26/09/2017","1040211 - 0","566","Revenue","20018420","SHOWSEC INTERNATIONAL LTD"
"OCC","Community Services","D3418","26/09/2017","1040212 - 0","566","Revenue","20018420","SHOWSEC INTERNATIONAL LTD"
"OCC","Community Services","D3418","26/09/2017","1040213 - 0","452.8","Revenue","20018420","SHOWSEC INTERNATIONAL LTD"
"OCC","Community Services","D3702","04/07/2017","46294298 - 1","500","Revenue","20009717","ARK T CENTRE"
"OCC","Community Services","D3702","04/07/2017","46294299 - 1","1000","Revenue","20015863","COWLEY ROAD WORKS (EAST OXFORD ACTION CHARITY)"
"OCC","Community Services","D3702","04/07/2017","46294329 - 1","500","Revenue","20009538","CUTTESLOWE COMMUNITY ASSOCIATION"
"OCC","Community Services","D3701","04/07/2017","46294330 - 1","5000","Revenue","20010071","SOUTH OXFORD ADVENTURE PLAY GROUND"
"OCC","Community Services","D3701","11/07/2017","46294403 - 1","2000","Revenue","20004720","THE ARCHWAY FOUNDATION"
"OCC","Community Services","Y021","11/07/2017","46294410 - 1","3000","Capital","20000000","GENERAL EXPENSES"
"OCC","Community Services","D3701","18/07/2017","46294448 - 1","50000","Revenue","20008184","CITIZENS ADVICE BUREAU"
"OCC","Community Services","A0108","18/07/2017","46294455 - 13","1832.52","Revenue","20018053","REED SPECIALIST RECRUITMENT LTD"
"OCC","Community Services","A0108","18/07/2017","46294455 - 25","1748.91","Revenue","20018053","REED SPECIALIST RECRUITMENT LTD"
"OCC","Community Services","A0108","18/07/2017","46294455 - 32","602.28","Revenue","20018053","REED SPECIALIST RECRUITMENT LTD"
"OCC","Community Services","A0108","18/07/2017","46294455 - 35","1131.39","Revenue","20018053","REED SPECIALIST RECRUITMENT LTD"
"OCC","Community Services","A0108","18/07/2017","46294455 - 37","224.79","Revenue","20018053","REED SPECIALIST RECRUITMENT LTD"
"OCC","Community Services","A0108","18/07/2017","46294455 - 42","1.57","Revenue","20018053","REED SPECIALIST RECRUITMENT LTD"
"OCC","Community Services","D3701","18/07/2017","46294469 - 1","20055.07","Revenue","20010077","BLACKBIRD LEYS N""HOOD SUPPORT SCHEME"
"OCC","Community Services","D3701","18/07/2017","46294483 - 1","8907.5","Revenue","20004323","ELMORE COMMUNITY SERVICES"
"OCC","Community Services","D3701","18/07/2017","46294484 - 1","13750","Revenue","20004327","THE PORCH"
"OCC","Community Services","D3701","18/07/2017","46294485 - 1","19405.75","Revenue","20011006","ASPIRE OXFORDSHIRE COMMUNITY ENTERPRISE LTD"
"OCC","Community Services","D3701","18/07/2017","46294503 - 1","3750","Revenue","20014454","EMMAUS OXFORD (STORE) LIMITED"
"OCC","Community Services","D3701","18/07/2017","46294504 - 1","1395","Revenue","20004324","THE GATEHOUSE"
"OCC","Community Services","D3411","25/07/2017","46294506 - 5","57","Revenue","20011499","TOPS"
"OCC","Community Services","D3411","25/07/2017","46294506 - 15","57","Revenue","20011499","TOPS"
"OCC","Community Services","D3701","18/07/2017","46294537 - 1","11962.5","Revenue","20008698","OXFORD HOMELESS PATHWAYS"
"OCC","Community Services","D3701","18/07/2017","46294538 - 1","625","Revenue","20016020","BIG ISSUE FOUNDATION"
"OCC","Community Services","D3701","18/07/2017","46294539 - 1","13750","Revenue","20004327","THE PORCH"
"OCC","Community Services","D3701","01/08/2017","46294540 - 1","2456.25","Revenue","20019143","ST MUNGOS"
"OCC","Community Services","D3702","18/07/2017","46294549 - 1","9399","Revenue","20008184","CITIZENS ADVICE BUREAU"
"OCC","Community Services","D3702","18/07/2017","46294553 - 1","500","Revenue","20000000","GENERAL EXPENSES"
"OCC","Community Services","D3702","18/07/2017","46294556 - 1","500","Revenue","20009161","ROSE HILL & DONNINGTON ADVICE CENTRE LTD"
"OCC","Community Services","D3701","25/07/2017","46294586 - 1","17000","Revenue","20009131","FILM OXFORD"
"OCC","Community Services","D3701","25/07/2017","46294587 - 1","3000","Revenue","20009538","CUTTESLOWE COMMUNITY ASSOCIATION"
"OCC","Community Services","D3701","25/07/2017","46294618 - 1","20694.5","Revenue","20008698","OXFORD HOMELESS PATHWAYS"
"OCC","Community Services","D3701","25/07/2017","46294619 - 1","13725.75","Revenue","20008698","OXFORD HOMELESS PATHWAYS"
"OCC","Community Services","D3702","25/07/2017","46294623 - 1","800","Revenue","20000019","GRANT PAYMENTS"
"OCC","Community Services","D3702","25/07/2017","46294649 - 1","900","Revenue","20000019","GRANT PAYMENTS"
"OCC","Community Services","D3701","08/08/2017","46294689 - 1","3125","Revenue","20016020","BIG ISSUE FOUNDATION"
"OCC","Community Services","D3701","01/08/2017","46294693 - 1","1000","Revenue","20000019","GRANT PAYMENTS"
"OCC","Community Services","D3701","01/08/2017","46294694 - 1","750","Revenue","20000019","GRANT PAYMENTS"
"OCC","Community Services","D3702","01/08/2017","46294698 - 1","8074.79","Revenue","20008991","ST JOHNS COLLEGE"
"OCC","Community Services","D3701","01/08/2017","46294711 - 1","734","Revenue","20000019","GRANT PAYMENTS"
"OCC","Community Services","D3702","01/08/2017","46294723 - 1","150","Revenue","20000019","GRANT PAYMENTS"
"OCC","Community Services","D3702","01/08/2017","46294723 - 2","350","Revenue","20000019","GRANT PAYMENTS"
"OCC","Community Services","D3418","01/08/2017","46294733 - 1","566","Revenue","20009730","R & R FRONTLINE SERVICES LTD"
"OCC","Community Services","D3702","08/08/2017","46294752 - 1","500","Revenue","20000019","GRANT PAYMENTS"
"OCC","Community Services","D3701","08/08/2017","46294763 - 1","500","Revenue","20000019","GRANT PAYMENTS"
"OCC","Community Services","D3701","15/08/2017","46294872 - 1","21869.5","Revenue","20009161","ROSE HILL & DONNINGTON ADVICE CENTRE LTD"
"OCC","Community Services","D3701","15/08/2017","46294873 - 1","22000","Revenue","20012189","PEGASUS THEATRE TRUST LIMITED"
"OCC","Community Services","D3701","15/08/2017","46294874 - 1","600","Revenue","20019678","NIGERIAN COMMUNITY IN OXFORDSHIRE"
"OCC","Community Services","A0965","15/08/2017","46294878 - 2","1.5","Revenue","20014779","CYCLESCHEME LIMITED"
"OCC","Community Services","A0965","15/08/2017","46294878 - 3","1.5","Revenue","20014779","CYCLESCHEME LIMITED"
"OCC","Community Services","D3411","30/08/2017","46294879 - 4","84","Revenue","20011499","TOPS"
"OCC","Community Services","D3411","30/08/2017","46294879 - 12","168","Revenue","20011499","TOPS"
"OCC","Community Services","D3701","15/08/2017","46294968 - 1","537","Revenue","20000000","GENERAL EXPENSES"
"OCC","Community Services","D3701","15/08/2017","46294969 - 1","537","Revenue","20000000","GENERAL EXPENSES"
"OCC","Community Services","D3701","22/08/2017","46294984 - 1","742.5","Revenue","20016775","THE OXFORD ACADEMY"
"OCC","Community Services","D3701","15/08/2017","46294986 - 1","1500","Revenue","20009385","THE PARASOL PROJECT"
"OCC","Community Services","D3701","15/08/2017","46294987 - 1","3000","Revenue","20012642","JSC"
"OCC","Community Services","D3701","15/08/2017","46294988 - 1","4545","Revenue","20012642","JSC"
"OCC","Community Services","D3701","15/08/2017","46294989 - 1","2398.17","Revenue","20009501","THE LEYS CDI"
"OCC","Community Services","D3701","22/08/2017","46295005 - 1","70178.6","Revenue","20019143","ST MUNGOS"
"OCC","Community Services","D3701","12/09/2017","46295006 - 1","70178.6","Revenue","20019143","ST MUNGOS"
"OCC","Community Services","D3703","22/08/2017","46295010 - 1","720","Revenue","20018092","SUBSTANCE 2005 LTD"
"OCC","Community Services","D3602","22/08/2017","46295012 - 1","875","Revenue","20014717","CSP NATIONAL NETWORK"
"OCC","Community Services","D3701","22/08/2017","46295018 - 1","1000","Revenue","20011181","OXFORD INTERNATIONAL LINKS"
"OCC","Community Services","D3701","22/08/2017","46295018 - 2","14000","Revenue","20011181","OXFORD INTERNATIONAL LINKS"
"OCC","Community Services","A0108","22/08/2017","46295029 - 1","435.6","Revenue","20018053","REED SPECIALIST RECRUITMENT LTD"
"OCC","Community Services","A0108","22/08/2017","46295029 - 6","1769.52","Revenue","20018053","REED SPECIALIST RECRUITMENT LTD"
"OCC","Community Services","A0108","22/08/2017","46295029 - 7","3012.54","Revenue","20018053","REED SPECIALIST RECRUITMENT LTD"
"OCC","Community Services","A0108","22/08/2017","46295029 - 19","2308.86","Revenue","20018053","REED SPECIALIST RECRUITMENT LTD"
"OCC","Community Services","A0108","22/08/2017","46295029 - 27","0.6","Revenue","20018053","REED SPECIALIST RECRUITMENT LTD"
"OCC","Community Services","A0108","22/08/2017","46295029 - 45","1595.85","Revenue","20018053","REED SPECIALIST RECRUITMENT LTD"
"OCC","Community Services","D3701","22/08/2017","46295039 - 1","13725.75","Revenue","20008698","OXFORD HOMELESS PATHWAYS"
"OCC","Community Services","D3701","22/08/2017","46295040 - 1","20694.5","Revenue","20008698","OXFORD HOMELESS PATHWAYS"
"OCC","Community Services","D3701","22/08/2017","46295041 - 1","11962.5","Revenue","20008698","OXFORD HOMELESS PATHWAYS"
"OCC","Community Services","D3701","22/08/2017","46295042 - 1","37498.5","Revenue","20008698","OXFORD HOMELESS PATHWAYS"
"OCC","Community Services","D3701","22/08/2017","46295043 - 1","12499.5","Revenue","20008698","OXFORD HOMELESS PATHWAYS"
"OCC","Community Services","D3701","30/08/2017","46295066 - 1","500","Revenue","20009449","OXFORDSHIRE PLAY ASSOCIATION"
"OCC","Community Services","D3401","30/08/2017","46295072 - 1","20000","Revenue","20003616","THAMES VALLEY POLICE AUTHORITY"
"OCC","Community Services","D3701","30/08/2017","46295082 - 1","10934","Revenue","20012251","OXFORDSHIRE COMMUNITY VOLUNTARY ACTION (OCVA)"
"OCC","Community Services","D3701","30/08/2017","46295083 - 1","26311","Revenue","20015408","A2 DOMINION NORTH LTD"
"OCC","Community Services","D3701","30/08/2017","46295084 - 1","2001.3","Revenue","20014469","ADAM FRENCH"
"OCC","Community Services","D3401","30/08/2017","46295085 - 1","525","Revenue","20000019","GRANT PAYMENTS"
"OCC","Community Services","D3702","30/08/2017","46295087 - 1","500","Revenue","20009273","ASYLUM WELCOME"
"OCC","Community Services","D3702","30/08/2017","46295088 - 1","1500","Revenue","20016942","CHERWELL PUBLISHING SERVICES LTD"
"OCC","Community Services","D3701","30/08/2017","46295090 - 1","2735.85","Revenue","20014469","ADAM FRENCH"
"OCC","Community Services","D3701","30/08/2017","46295091 - 1","3000","Revenue","20014469","ADAM FRENCH"
"OCC","Community Services","D3702","30/08/2017","46295109 - 1","500","Revenue","20000000","GENERAL EXPENSES"
"OCC","Community Services","D3411","26/09/2017","46295190 - 3","84","Revenue","20011499","TOPS"
"OCC","Community Services","D3411","26/09/2017","46295190 - 14","99","Revenue","20011499","TOPS"
"OCC","Community Services","A0108","12/09/2017","46295239 - 16","2386.42","Revenue","20018053","REED SPECIALIST RECRUITMENT LTD"
"OCC","Community Services","A0108","12/09/2017","46295239 - 23","1353.8","Revenue","20018053","REED SPECIALIST RECRUITMENT LTD"
"OCC","Community Services","A0108","12/09/2017","46295239 - 26","1574.43","Revenue","20018053","REED SPECIALIST RECRUITMENT LTD"
"OCC","Community Services","A0108","12/09/2017","46295239 - 30","435.63","Revenue","20018053","REED SPECIALIST RECRUITMENT LTD"
"OCC","Community Services","A0108","12/09/2017","46295239 - 34","1769.52","Revenue","20018053","REED SPECIALIST RECRUITMENT LTD"
"OCC","Community Services","A0108","12/09/2017","46295239 - 38","869.25","Revenue","20018053","REED SPECIALIST RECRUITMENT LTD"
"OCC","Community Services","D3701","26/09/2017","46295329 - 1","742.5","Revenue","20016775","THE OXFORD ACADEMY"
"OCC","Community Services","D3701","26/09/2017","46295330 - 1","1515","Revenue","20012642","JSC"
"OCC","Community Services","D3701","26/09/2017","46295331 - 1","1000","Revenue","20012642","JSC"
"OCC","Community Services","D3701","26/09/2017","46295332 - 1","911.95","Revenue","20014469","ADAM FRENCH"
"OCC","Community Services","D3701","26/09/2017","46295333 - 1","667.1","Revenue","20014469","ADAM FRENCH"
"OCC","Community Services","D3701","26/09/2017","46295334 - 1","1000","Revenue","20014469","ADAM FRENCH"
"OCC","Community Services","D3701","22/09/2017","46295335 - 1","1500","Revenue","20014213","ST GREGORY THE GREAT SCHOOL"
"OCC","Community Services","D3701","26/09/2017","46295346 - 1","10000","Revenue","20015863","COWLEY ROAD WORKS (EAST OXFORD ACTION CHARITY)"
"OCC","Community Services","D3401","26/09/2017","46295348 - 1","999","Revenue","20018891","OXFORD AGAINST CUTTING"
"OCC","Community Services","D3701","26/09/2017","46295350 - 1","998","Revenue","20017198","OXFORD POLISH ASSOCIATION"
"OCC","Community Services","B1501","18/07/2017","47020441 - 1","1361.58","Revenue","20002402","SOUTHERN ELECTRIC PLC"
"OCC","Community Services","B1501","18/07/2017","47020443 - 1","779.24","Revenue","20002402","SOUTHERN ELECTRIC PLC"
"OCC","Community Services","B1502","18/07/2017","47020524 - 0","2718.13","Revenue","20007602","TOTAL GAS & POWER LTD"
"OCC","Community Services","B1502","18/07/2017","47020527 - 1","4552.56","Revenue","20007602","TOTAL GAS & POWER LTD"
"OCC","Community Services","B1502","18/07/2017","47020528 - 0","921.23","Revenue","20007602","TOTAL GAS & POWER LTD"
"OCC","Community Services","B1502","18/07/2017","47020539 - 0","1209.08","Revenue","20007602","TOTAL GAS & POWER LTD"
"OCC","Community Services","B1502","18/07/2017","47020544 - 1","447.94","Revenue","20007602","TOTAL GAS & POWER LTD"
"OCC","Community Services","B1502","18/07/2017","47020545 - 0","2015.8","Revenue","20007602","TOTAL GAS & POWER LTD"
"OCC","Community Services","B1501","18/07/2017","47020552 - 1","2661.56","Revenue","20011411","NPOWER"
"OCC","Community Services","B1501","18/07/2017","47020553 - 0","2947.06","Revenue","20011411","NPOWER"
"OCC","Community Services","B1501","18/07/2017","47020556 - 0","14087.86","Revenue","20011411","NPOWER"
"OCC","Community Services","B1501","18/07/2017","47020557 - 1","1017.29","Revenue","20011411","NPOWER"
"OCC","Community Services","B1501","18/07/2017","47020560 - 0","4966.29","Revenue","20011411","NPOWER"
"OCC","Community Services","B1501","18/07/2017","47020564 - 1","6730.96","Revenue","20011411","NPOWER"
"OCC","Community Services","B1501","18/07/2017","47020567 - 0","1361.15","Revenue","20011411","NPOWER"
"OCC","Community Services","B1502","08/08/2017","47021031 - 0","1202.53","Revenue","20011042","KENT COUNTY COUNCIL"
"OCC","Community Services","B1502","22/08/2017","47021063 - 1","2584.4","Revenue","20007602","TOTAL GAS & POWER LTD"
"OCC","Community Services","B1502","22/08/2017","47021066 - 0","4897.22","Revenue","20007602","TOTAL GAS & POWER LTD"
"OCC","Community Services","B1502","22/08/2017","47021067 - 0","746.44","Revenue","20007602","TOTAL GAS & POWER LTD"
"OCC","Community Services","B1502","22/08/2017","47021071 - 0","1860.2","Revenue","20007602","TOTAL GAS & POWER LTD"
"OCC","Community Services","B1502","22/08/2017","47021078 - 1","1166.37","Revenue","20007602","TOTAL GAS & POWER LTD"
"OCC","Community Services","B1502","22/08/2017","47021138 - 1","718.16","Revenue","20002402","SOUTHERN ELECTRIC PLC"
"OCC","Community Services","B1501","22/08/2017","47021227 - 0","1303.68","Revenue","20002402","SOUTHERN ELECTRIC PLC"
"OCC","Community Services","B1501","22/08/2017","47021302 - 1","2749.33","Revenue","20011411","NPOWER"
"OCC","Community Services","B1501","22/08/2017","47021303 - 0","3080.02","Revenue","20011411","NPOWER"
"OCC","Community Services","B1501","22/08/2017","47021306 - 0","14512.78","Revenue","20011411","NPOWER"
"OCC","Community Services","B1501","22/08/2017","47021307 - 1","1060.95","Revenue","20011411","NPOWER"
"OCC","Community Services","B1501","22/08/2017","47021310 - 0","5271.45","Revenue","20011411","NPOWER"
"OCC","Community Services","B1501","22/08/2017","47021314 - 0","6967.78","Revenue","20011411","NPOWER"
"OCC","Community Services","B1830","05/09/2017","47021505 - 0","1879.19","Revenue","20019401","CASTLE WATER"
"OCC","Community Services","B1502","19/09/2017","47021520 - 0","6969.98","Revenue","20007602","TOTAL GAS & POWER LTD"
"OCC","Community Services","B1502","19/09/2017","47021522 - 0","715.34","Revenue","20007602","TOTAL GAS & POWER LTD"
"OCC","Community Services","B1502","19/09/2017","47021524 - 0","752.53","Revenue","20007602","TOTAL GAS & POWER LTD"
"OCC","Community Services","B1501","19/09/2017","47021546 - 1","1169.65","Revenue","20002402","SOUTHERN ELECTRIC PLC"
"OCC","Community Services","B1830","26/09/2017","47021620 - 1","770.2","Revenue","20019401","CASTLE WATER"
"OCC","Community Services","B1502","26/09/2017","47021623 - 0","466.56","Revenue","20007602","TOTAL GAS & POWER LTD"
"OCC","Community Services","B1502","26/09/2017","47021627 - 0","-71.58","Revenue","20007602","TOTAL GAS & POWER LTD"
"OCC","Community Services","B1502","26/09/2017","47021627 - 1","2512.08","Revenue","20007602","TOTAL GAS & POWER LTD"
"OCC","Community Services","B1502","26/09/2017","47021628 - 1","-37.69","Revenue","20007602","TOTAL GAS & POWER LTD"
"OCC","Community Services","B1502","26/09/2017","47021628 - 2","1180.91","Revenue","20007602","TOTAL GAS & POWER LTD"
"OCC","Community Services","B1502","26/09/2017","47021630 - 1","-86.41","Revenue","20007602","TOTAL GAS & POWER LTD"
"OCC","Community Services","B1502","26/09/2017","47021630 - 2","5936.61","Revenue","20007602","TOTAL GAS & POWER LTD"
"OCC","Community Services","B1502","26/09/2017","47021631 - 0","-30.09","Revenue","20007602","TOTAL GAS & POWER LTD"
"OCC","Community Services","B1502","26/09/2017","47021631 - 1","901.09","Revenue","20007602","TOTAL GAS & POWER LTD"
"OCC","Community Services","B1502","26/09/2017","47021636 - 1","-71.3","Revenue","20007602","TOTAL GAS & POWER LTD"
"OCC","Community Services","B1502","26/09/2017","47021636 - 2","2247.11","Revenue","20007602","TOTAL GAS & POWER LTD"
"OCC","Community Services","B1501","26/09/2017","47021652 - 1","2721.44","Revenue","20011411","NPOWER"
"OCC","Community Services","B1501","26/09/2017","47021653 - 0","3124.36","Revenue","20011411","NPOWER"
"OCC","Community Services","B1501","26/09/2017","47021656 - 1","14187.33","Revenue","20011411","NPOWER"
"OCC","Community Services","B1501","26/09/2017","47021657 - 0","1144.97","Revenue","20011411","NPOWER"
"OCC","Community Services","B1501","26/09/2017","47021660 - 1","5168.25","Revenue","20011411","NPOWER"
"OCC","Community Services","B1501","26/09/2017","47021664 - 1","7065.12","Revenue","20011411","NPOWER"
"OCC","Community Services","Y021","04/07/2017","48021829 - 1","64528.78","Capital","20002494","E W BEARD LTD"
"OCC","Direct Services","D3025","11/07/2017","1037001 - 1","1416.55","Revenue","20018850","WYEVALE NURSERIES"
"OCC","Direct Services","B1101","11/07/2017","1037468 - 0","531","Revenue","20012304","TYCO FIRE & INTEGRATED SOLUTIONS (UK) LTD"
"OCC","Direct Services","D3401","11/07/2017","1037479 - 1","1150","Revenue","20013173","MACCABEE PETS HOTEL"
"OCC","Direct Services","A0622","04/07/2017","1037578 - 0","745","Revenue","20015755","JLD DRIVER TRAINING LTD"
"OCC","Direct Services","B1127","11/07/2017","1037717 - 1","1560","Revenue","20016358","THAMES VALLEY COMMUNITY REHABILITATION COMPANY"
"OCC","Direct Services","D3420","04/07/2017","1037770 - 1","640","Revenue","20002279","M & M SKIP HIRE LTD"
"OCC","Direct Services","D3025","18/07/2017","1037859 - 1","13936.65","Revenue","20018778","WINDOWFLOWERS LTD"
"OCC","Direct Services","D3001","04/07/2017","1038020 - 0","2532.05","Revenue","20015745","THE CHILDRENS PLAYGROUND CO LTD"
"OCC","Direct Services","D3021","04/07/2017","1038099 - 0","842.44","Revenue","20002296","METRIC GROUP LIMITED"
"OCC","Direct Services","B1702","04/07/2017","1038143 - 1","3058.35","Revenue","20003139","VALE OF WHITE HORSE DISTRICT DC BUSINESS RATES ACCOUNT"
"OCC","Direct Services","D3401","11/07/2017","1038194 - 1","1424","Revenue","20013173","MACCABEE PETS HOTEL"
"OCC","Direct Services","D3025","04/07/2017","1038203 - 0","486","Revenue","20003592","BARCHAM TREES PLC"
"OCC","Direct Services","B1103","11/07/2017","1038219 - 0","140","Revenue","20000210","BARKER & EVANS LTD"
"OCC","Direct Services","B1103","11/07/2017","1038219 - 1","245","Revenue","20000210","BARKER & EVANS LTD"
"OCC","Direct Services","B1103","11/07/2017","1038219 - 2","507.5","Revenue","20000210","BARKER & EVANS LTD"
"OCC","Direct Services","B1103","11/07/2017","1038227 - 1","8898.74","Revenue","20002351","PHS GROUP PLC"
"OCC","Direct Services","D3420","01/08/2017","1038261 - 1","678","Revenue","20002279","M & M SKIP HIRE LTD"
"OCC","Direct Services","D3023","11/07/2017","1038272 - 0","1170","Revenue","20003086","NOMIX ENVIRO"
"OCC","Direct Services","D3029","11/07/2017","1038276 - 0","2772","Revenue","20012279","DLF TRIFOLIUM LTD"
"OCC","Direct Services","D3511","25/07/2017","1038312 - 0","15000","Revenue","20019645","FLOODLIGHT VENTURES LTD. T/A PITCHBOOKING"
"OCC","Direct Services","B1222","11/07/2017","1038318 - 0","4386","Revenue","20019604","SOLENT LAUNDRY SOLUTIONS LTD"
"OCC","Direct Services","B1101","11/07/2017","1038329 - 0","4211","Revenue","20010599","GB SPORT & LEISURE UK LTD"
"OCC","Direct Services","D3021","18/07/2017","1038383 - 0","552.79","Revenue","20002296","METRIC GROUP LIMITED"
"OCC","Direct Services","D3021","18/07/2017","1038385 - 0","429","Revenue","20002467","AWBS LTD"
"OCC","Direct Services","D3420","04/07/2017","1038398 - 0","934","Revenue","20002279","M & M SKIP HIRE LTD"
"OCC","Direct Services","D3025","18/07/2017","1038412 - 0","6692.26","Revenue","20009183","FRESH ACRES NURSERIES LTD"
"OCC","Direct Services","Y021","04/07/2017","1038413 - 0","8050","Capital","20015438","WYG ENVIRONMENT PLANNING TRANSPORT LTD"
"OCC","Direct Services","B1103","04/07/2017","1038433 - 0","489.9","Revenue","20002568","PYROTEC SERVICES LTD"
"OCC","Direct Services","B1103","04/07/2017","1038433 - 1","185","Revenue","20002568","PYROTEC SERVICES LTD"
"OCC","Direct Services","B1103","04/07/2017","1038433 - 2","150","Revenue","20002568","PYROTEC SERVICES LTD"
"OCC","Direct Services","B1103","04/07/2017","1038433 - 3","43.75","Revenue","20002568","PYROTEC SERVICES LTD"
"OCC","Direct Services","B1103","04/07/2017","1038433 - 4","279.75","Revenue","20002568","PYROTEC SERVICES LTD"
"OCC","Direct Services","B1103","04/07/2017","1038433 - 5","318.75","Revenue","20002568","PYROTEC SERVICES LTD"
"OCC","Direct Services","B1101","04/07/2017","1038434 - 0","4625","Revenue","20000267","JOHN SHEEHAN (OXFORD) LTD"
"OCC","Direct Services","D3418","25/07/2017","1038436 - 0","456.23","Revenue","20002120","OCS GROUP UK LTD T/A CANNON"
"OCC","Direct Services","D3418","25/07/2017","1038437 - 0","4449.11","Revenue","20002120","OCS GROUP UK LTD T/A CANNON"
"OCC","Direct Services","B1103","04/07/2017","1038445 - 3","40","Revenue","20004494","COTSWOLD LIFTS LTD"
"OCC","Direct Services","D3401","04/07/2017","1038499 - 0","995","Revenue","20011742","CHARLTON ENVIRONMENTAL LIMITED"
"OCC","Direct Services","D3023","11/07/2017","1038514 - 1","608","Revenue","20003882","SPALDINGS (UK) LTD"
"OCC","Direct Services","B1103","11/07/2017","1038535 - 0","2127","Revenue","20000244","OXFORD REFRIGERATION LTD"
"OCC","Direct Services","B1103","11/07/2017","1038536 - 0","4100","Revenue","20000244","OXFORD REFRIGERATION LTD"
"OCC","Direct Services","D3420","25/07/2017","1038552 - 1","3740","Revenue","20009586","JRB ENTERPRISE LTD"
"OCC","Direct Services","D3501","25/07/2017","1038552 - 2","77","Revenue","20009586","JRB ENTERPRISE LTD"
"OCC","Direct Services","D3021","25/07/2017","1038567 - 1","1042.85","Revenue","20003218","BOC LTD"
"OCC","Direct Services","B1601","18/07/2017","1038608 - 0","502.41","Revenue","20017252","CHERWELL PACKAGING LTD"
"OCC","Direct Services","D3401","18/07/2017","1038609 - 0","2000","Revenue","20012854","E.  S.  HAWES"
"OCC","Direct Services","D3401","25/07/2017","1038623 - 0","2307.75","Revenue","20016581","JADE SECURITY SERVICES LTD"
"OCC","Direct Services","B1153","11/07/2017","1038625 - 0","337.68","Revenue","20000249","SSE CONTRACTING LTD"
"OCC","Direct Services","D3504","25/07/2017","1038649 - 0","3895","Revenue","20009896","VISION SECURE LIMITED"
"OCC","Direct Services","B1101","01/08/2017","1038650 - 0","1585","Revenue","20009896","VISION SECURE LIMITED"
"OCC","Direct Services","D3420","25/07/2017","1038658 - 0","1360","Revenue","20017563","WALSH HAULAGE (OXFORD)"
"OCC","Direct Services","A0622","18/07/2017","1038670 - 0","4087.5","Revenue","20008002","FREIGHT TRANSPORT ASSOCIATION"
"OCC","Direct Services","D3023","25/07/2017","1038685 - 0","716.11","Revenue","20016471","TUDOR ENVIRONMENTAL"
"OCC","Direct Services","B1103","18/07/2017","1038735 - 2","20","Revenue","20013614","SMS ENVIRONMENTAL LIMITED"
"OCC","Direct Services","B1103","18/07/2017","1038750 - 1","173","Revenue","20013614","SMS ENVIRONMENTAL LIMITED"
"OCC","Direct Services","B1103","18/07/2017","1038750 - 2","20","Revenue","20013614","SMS ENVIRONMENTAL LIMITED"
"OCC","Direct Services","B1103","18/07/2017","1038750 - 3","125","Revenue","20013614","SMS ENVIRONMENTAL LIMITED"
"OCC","Direct Services","B1103","18/07/2017","1038750 - 4","250","Revenue","20013614","SMS ENVIRONMENTAL LIMITED"
"OCC","Direct Services","B1103","18/07/2017","1038750 - 5","20","Revenue","20013614","SMS ENVIRONMENTAL LIMITED"
"OCC","Direct Services","B1101","18/07/2017","1038762 - 0","490","Revenue","20011854","OXFORD FABRICATION LTD"
"OCC","Direct Services","B1101","18/07/2017","1038763 - 0","450","Revenue","20011854","OXFORD FABRICATION LTD"
"OCC","Direct Services","D3001","08/08/2017","1038778 - 0","431","Revenue","20012663","DMA  STORAGE  SOLUTIONS  LTD."
"OCC","Direct Services","D3420","01/08/2017","1038786 - 1","526","Revenue","20002279","M & M SKIP HIRE LTD"
"OCC","Direct Services","D3401","25/07/2017","1038790 - 0","1368.79","Revenue","20016705","SOUTHERN ELECTRIC POWER DISTRIBUTION PLC"
"OCC","Direct Services","D3021","01/08/2017","1038793 - 0","1614.01","Revenue","20008377","FLEET (LINE MARKERS) LTD"
"OCC","Direct Services","B1101","08/08/2017","1038814 - 0","695","Revenue","20019093","TPTFIRE MAITENANCE LIMITED"
"OCC","Direct Services","D3804","08/08/2017","1038818 - 0","517.37","Revenue","20008145","THE PERFORMING RIGHTS SOCIETY"
"OCC","Direct Services","D3501","18/07/2017","1038838 - 0","500","Revenue","20003547","PITNEY BOWES LTD"
"OCC","Direct Services","B1103","18/07/2017","1038842 - 1","2232","Revenue","20013614","SMS ENVIRONMENTAL LIMITED"
"OCC","Direct Services","B1103","18/07/2017","1038842 - 3","70","Revenue","20013614","SMS ENVIRONMENTAL LIMITED"
"OCC","Direct Services","B1103","18/07/2017","1038842 - 4","375","Revenue","20013614","SMS ENVIRONMENTAL LIMITED"
"OCC","Direct Services","B1103","18/07/2017","1038842 - 5","270","Revenue","20013614","SMS ENVIRONMENTAL LIMITED"
"OCC","Direct Services","B1103","18/07/2017","1038842 - 6","145","Revenue","20013614","SMS ENVIRONMENTAL LIMITED"
"OCC","Direct Services","D3401","25/07/2017","1038872 - 0","900","Revenue","20019269","Total Tree Care"
"OCC","Direct Services","A0622","25/07/2017","1038888 - 0","2174.97","Revenue","20019520","JTL TRAINING"
"OCC","Direct Services","A0622","25/07/2017","1038889 - 0","2024.93","Revenue","20019520","JTL TRAINING"
"OCC","Direct Services","A0622","25/07/2017","1038916 - 0","1255","Revenue","20017566","OXFORD ENERGY ACADEMY LTD"
"OCC","Direct Services","B1103","25/07/2017","1038921 - 1","1922.47","Revenue","20002351","PHS GROUP PLC"
"OCC","Direct Services","B1103","25/07/2017","1038922 - 1","719.74","Revenue","20002351","PHS GROUP PLC"
"OCC","Direct Services","D3021","01/08/2017","1038946 - 0","983","Revenue","20006342","JEWSON LTD"
"OCC","Direct Services","A0622","25/07/2017","1038964 - 0","805","Revenue","20017566","OXFORD ENERGY ACADEMY LTD"
"OCC","Direct Services","A0622","25/07/2017","1038965 - 0","805","Revenue","20017566","OXFORD ENERGY ACADEMY LTD"
"OCC","Direct Services","D3201","01/08/2017","1039029 - 0","924.12","Revenue","20002919","HONEY BROTHERS LTD"
"OCC","Direct Services","D3420","15/08/2017","1039036 - 0","527.3","Revenue","20002279","M & M SKIP HIRE LTD"
"OCC","Direct Services","B1101","08/08/2017","1039045 - 0","292.7","Revenue","20013089","DJ DOORS & ELECTRICAL SERVICES LTD"
"OCC","Direct Services","B1101","08/08/2017","1039045 - 1","625","Revenue","20013089","DJ DOORS & ELECTRICAL SERVICES LTD"
"OCC","Direct Services","D3703","08/08/2017","1039063 - 1","1710","Revenue","20018585","CONSTRUCTIONLINE"
"OCC","Direct Services","D3418","30/08/2017","1039080 - 0","4449.11","Revenue","20002120","OCS GROUP UK LTD T/A CANNON"
"OCC","Direct Services","A0622","01/08/2017","1039084 - 0","1497.2","Revenue","20008229","SITESAFE UK LTD"
"OCC","Direct Services","D3802","22/08/2017","1039102 - 0","500","Revenue","20018628","ONCE CREATIVE BOX LIMITED"
"OCC","Direct Services","D3420","08/08/2017","1039103 - 0","810","Revenue","20016517","ALPHA WASTE SUPPLIES"
"OCC","Direct Services","Y021","01/08/2017","1039132 - 0","6141.84","Capital","20015438","WYG ENVIRONMENT PLANNING TRANSPORT LTD"
"OCC","Direct Services","D3102","15/08/2017","1039135 - 0","1144","Revenue","20015952","COOLERAID LTD"
"OCC","Direct Services","D3102","15/08/2017","1039137 - 0","512","Revenue","20015952","COOLERAID LTD"
"OCC","Direct Services","D3314","08/08/2017","1039139 - 0","12800","Revenue","20018486","GRANT THORNTON UK LLP"
"OCC","Direct Services","D3025","08/08/2017","1039163 - 0","450.85","Revenue","20018850","WYEVALE NURSERIES"
"OCC","Direct Services","B1103","15/08/2017","1039169 - 0","908.03","Revenue","20000210","BARKER & EVANS LTD"
"OCC","Direct Services","B1103","15/08/2017","1039169 - 1","323.04","Revenue","20000210","BARKER & EVANS LTD"
"OCC","Direct Services","B1103","15/08/2017","1039169 - 2","146.03","Revenue","20000210","BARKER & EVANS LTD"
"OCC","Direct Services","B1101","08/08/2017","1039171 - 0","1694.39","Revenue","20002183","EYRE & ELLISTON LTD"
"OCC","Direct Services","B1103","08/08/2017","1039172 - 3","70","Revenue","20004494","COTSWOLD LIFTS LTD"
"OCC","Direct Services","B1101","08/08/2017","1039187 - 0","617.34","Revenue","20000244","OXFORD REFRIGERATION LTD"
"OCC","Direct Services","D3418","30/08/2017","1039195 - 0","456.23","Revenue","20002120","OCS GROUP UK LTD T/A CANNON"
"OCC","Direct Services","B1206","15/08/2017","1039197 - 1","2900","Revenue","20000210","BARKER & EVANS LTD"
"OCC","Direct Services","D3306","22/08/2017","1039198 - 1","835","Revenue","20015632","MULTIFLOW PRINT LIMITED"
"OCC","Direct Services","A0622","08/08/2017","1039214 - 0","1341","Revenue","20002387","AEBI SCHMIDT UK LTD"
"OCC","Direct Services","D3021","08/08/2017","1039224 - 0","579.75","Revenue","20016861","TRUST PET PRODUCTS LTD"
"OCC","Direct Services","D3501","22/08/2017","1039234 - 0","500","Revenue","20003547","PITNEY BOWES LTD"
"OCC","Direct Services","B1103","22/08/2017","1039323 - 0","5412","Revenue","20000210","BARKER & EVANS LTD"
"OCC","Direct Services","D3401","30/08/2017","1039358 - 0","2405.49","Revenue","20016581","JADE SECURITY SERVICES LTD"
"OCC","Direct Services","D3314","15/08/2017","1039374 - 0","26000","Revenue","20018486","GRANT THORNTON UK LLP"
"OCC","Direct Services","A0622","05/09/2017","1039414 - 0","750","Revenue","20006121","ARBORICULTURAL ASSOCIATION TRADING LTD"
"OCC","Direct Services","D3401","22/08/2017","1039417 - 1","9212.5","Revenue","20014436","COBALT TELEPHONE TECHNOLOGIES"
"OCC","Direct Services","B1103","22/08/2017","1039420 - 0","82","Revenue","20013614","SMS ENVIRONMENTAL LIMITED"
"OCC","Direct Services","B1103","22/08/2017","1039420 - 1","20","Revenue","20013614","SMS ENVIRONMENTAL LIMITED"
"OCC","Direct Services","B1103","22/08/2017","1039420 - 2","30","Revenue","20013614","SMS ENVIRONMENTAL LIMITED"
"OCC","Direct Services","B1103","22/08/2017","1039420 - 3","435","Revenue","20013614","SMS ENVIRONMENTAL LIMITED"
"OCC","Direct Services","B1103","22/08/2017","1039420 - 4","258","Revenue","20013614","SMS ENVIRONMENTAL LIMITED"
"OCC","Direct Services","B1103","22/08/2017","1039421 - 0","4662.5","Revenue","20013614","SMS ENVIRONMENTAL LIMITED"
"OCC","Direct Services","B1101","05/09/2017","1039432 - 0","454.43","Revenue","20002296","METRIC GROUP LIMITED"
"OCC","Direct Services","B1101","05/09/2017","1039432 - 1","162","Revenue","20002296","METRIC GROUP LIMITED"
"OCC","Direct Services","B1103","30/08/2017","1039440 - 1","571.09","Revenue","20000216","CHRISTY LIGHTING LTD"
"OCC","Direct Services","D3001","30/08/2017","1039447 - 0","652","Revenue","20018069","RAPID RACKING LTD"
"OCC","Direct Services","B1101","22/08/2017","1039458 - 0","582.08","Revenue","20000203","KONE PLC"
"OCC","Direct Services","B1103","22/08/2017","1039461 - 0","2808.34","Revenue","20000216","CHRISTY LIGHTING LTD"
"OCC","Direct Services","D3025","22/08/2017","1039473 - 0","450","Revenue","20018778","WINDOWFLOWERS LTD"
"OCC","Direct Services","D3510","05/09/2017","1039510 - 0","1500","Revenue","20019403","ASSERTIVE MEDIA SOLUTIONS LTD"
"OCC","Direct Services","D3510","05/09/2017","1039511 - 0","1500","Revenue","20019403","ASSERTIVE MEDIA SOLUTIONS LTD"
"OCC","Direct Services","D3510","05/09/2017","1039512 - 0","1500","Revenue","20019403","ASSERTIVE MEDIA SOLUTIONS LTD"
"OCC","Direct Services","Y021","30/08/2017","1039532 - 0","6000","Capital","20008601","STANHOPE WILKINSON ASSOCIATES"
"OCC","Direct Services","D3001","12/09/2017","1039558 - 0","426.6","Revenue","20009896","VISION SECURE LIMITED"
"OCC","Direct Services","A0622","05/09/2017","1039560 - 0","625","Revenue","20006121","ARBORICULTURAL ASSOCIATION TRADING LTD"
"OCC","Direct Services","B1701","12/09/2017","1039572 - 1","1443.14","Revenue","20002099","CANAL & RIVER TRUST"
"OCC","Direct Services","D3501","30/08/2017","1039573 - 1","787","Revenue","20003730","ROYAL MAIL"
"OCC","Direct Services","A0622","30/08/2017","1039583 - 0","1077","Revenue","20008847","LARAC"
"OCC","Direct Services","D3802","05/09/2017","1039617 - 0","575","Revenue","20016950","LIMPET LABLES UK LTD"
"OCC","Direct Services","D3401","30/08/2017","1039653 - 0","1600","Revenue","20017563","WALSH HAULAGE (OXFORD)"
"OCC","Direct Services","Y021","30/08/2017","1039667 - 0","474.28","Capital","20015438","WYG ENVIRONMENT PLANNING TRANSPORT LTD"
"OCC","Direct Services","B1101","19/09/2017","1039694 - 0","2700","Revenue","20011395","CHERWELL DOORS"
"OCC","Direct Services","D3418","26/09/2017","1039702 - 0","456.23","Revenue","20002120","OCS GROUP UK LTD T/A CANNON"
"OCC","Direct Services","D3418","26/09/2017","1039703 - 0","4449.11","Revenue","20002120","OCS GROUP UK LTD T/A CANNON"
"OCC","Direct Services","D3023","05/09/2017","1039708 - 0","369.35","Revenue","20016471","TUDOR ENVIRONMENTAL"
"OCC","Direct Services","D3201","05/09/2017","1039708 - 1","189","Revenue","20016471","TUDOR ENVIRONMENTAL"
"OCC","Direct Services","B1103","12/09/2017","1039735 - 3","40","Revenue","20004494","COTSWOLD LIFTS LTD"
"OCC","Direct Services","D3306","19/09/2017","1039736 - 1","697","Revenue","20015632","MULTIFLOW PRINT LIMITED"
"OCC","Direct Services","B1101","26/09/2017","1039741 - 0","981.6","Revenue","20005595","EXECUTIVE SECURITY LOCKSMITHS LTD"
"OCC","Direct Services","D3021","12/09/2017","1039749 - 1","731.52","Revenue","20006342","JEWSON LTD"
"OCC","Direct Services","D3501","19/09/2017","1039767 - 0","500","Revenue","20003547","PITNEY BOWES LTD"
"OCC","Direct Services","B1101","12/09/2017","1039796 - 0","1571.03","Revenue","20007609","EXECUTIVE FIRE PROTECTION LTD"
"OCC","Direct Services","D3401","12/09/2017","1039806 - 0","995","Revenue","20011742","CHARLTON ENVIRONMENTAL LIMITED"
"OCC","Direct Services","A0622","12/09/2017","1039816 - 0","960","Revenue","20017566","OXFORD ENERGY ACADEMY LTD"
"OCC","Direct Services","A0622","12/09/2017","1039817 - 0","975","Revenue","20017566","OXFORD ENERGY ACADEMY LTD"
"OCC","Direct Services","D3401","26/09/2017","1039827 - 0","915","Revenue","20011393","USTIGATE"
"OCC","Direct Services","B1103","26/09/2017","1039830 - 0","596","Revenue","20000210","BARKER & EVANS LTD"
"OCC","Direct Services","B1103","26/09/2017","1039830 - 1","375","Revenue","20000210","BARKER & EVANS LTD"
"OCC","Direct Services","D3401","26/09/2017","1039831 - 0","1095","Revenue","20011393","USTIGATE"
"OCC","Direct Services","B1103","26/09/2017","1039878 - 1","451.33","Revenue","20002351","PHS GROUP PLC"
"OCC","Direct Services","B1701","26/09/2017","1039884 - 1","22987.21","Revenue","20019125","PEARTREE OXFORD LTD"
"OCC","Direct Services","B1241","12/09/2017","1039915 - 0","1384.95","Revenue","20002183","EYRE & ELLISTON LTD"
"OCC","Direct Services","D3401","26/09/2017","1040002 - 0","2258.88","Revenue","20016581","JADE SECURITY SERVICES LTD"
"OCC","Direct Services","D3602","19/09/2017","1040073 - 0","549.5","Revenue","20009350","APSE"
"OCC","Direct Services","D3201","26/09/2017","1040089 - 0","326.7","Revenue","20002919","HONEY BROTHERS LTD"
"OCC","Direct Services","D3023","26/09/2017","1040089 - 1","196","Revenue","20002919","HONEY BROTHERS LTD"
"OCC","Direct Services","D3023","26/09/2017","1040089 - 2","101.88","Revenue","20002919","HONEY BROTHERS LTD"
"OCC","Direct Services","A0622","26/09/2017","1040126 - 0","1000","Revenue","20017566","OXFORD ENERGY ACADEMY LTD"
"OCC","Direct Services","A0622","26/09/2017","1040127 - 0","600","Revenue","20017566","OXFORD ENERGY ACADEMY LTD"
"OCC","Direct Services","D3401","26/09/2017","1040139 - 0","2310","Revenue","20013173","MACCABEE PETS HOTEL"
"OCC","Direct Services","D3401","26/09/2017","1040214 - 0","299.87","Revenue","20009555","NORTH OXFORD ASSOCIATION"
"OCC","Direct Services","D3401","26/09/2017","1040214 - 1","1166.66","Revenue","20009555","NORTH OXFORD ASSOCIATION"
"OCC","Direct Services","D3411","08/08/2017","46294206 - 1","737.91","Revenue","20018748","OPTUM HEALTH SOLUTIONS (UK) LTD"
"OCC","Direct Services","A0622","04/07/2017","46294301 - 1","999","Revenue","20000000","GENERAL EXPENSES"
"OCC","Direct Services","D3021","04/07/2017","46294319 - 1","468.38","Revenue","20002675","BRADY CORP. LTD"
"OCC","Direct Services","D3021","11/07/2017","46294409 - 1","2393.24","Revenue","20008907","FAROL LTD"
"OCC","Direct Services","D3021","11/07/2017","46294439 - 1","474.11","Revenue","20002033","Green Machines Sweepers UK Ltd"
"OCC","Direct Services","D3021","11/07/2017","46294442 - 1","438.98","Revenue","20002033","Green Machines Sweepers UK Ltd"
"OCC","Direct Services","D3021","11/07/2017","46294443 - 1","787.85","Revenue","20002033","Green Machines Sweepers UK Ltd"
"OCC","Direct Services","B1111","11/07/2017","46294445 - 1","2580","Revenue","20019362","DANI ALU (UK) LTD"
"OCC","Direct Services","A0108","18/07/2017","46294455 - 12","31011.37","Revenue","20018053","REED SPECIALIST RECRUITMENT LTD"
"OCC","Direct Services","A0108","18/07/2017","46294455 - 14","8272.87","Revenue","20018053","REED SPECIALIST RECRUITMENT LTD"
"OCC","Direct Services","A0108","18/07/2017","46294455 - 15","7531.55","Revenue","20018053","REED SPECIALIST RECRUITMENT LTD"
"OCC","Direct Services","A0108","18/07/2017","46294455 - 16","2531.04","Revenue","20018053","REED SPECIALIST RECRUITMENT LTD"
"OCC","Direct Services","A0108","18/07/2017","46294455 - 17","8016.65","Revenue","20018053","REED SPECIALIST RECRUITMENT LTD"
"OCC","Direct Services","A0108","18/07/2017","46294455 - 18","4777.56","Revenue","20018053","REED SPECIALIST RECRUITMENT LTD"
"OCC","Direct Services","A0108","18/07/2017","46294455 - 20","9252.93","Revenue","20018053","REED SPECIALIST RECRUITMENT LTD"
"OCC","Direct Services","A0108","18/07/2017","46294455 - 22","10595.22","Revenue","20018053","REED SPECIALIST RECRUITMENT LTD"
"OCC","Direct Services","A0108","18/07/2017","46294455 - 23","2614.62","Revenue","20018053","REED SPECIALIST RECRUITMENT LTD"
"OCC","Direct Services","A0108","18/07/2017","46294455 - 26","2203.05","Revenue","20018053","REED SPECIALIST RECRUITMENT LTD"
"OCC","Direct Services","A0108","18/07/2017","46294455 - 27","3869.78","Revenue","20018053","REED SPECIALIST RECRUITMENT LTD"
"OCC","Direct Services","A0108","18/07/2017","46294455 - 28","2744.27","Revenue","20018053","REED SPECIALIST RECRUITMENT LTD"
"OCC","Direct Services","A0108","18/07/2017","46294455 - 29","6102.24","Revenue","20018053","REED SPECIALIST RECRUITMENT LTD"
"OCC","Direct Services","A0108","18/07/2017","46294455 - 36","2559.41","Revenue","20018053","REED SPECIALIST RECRUITMENT LTD"
"OCC","Direct Services","A0108","18/07/2017","46294455 - 38","1353.75","Revenue","20018053","REED SPECIALIST RECRUITMENT LTD"
"OCC","Direct Services","A0108","18/07/2017","46294455 - 39","608.8","Revenue","20018053","REED SPECIALIST RECRUITMENT LTD"
"OCC","Direct Services","A0108","18/07/2017","46294455 - 40","1298.13","Revenue","20018053","REED SPECIALIST RECRUITMENT LTD"
"OCC","Direct Services","C2202","14/07/2017","46294471 - 1","240","Revenue","20008465","POST OFFICE LTD"
"OCC","Direct Services","C2202","14/07/2017","46294471 - 2","1200","Revenue","20008465","POST OFFICE LTD"
"OCC","Direct Services","C2202","14/07/2017","46294471 - 3","650","Revenue","20008465","POST OFFICE LTD"
"OCC","Direct Services","C2202","14/07/2017","46294471 - 4","650","Revenue","20008465","POST OFFICE LTD"
"OCC","Direct Services","C2202","14/07/2017","46294471 - 5","240","Revenue","20008465","POST OFFICE LTD"
"OCC","Direct Services","C2202","14/07/2017","46294471 - 6","240","Revenue","20008465","POST OFFICE LTD"
"OCC","Direct Services","C2202","14/07/2017","46294471 - 7","240","Revenue","20008465","POST OFFICE LTD"
"OCC","Direct Services","C2202","14/07/2017","46294471 - 8","240","Revenue","20008465","POST OFFICE LTD"
"OCC","Direct Services","C2202","14/07/2017","46294471 - 9","240","Revenue","20008465","POST OFFICE LTD"
"OCC","Direct Services","C2202","14/07/2017","46294471 - 10","240","Revenue","20008465","POST OFFICE LTD"
"OCC","Direct Services","C2202","14/07/2017","46294471 - 11","240","Revenue","20008465","POST OFFICE LTD"
"OCC","Direct Services","D3411","25/07/2017","46294506 - 1","141","Revenue","20011499","TOPS"
"OCC","Direct Services","D3411","25/07/2017","46294506 - 2","57","Revenue","20011499","TOPS"
"OCC","Direct Services","D3411","25/07/2017","46294506 - 3","267","Revenue","20011499","TOPS"
"OCC","Direct Services","D3411","25/07/2017","46294506 - 6","99","Revenue","20011499","TOPS"
"OCC","Direct Services","D3411","25/07/2017","46294506 - 7","42","Revenue","20011499","TOPS"
"OCC","Direct Services","D3411","25/07/2017","46294506 - 8","99","Revenue","20011499","TOPS"
"OCC","Direct Services","D3411","25/07/2017","46294506 - 9","42","Revenue","20011499","TOPS"
"OCC","Direct Services","D3411","25/07/2017","46294506 - 10","126","Revenue","20011499","TOPS"
"OCC","Direct Services","D3411","25/07/2017","46294506 - 11","84","Revenue","20011499","TOPS"
"OCC","Direct Services","D3411","25/07/2017","46294506 - 13","99","Revenue","20011499","TOPS"
"OCC","Direct Services","D3411","25/07/2017","46294506 - 16","57","Revenue","20011499","TOPS"
"OCC","Direct Services","D3401","18/07/2017","46294530 - 1","117.01","Revenue","20014436","COBALT TELEPHONE TECHNOLOGIES"
"OCC","Direct Services","D3401","18/07/2017","46294530 - 2","64.21","Revenue","20014436","COBALT TELEPHONE TECHNOLOGIES"
"OCC","Direct Services","D3401","18/07/2017","46294530 - 3","110.41","Revenue","20014436","COBALT TELEPHONE TECHNOLOGIES"
"OCC","Direct Services","D3401","18/07/2017","46294530 - 4","163.21","Revenue","20014436","COBALT TELEPHONE TECHNOLOGIES"
"OCC","Direct Services","D3401","18/07/2017","46294530 - 5","502.01","Revenue","20014436","COBALT TELEPHONE TECHNOLOGIES"
"OCC","Direct Services","D3401","18/07/2017","46294530 - 6","322.01","Revenue","20014436","COBALT TELEPHONE TECHNOLOGIES"
"OCC","Direct Services","D3401","18/07/2017","46294530 - 7","99.21","Revenue","20014436","COBALT TELEPHONE TECHNOLOGIES"
"OCC","Direct Services","D3401","18/07/2017","46294530 - 8","425.41","Revenue","20014436","COBALT TELEPHONE TECHNOLOGIES"
"OCC","Direct Services","D3401","18/07/2017","46294530 - 9","57.21","Revenue","20014436","COBALT TELEPHONE TECHNOLOGIES"
"OCC","Direct Services","D3401","18/07/2017","46294530 - 10","298.41","Revenue","20014436","COBALT TELEPHONE TECHNOLOGIES"
"OCC","Direct Services","D3401","18/07/2017","46294530 - 11","127.81","Revenue","20014436","COBALT TELEPHONE TECHNOLOGIES"
"OCC","Direct Services","D3401","18/07/2017","46294530 - 12","417.61","Revenue","20014436","COBALT TELEPHONE TECHNOLOGIES"
"OCC","Direct Services","D3401","18/07/2017","46294530 - 13","219.21","Revenue","20014436","COBALT TELEPHONE TECHNOLOGIES"
"OCC","Direct Services","D3401","18/07/2017","46294530 - 14","110.81","Revenue","20014436","COBALT TELEPHONE TECHNOLOGIES"
"OCC","Direct Services","D3401","18/07/2017","46294530 - 15","1036.21","Revenue","20014436","COBALT TELEPHONE TECHNOLOGIES"
"OCC","Direct Services","D3401","18/07/2017","46294530 - 16","509.81","Revenue","20014436","COBALT TELEPHONE TECHNOLOGIES"
"OCC","Direct Services","D3401","18/07/2017","46294530 - 17","624.61","Revenue","20014436","COBALT TELEPHONE TECHNOLOGIES"
"OCC","Direct Services","D3401","18/07/2017","46294530 - 18","692.81","Revenue","20014436","COBALT TELEPHONE TECHNOLOGIES"
"OCC","Direct Services","C2203","25/07/2017","46294585 - 1","50000","Revenue","20018045","VEHICLE & OPERATOR SERVICES AGENCY"
"OCC","Direct Services","D3004","01/08/2017","46294670 - 1","2142.37","Revenue","20016111","UK CONTAINER MAINTENANCE LIMITED"
"OCC","Direct Services","A0965","01/08/2017","46294700 - 2","3","Revenue","20014779","CYCLESCHEME LIMITED"
"OCC","Direct Services","D3501","01/08/2017","46294710 - 1","1000","Revenue","20009008","NEOPOST LTD RCB CREDIFON  A/C"
"OCC","Direct Services","D3411","30/08/2017","46294879 - 1","141","Revenue","20011499","TOPS"
"OCC","Direct Services","D3411","30/08/2017","46294879 - 2","210","Revenue","20011499","TOPS"
"OCC","Direct Services","D3411","30/08/2017","46294879 - 5","42","Revenue","20011499","TOPS"
"OCC","Direct Services","D3411","30/08/2017","46294879 - 6","42","Revenue","20011499","TOPS"
"OCC","Direct Services","D3411","30/08/2017","46294879 - 7","42","Revenue","20011499","TOPS"
"OCC","Direct Services","D3411","30/08/2017","46294879 - 8","84","Revenue","20011499","TOPS"
"OCC","Direct Services","D3411","30/08/2017","46294879 - 9","42","Revenue","20011499","TOPS"
"OCC","Direct Services","D3411","30/08/2017","46294879 - 10","42","Revenue","20011499","TOPS"
"OCC","Direct Services","D3411","30/08/2017","46294879 - 13","87","Revenue","20011499","TOPS"
"OCC","Direct Services","D3411","30/08/2017","46294879 - 14","156","Revenue","20011499","TOPS"
"OCC","Direct Services","A0108","22/08/2017","46295029 - 2","1931.23","Revenue","20018053","REED SPECIALIST RECRUITMENT LTD"
"OCC","Direct Services","A0108","22/08/2017","46295029 - 3","2262.66","Revenue","20018053","REED SPECIALIST RECRUITMENT LTD"
"OCC","Direct Services","A0108","22/08/2017","46295029 - 4","5412.15","Revenue","20018053","REED SPECIALIST RECRUITMENT LTD"
"OCC","Direct Services","A0108","22/08/2017","46295029 - 5","6124.52","Revenue","20018053","REED SPECIALIST RECRUITMENT LTD"
"OCC","Direct Services","A0108","22/08/2017","46295029 - 22","3455.81","Revenue","20018053","REED SPECIALIST RECRUITMENT LTD"
"OCC","Direct Services","A0108","22/08/2017","46295029 - 31","825.6","Revenue","20018053","REED SPECIALIST RECRUITMENT LTD"
"OCC","Direct Services","A0108","22/08/2017","46295029 - 32","1570.56","Revenue","20018053","REED SPECIALIST RECRUITMENT LTD"
"OCC","Direct Services","A0108","22/08/2017","46295029 - 35","1967.27","Revenue","20018053","REED SPECIALIST RECRUITMENT LTD"
"OCC","Direct Services","A0108","22/08/2017","46295029 - 36","7495.67","Revenue","20018053","REED SPECIALIST RECRUITMENT LTD"
"OCC","Direct Services","A0108","22/08/2017","46295029 - 37","2734.88","Revenue","20018053","REED SPECIALIST RECRUITMENT LTD"
"OCC","Direct Services","A0108","22/08/2017","46295029 - 38","4875.1","Revenue","20018053","REED SPECIALIST RECRUITMENT LTD"
"OCC","Direct Services","A0108","22/08/2017","46295029 - 39","2210.31","Revenue","20018053","REED SPECIALIST RECRUITMENT LTD"
"OCC","Direct Services","A0108","22/08/2017","46295029 - 40","26147.89","Revenue","20018053","REED SPECIALIST RECRUITMENT LTD"
"OCC","Direct Services","A0108","22/08/2017","46295029 - 41","11640.58","Revenue","20018053","REED SPECIALIST RECRUITMENT LTD"
"OCC","Direct Services","A0108","22/08/2017","46295029 - 42","6727.92","Revenue","20018053","REED SPECIALIST RECRUITMENT LTD"
"OCC","Direct Services","A0108","22/08/2017","46295029 - 43","9193.47","Revenue","20018053","REED SPECIALIST RECRUITMENT LTD"
"OCC","Direct Services","A0108","22/08/2017","46295029 - 44","969.33","Revenue","20018053","REED SPECIALIST RECRUITMENT LTD"
"OCC","Direct Services","D3703","22/08/2017","46295045 - 1","3913","Revenue","20009350","APSE"
"OCC","Direct Services","B1802","30/08/2017","46295065 - 1","2359.5","Revenue","20000000","GENERAL EXPENSES"
"OCC","Direct Services","D3411","26/09/2017","46295190 - 1","126","Revenue","20011499","TOPS"
"OCC","Direct Services","D3411","26/09/2017","46295190 - 2","246","Revenue","20011499","TOPS"
"OCC","Direct Services","D3411","26/09/2017","46295190 - 5","42","Revenue","20011499","TOPS"
"OCC","Direct Services","D3411","26/09/2017","46295190 - 6","42","Revenue","20011499","TOPS"
"OCC","Direct Services","D3411","26/09/2017","46295190 - 7","84","Revenue","20011499","TOPS"
"OCC","Direct Services","D3411","26/09/2017","46295190 - 8","126","Revenue","20011499","TOPS"
"OCC","Direct Services","D3411","26/09/2017","46295190 - 9","210","Revenue","20011499","TOPS"
"OCC","Direct Services","D3411","26/09/2017","46295190 - 13","99","Revenue","20011499","TOPS"
"OCC","Direct Services","D3411","26/09/2017","46295190 - 15","57","Revenue","20011499","TOPS"
"OCC","Direct Services","A0108","12/09/2017","46295239 - 6","8045.75","Revenue","20018053","REED SPECIALIST RECRUITMENT LTD"
"OCC","Direct Services","A0108","12/09/2017","46295239 - 7","22265.27","Revenue","20018053","REED SPECIALIST RECRUITMENT LTD"
"OCC","Direct Services","A0108","12/09/2017","46295239 - 10","8584.03","Revenue","20018053","REED SPECIALIST RECRUITMENT LTD"
"OCC","Direct Services","A0108","12/09/2017","46295239 - 11","1778.41","Revenue","20018053","REED SPECIALIST RECRUITMENT LTD"
"OCC","Direct Services","A0108","12/09/2017","46295239 - 15","5940.48","Revenue","20018053","REED SPECIALIST RECRUITMENT LTD"
"OCC","Direct Services","A0108","12/09/2017","46295239 - 17","2262.36","Revenue","20018053","REED SPECIALIST RECRUITMENT LTD"
"OCC","Direct Services","A0108","12/09/2017","46295239 - 19","6327.54","Revenue","20018053","REED SPECIALIST RECRUITMENT LTD"
"OCC","Direct Services","A0108","12/09/2017","46295239 - 20","3157.17","Revenue","20018053","REED SPECIALIST RECRUITMENT LTD"
"OCC","Direct Services","A0108","12/09/2017","46295239 - 21","1925.6","Revenue","20018053","REED SPECIALIST RECRUITMENT LTD"
"OCC","Direct Services","A0108","12/09/2017","46295239 - 22","3088.74","Revenue","20018053","REED SPECIALIST RECRUITMENT LTD"
"OCC","Direct Services","A0108","12/09/2017","46295239 - 24","668.64","Revenue","20018053","REED SPECIALIST RECRUITMENT LTD"
"OCC","Direct Services","A0108","12/09/2017","46295239 - 28","11218.57","Revenue","20018053","REED SPECIALIST RECRUITMENT LTD"
"OCC","Direct Services","A0108","12/09/2017","46295239 - 29","9101.82","Revenue","20018053","REED SPECIALIST RECRUITMENT LTD"
"OCC","Direct Services","A0108","12/09/2017","46295239 - 31","2118.72","Revenue","20018053","REED SPECIALIST RECRUITMENT LTD"
"OCC","Direct Services","A0108","12/09/2017","46295239 - 35","4695.87","Revenue","20018053","REED SPECIALIST RECRUITMENT LTD"
"OCC","Direct Services","A0108","12/09/2017","46295239 - 36","116.79","Revenue","20018053","REED SPECIALIST RECRUITMENT LTD"
"OCC","Direct Services","A0108","12/09/2017","46295239 - 39","967.94","Revenue","20018053","REED SPECIALIST RECRUITMENT LTD"
"OCC","Direct Services","D3401","19/09/2017","46295246 - 1","80.44","Revenue","20014436","COBALT TELEPHONE TECHNOLOGIES"
"OCC","Direct Services","D3401","19/09/2017","46295246 - 2","45.71","Revenue","20014436","COBALT TELEPHONE TECHNOLOGIES"
"OCC","Direct Services","D3401","19/09/2017","46295246 - 3","121.89","Revenue","20014436","COBALT TELEPHONE TECHNOLOGIES"
"OCC","Direct Services","D3401","19/09/2017","46295246 - 4","123.46","Revenue","20014436","COBALT TELEPHONE TECHNOLOGIES"
"OCC","Direct Services","D3401","19/09/2017","46295246 - 5","534.82","Revenue","20014436","COBALT TELEPHONE TECHNOLOGIES"
"OCC","Direct Services","D3401","19/09/2017","46295246 - 6","299.34","Revenue","20014436","COBALT TELEPHONE TECHNOLOGIES"
"OCC","Direct Services","D3401","19/09/2017","46295246 - 7","66.99","Revenue","20014436","COBALT TELEPHONE TECHNOLOGIES"
"OCC","Direct Services","D3401","19/09/2017","46295246 - 8","451.47","Revenue","20014436","COBALT TELEPHONE TECHNOLOGIES"
"OCC","Direct Services","D3401","19/09/2017","46295246 - 9","32.94","Revenue","20014436","COBALT TELEPHONE TECHNOLOGIES"
"OCC","Direct Services","D3401","19/09/2017","46295246 - 10","218.46","Revenue","20014436","COBALT TELEPHONE TECHNOLOGIES"
"OCC","Direct Services","D3401","19/09/2017","46295246 - 11","134.66","Revenue","20014436","COBALT TELEPHONE TECHNOLOGIES"
"OCC","Direct Services","D3401","19/09/2017","46295246 - 12","368.35","Revenue","20014436","COBALT TELEPHONE TECHNOLOGIES"
"OCC","Direct Services","D3401","19/09/2017","46295246 - 13","200.31","Revenue","20014436","COBALT TELEPHONE TECHNOLOGIES"
"OCC","Direct Services","D3401","19/09/2017","46295246 - 14","94.78","Revenue","20014436","COBALT TELEPHONE TECHNOLOGIES"
"OCC","Direct Services","D3401","19/09/2017","46295246 - 15","1137.76","Revenue","20014436","COBALT TELEPHONE TECHNOLOGIES"
"OCC","Direct Services","D3401","19/09/2017","46295246 - 16","543.79","Revenue","20014436","COBALT TELEPHONE TECHNOLOGIES"
"OCC","Direct Services","D3401","19/09/2017","46295246 - 17","688.08","Revenue","20014436","COBALT TELEPHONE TECHNOLOGIES"
"OCC","Direct Services","D3401","19/09/2017","46295246 - 18","0.22","Revenue","20014436","COBALT TELEPHONE TECHNOLOGIES"
"OCC","Direct Services","D3401","19/09/2017","46295246 - 19","716.73","Revenue","20014436","COBALT TELEPHONE TECHNOLOGIES"
"OCC","Direct Services","C2202","15/09/2017","46295247 - 1","240","Revenue","20008465","POST OFFICE LTD"
"OCC","Direct Services","C2202","15/09/2017","46295247 - 2","240","Revenue","20008465","POST OFFICE LTD"
"OCC","Direct Services","C2202","15/09/2017","46295247 - 3","135","Revenue","20008465","POST OFFICE LTD"
"OCC","Direct Services","C2202","15/09/2017","46295247 - 4","240","Revenue","20008465","POST OFFICE LTD"
"OCC","Direct Services","C2202","15/09/2017","46295247 - 5","240","Revenue","20008465","POST OFFICE LTD"
"OCC","Direct Services","C2202","15/09/2017","46295247 - 6","650","Revenue","20008465","POST OFFICE LTD"
"OCC","Direct Services","C2202","15/09/2017","46295247 - 7","650","Revenue","20008465","POST OFFICE LTD"
"OCC","Direct Services","C2202","15/09/2017","46295247 - 8","165","Revenue","20008465","POST OFFICE LTD"
"OCC","Direct Services","C2202","15/09/2017","46295247 - 9","240","Revenue","20008465","POST OFFICE LTD"
"OCC","Direct Services","C2202","15/09/2017","46295247 - 10","165","Revenue","20008465","POST OFFICE LTD"
"OCC","Direct Services","C2202","15/09/2017","46295247 - 11","240","Revenue","20008465","POST OFFICE LTD"
"OCC","Direct Services","C2202","15/09/2017","46295247 - 12","240","Revenue","20008465","POST OFFICE LTD"
"OCC","Direct Services","C2202","15/09/2017","46295247 - 13","240","Revenue","20008465","POST OFFICE LTD"
"OCC","Direct Services","C2202","15/09/2017","46295247 - 14","240","Revenue","20008465","POST OFFICE LTD"
"OCC","Direct Services","C2202","15/09/2017","46295247 - 15","240","Revenue","20008465","POST OFFICE LTD"
"OCC","Direct Services","C2202","15/09/2017","46295247 - 16","240","Revenue","20008465","POST OFFICE LTD"
"OCC","Direct Services","C2202","15/09/2017","46295247 - 17","135","Revenue","20008465","POST OFFICE LTD"
"OCC","Direct Services","C2202","15/09/2017","46295247 - 18","240","Revenue","20008465","POST OFFICE LTD"
"OCC","Direct Services","D3703","19/09/2017","46295275 - 1","1099","Revenue","20000000","GENERAL EXPENSES"
"OCC","Direct Services","K9467","26/09/2017","46295324 - 1","523","Revenue","20000012","CAR PARK REFUNDS"
"OCC","Direct Services","B1501","04/07/2017","47020293 - 1","866.57","Revenue","20011411","NPOWER"
"OCC","Direct Services","B1501","04/07/2017","47020296 - 0","1932.91","Revenue","20011411","NPOWER"
"OCC","Direct Services","B1501","04/07/2017","47020297 - 1","891.76","Revenue","20011411","NPOWER"
"OCC","Direct Services","B1501","04/07/2017","47020299 - 1","1281.55","Revenue","20011411","NPOWER"
"OCC","Direct Services","B1501","04/07/2017","47020302 - 0","1959.47","Revenue","20011411","NPOWER"
"OCC","Direct Services","B1501","04/07/2017","47020303 - 1","1188.19","Revenue","20011411","NPOWER"
"OCC","Direct Services","B1501","04/07/2017","47020305 - 1","1980.73","Revenue","20011411","NPOWER"
"OCC","Direct Services","B1501","04/07/2017","47020306 - 0","1328.55","Revenue","20011411","NPOWER"
"OCC","Direct Services","B1501","04/07/2017","47020309 - 0","1922.14","Revenue","20011411","NPOWER"
"OCC","Direct Services","B1501","04/07/2017","47020310 - 1","1357.65","Revenue","20011411","NPOWER"
"OCC","Direct Services","B1501","04/07/2017","47020312 - 0","1183.54","Revenue","20011411","NPOWER"
"OCC","Direct Services","B1501","04/07/2017","47020315 - 1","436.55","Revenue","20011411","NPOWER"
"OCC","Direct Services","B1501","04/07/2017","47020318 - 0","1909.71","Revenue","20011411","NPOWER"
"OCC","Direct Services","B1501","04/07/2017","47020320 - 0","1770.58","Revenue","20011411","NPOWER"
"OCC","Direct Services","B1501","04/07/2017","47020321 - 1","1454.14","Revenue","20011411","NPOWER"
"OCC","Direct Services","B1501","04/07/2017","47020326 - 1","1845.2","Revenue","20011411","NPOWER"
"OCC","Direct Services","B1501","04/07/2017","47020327 - 0","738.28","Revenue","20011411","NPOWER"
"OCC","Direct Services","B1830","11/07/2017","47020335 - 1","1390.85","Revenue","20019401","CASTLE WATER"
"OCC","Direct Services","B1501","11/07/2017","47020354 - 0","1390.63","Revenue","20002402","SOUTHERN ELECTRIC PLC"
"OCC","Direct Services","B1501","18/07/2017","47020400 - 0","1434.18","Revenue","20002402","SOUTHERN ELECTRIC PLC"
"OCC","Direct Services","B1502","18/07/2017","47020532 - 0","1232.43","Revenue","20007602","TOTAL GAS & POWER LTD"
"OCC","Direct Services","B1501","18/07/2017","47020551 - 0","1849.63","Revenue","20011411","NPOWER"
"OCC","Direct Services","B1501","18/07/2017","47020554 - 1","858.6","Revenue","20011411","NPOWER"
"OCC","Direct Services","B1501","18/07/2017","47020559 - 1","2859.48","Revenue","20011411","NPOWER"
"OCC","Direct Services","B1501","18/07/2017","47020566 - 1","775.62","Revenue","20011411","NPOWER"
"OCC","Direct Services","B1830","25/07/2017","47020596 - 1","950.61","Revenue","20019401","CASTLE WATER"
"OCC","Direct Services","B1830","25/07/2017","47020598 - 1","900.4","Revenue","20019401","CASTLE WATER"
"OCC","Direct Services","B1830","25/07/2017","47020601 - 0","1964.02","Revenue","20019401","CASTLE WATER"
"OCC","Direct Services","B1830","25/07/2017","47020602 - 1","616.51","Revenue","20019401","CASTLE WATER"
"OCC","Direct Services","B1830","08/08/2017","47021028 - 1","1650.05","Revenue","20019401","CASTLE WATER"
"OCC","Direct Services","B1501","08/08/2017","47021030 - 1","1791.63","Revenue","20011042","KENT COUNTY COUNCIL"
"OCC","Direct Services","B1501","15/08/2017","47021051 - 0","1260.68","Revenue","20002402","SOUTHERN ELECTRIC PLC"
"OCC","Direct Services","B1830","22/08/2017","47021058 - 0","2761.02","Revenue","20019401","CASTLE WATER"
"OCC","Direct Services","B1502","22/08/2017","47021079 - 0","573.31","Revenue","20007602","TOTAL GAS & POWER LTD"
"OCC","Direct Services","B1501","22/08/2017","47021098 - 1","3255.17","Revenue","20002402","SOUTHERN ELECTRIC PLC"
"OCC","Direct Services","B1501","22/08/2017","47021132 - 1","626.89","Revenue","20002402","SOUTHERN ELECTRIC PLC"
"OCC","Direct Services","B1501","22/08/2017","47021141 - 0","1040.66","Revenue","20002402","SOUTHERN ELECTRIC PLC"
"OCC","Direct Services","B1501","22/08/2017","47021147 - 0","750.29","Revenue","20002402","SOUTHERN ELECTRIC PLC"
"OCC","Direct Services","B1501","22/08/2017","47021171 - 0","572.34","Revenue","20002402","SOUTHERN ELECTRIC PLC"
"OCC","Direct Services","B1501","22/08/2017","47021172 - 1","916.59","Revenue","20002402","SOUTHERN ELECTRIC PLC"
"OCC","Direct Services","B1501","22/08/2017","47021189 - 0","646.25","Revenue","20002402","SOUTHERN ELECTRIC PLC"
"OCC","Direct Services","B1501","22/08/2017","47021237 - 1","660.3","Revenue","20002402","SOUTHERN ELECTRIC PLC"
"OCC","Direct Services","B1501","22/08/2017","47021301 - 1","1948.25","Revenue","20011411","NPOWER"
"OCC","Direct Services","B1501","22/08/2017","47021304 - 0","858.1","Revenue","20011411","NPOWER"
"OCC","Direct Services","B1501","22/08/2017","47021309 - 1","2800.15","Revenue","20011411","NPOWER"
"OCC","Direct Services","B1830","22/08/2017","47021316 - 0","762.81","Revenue","20019401","CASTLE WATER"
"OCC","Direct Services","B1830","30/08/2017","47021500 - 0","551.6","Revenue","20019401","CASTLE WATER"
"OCC","Direct Services","B1501","19/09/2017","47021537 - 0","1347.28","Revenue","20002402","SOUTHERN ELECTRIC PLC"
"OCC","Direct Services","B1501","19/09/2017","47021549 - 0","846.44","Revenue","20002402","SOUTHERN ELECTRIC PLC"
"OCC","Direct Services","B1501","19/09/2017","47021570 - 0","811.96","Revenue","20002402","SOUTHERN ELECTRIC PLC"
"OCC","Direct Services","B1830","19/09/2017","47021588 - 0","940.11","Revenue","20019401","CASTLE WATER"
"OCC","Direct Services","B1830","19/09/2017","47021589 - 1","940.48","Revenue","20019401","CASTLE WATER"
"OCC","Direct Services","B1830","19/09/2017","47021590 - 0","1798.02","Revenue","20019401","CASTLE WATER"
"OCC","Direct Services","B1830","19/09/2017","47021604 - 0","562.39","Revenue","20019401","CASTLE WATER"
"OCC","Direct Services","B1830","19/09/2017","47021606 - 0","2503.86","Revenue","20019401","CASTLE WATER"
"OCC","Direct Services","B1830","26/09/2017","47021615 - 0","557.51","Revenue","20019401","CASTLE WATER"
"OCC","Direct Services","B1830","26/09/2017","47021621 - 0","4200.43","Revenue","20019401","CASTLE WATER"
"OCC","Direct Services","B1502","26/09/2017","47021632 - 1","534.75","Revenue","20007602","TOTAL GAS & POWER LTD"
"OCC","Direct Services","B1501","26/09/2017","47021651 - 0","1948.46","Revenue","20011411","NPOWER"
"OCC","Direct Services","B1501","26/09/2017","47021654 - 1","911.25","Revenue","20011411","NPOWER"
"OCC","Direct Services","B1501","26/09/2017","47021659 - 0","2772.88","Revenue","20011411","NPOWER"
"OCC","Direct Services","D3021","04/07/2017","47991389 - 0","907.09","Revenue","20002168","DENNIS EAGLE LTD"
"OCC","Direct Services","D3021","04/07/2017","47991389 - 1","6.47","Revenue","20002168","DENNIS EAGLE LTD"
"OCC","Direct Services","D3021","04/07/2017","47991389 - 2","7.22","Revenue","20002168","DENNIS EAGLE LTD"
"OCC","Direct Services","C2002","04/07/2017","47991405 - 1","4360","Revenue","20019081","TJC SALES LTD"
"OCC","Direct Services","Y021","04/07/2017","47991406 - 0","13475","Capital","20002435","P A TURNEY LTD"
"OCC","Direct Services","D3338","04/07/2017","47991408 - 0","450","Revenue","20008157","VECTEC LTD"
"OCC","Direct Services","C2003","04/07/2017","47991413 - 1","31533.2","Revenue","20011436","PACE FUEL CARE"
"OCC","Direct Services","D3021","04/07/2017","47991415 - 1","424.48","Revenue","20008002","FREIGHT TRANSPORT ASSOCIATION"
"OCC","Direct Services","D3021","04/07/2017","47991415 - 2","150","Revenue","20008002","FREIGHT TRANSPORT ASSOCIATION"
"OCC","Direct Services","D3021","04/07/2017","47991415 - 3","424.48","Revenue","20008002","FREIGHT TRANSPORT ASSOCIATION"
"OCC","Direct Services","D3021","04/07/2017","47991461 - 0","696.24","Revenue","20002168","DENNIS EAGLE LTD"
"OCC","Direct Services","D3021","04/07/2017","47991461 - 1","140","Revenue","20002168","DENNIS EAGLE LTD"
"OCC","Direct Services","D3021","04/07/2017","47991461 - 2","86","Revenue","20002168","DENNIS EAGLE LTD"
"OCC","Direct Services","D3021","04/07/2017","47991461 - 3","95","Revenue","20002168","DENNIS EAGLE LTD"
"OCC","Direct Services","D3021","04/07/2017","47991461 - 4","39.79","Revenue","20002168","DENNIS EAGLE LTD"
"OCC","Direct Services","D3021","04/07/2017","47991461 - 5","453.43","Revenue","20002168","DENNIS EAGLE LTD"
"OCC","Direct Services","D3021","04/07/2017","47991461 - 6","453.43","Revenue","20002168","DENNIS EAGLE LTD"
"OCC","Direct Services","D3401","11/07/2017","47991464 - 1","2198.51","Revenue","20017042","BANDVULC TRUCK TYRES"
"OCC","Direct Services","D3021","11/07/2017","47991506 - 1","769.12","Revenue","20007959","BRYCO GROUP LTD"
"OCC","Direct Services","D3021","11/07/2017","47991506 - 2","5.97","Revenue","20007959","BRYCO GROUP LTD"
"OCC","Direct Services","D3021","11/07/2017","47991506 - 3","2.22","Revenue","20007959","BRYCO GROUP LTD"
"OCC","Direct Services","D3021","11/07/2017","47991506 - 4","8.06","Revenue","20007959","BRYCO GROUP LTD"
"OCC","Direct Services","D3021","11/07/2017","47991506 - 5","0.42","Revenue","20007959","BRYCO GROUP LTD"
"OCC","Direct Services","D3021","11/07/2017","47991506 - 6","0.72","Revenue","20007959","BRYCO GROUP LTD"
"OCC","Direct Services","D3401","11/07/2017","47991517 - 1","1140","Revenue","20008297","VL TEST SYSTEMS LTD"
"OCC","Direct Services","C2003","11/07/2017","47991527 - 1","7295.78","Revenue","20011436","PACE FUEL CARE"
"OCC","Direct Services","D3021","11/07/2017","47991536 - 0","220","Revenue","20002168","DENNIS EAGLE LTD"
"OCC","Direct Services","D3021","11/07/2017","47991536 - 1","39.79","Revenue","20002168","DENNIS EAGLE LTD"
"OCC","Direct Services","D3021","11/07/2017","47991536 - 2","195","Revenue","20002168","DENNIS EAGLE LTD"
"OCC","Direct Services","D3021","11/07/2017","47991582 - 1","481.8","Revenue","20018857","GROUP TYRE WHOLESALE LTD"
"OCC","Direct Services","D3021","11/07/2017","47991590 - 1","319.93","Revenue","20013677","ALLEN FORD"
"OCC","Direct Services","D3021","11/07/2017","47991590 - 2","70.61","Revenue","20013677","ALLEN FORD"
"OCC","Direct Services","D3021","11/07/2017","47991590 - 3","16.03","Revenue","20013677","ALLEN FORD"
"OCC","Direct Services","D3021","11/07/2017","47991590 - 4","32.76","Revenue","20013677","ALLEN FORD"
"OCC","Direct Services","D3021","11/07/2017","47991590 - 5","8.33","Revenue","20013677","ALLEN FORD"
"OCC","Direct Services","D3021","11/07/2017","47991590 - 6","29.55","Revenue","20013677","ALLEN FORD"
"OCC","Direct Services","D3021","11/07/2017","47991595 - 0","26.88","Revenue","20002033","Green Machines Sweepers UK Ltd"
"OCC","Direct Services","D3021","11/07/2017","47991595 - 1","430.27","Revenue","20002033","Green Machines Sweepers UK Ltd"
"OCC","Direct Services","D3021","11/07/2017","47991595 - 2","15","Revenue","20002033","Green Machines Sweepers UK Ltd"
"OCC","Direct Services","C2002","11/07/2017","47991597 - 0","450","Revenue","20019206","LISTER WILDER LTD"
"OCC","Direct Services","C2002","11/07/2017","47991598 - 1","900","Revenue","20019206","LISTER WILDER LTD"
"OCC","Direct Services","Y021","11/07/2017","47991600 - 1","10360","Capital","20019654","D A HUGHES FORESTRY"
"OCC","Direct Services","C2304","11/07/2017","47991610 - 1","669","Revenue","20006888","NORTHGATE VEHICLE HIRE LTD"
"OCC","Direct Services","C2304","11/07/2017","47991610 - 2","12","Revenue","20006888","NORTHGATE VEHICLE HIRE LTD"
"OCC","Direct Services","C2304","11/07/2017","47991611 - 0","590.4","Revenue","20006888","NORTHGATE VEHICLE HIRE LTD"
"OCC","Direct Services","D3021","18/07/2017","47991615 - 1","756.62","Revenue","20007959","BRYCO GROUP LTD"
"OCC","Direct Services","D3021","18/07/2017","47991615 - 2","12.5","Revenue","20007959","BRYCO GROUP LTD"
"OCC","Direct Services","D3021","18/07/2017","47991616 - 0","816.76","Revenue","20002033","Green Machines Sweepers UK Ltd"
"OCC","Direct Services","D3021","18/07/2017","47991640 - 1","6.62","Revenue","20014255","INCHCAPE"
"OCC","Direct Services","D3021","18/07/2017","47991640 - 2","130.59","Revenue","20014255","INCHCAPE"
"OCC","Direct Services","D3021","18/07/2017","47991640 - 3","27.24","Revenue","20014255","INCHCAPE"
"OCC","Direct Services","D3021","18/07/2017","47991640 - 5","705.81","Revenue","20014255","INCHCAPE"
"OCC","Direct Services","D3021","18/07/2017","47991640 - 6","45.83","Revenue","20014255","INCHCAPE"
"OCC","Direct Services","D3021","18/07/2017","47991640 - 7","5.13","Revenue","20014255","INCHCAPE"
"OCC","Direct Services","D3021","18/07/2017","47991642 - 0","1127","Revenue","20002241","HURLEY INDUSTRIAL CLEANING EQU"
"OCC","Direct Services","D3021","18/07/2017","47991655 - 0","2004.9","Revenue","20002168","DENNIS EAGLE LTD"
"OCC","Direct Services","D3021","18/07/2017","47991656 - 1","195","Revenue","20002168","DENNIS EAGLE LTD"
"OCC","Direct Services","D3021","18/07/2017","47991656 - 2","850","Revenue","20002168","DENNIS EAGLE LTD"
"OCC","Direct Services","D3401","18/07/2017","47991694 - 0","837.63","Revenue","20018111","JOHNSONS APPARELMASTER PLC"
"OCC","Direct Services","D3021","25/07/2017","47991703 - 1","614.61","Revenue","20002033","Green Machines Sweepers UK Ltd"
"OCC","Direct Services","D3021","25/07/2017","47991717 - 0","1002.92","Revenue","20002387","AEBI SCHMIDT UK LTD"
"OCC","Direct Services","C2003","25/07/2017","47991719 - 0","32824.85","Revenue","20011436","PACE FUEL CARE"
"OCC","Direct Services","C2003","25/07/2017","47991721 - 0","1100.88","Revenue","20011436","PACE FUEL CARE"
"OCC","Direct Services","C2003","25/07/2017","47991722 - 0","3200.98","Revenue","20011436","PACE FUEL CARE"
"OCC","Direct Services","C2003","25/07/2017","47991723 - 1","3646.8","Revenue","20011436","PACE FUEL CARE"
"OCC","Direct Services","C2003","25/07/2017","47991724 - 0","1316.77","Revenue","20011436","PACE FUEL CARE"
"OCC","Direct Services","D3021","25/07/2017","47991725 - 1","200","Revenue","20015455","HEATHROW TRUCK  CENTRE LTD"
"OCC","Direct Services","D3021","25/07/2017","47991725 - 2","250","Revenue","20015455","HEATHROW TRUCK  CENTRE LTD"
"OCC","Direct Services","D3021","25/07/2017","47991725 - 3","20","Revenue","20015455","HEATHROW TRUCK  CENTRE LTD"
"OCC","Direct Services","D3021","25/07/2017","47991725 - 4","15","Revenue","20015455","HEATHROW TRUCK  CENTRE LTD"
"OCC","Direct Services","D3021","25/07/2017","47991734 - 0","210","Revenue","20002168","DENNIS EAGLE LTD"
"OCC","Direct Services","D3021","25/07/2017","47991734 - 2","121.25","Revenue","20002168","DENNIS EAGLE LTD"
"OCC","Direct Services","D3021","25/07/2017","47991734 - 3","117","Revenue","20002168","DENNIS EAGLE LTD"
"OCC","Direct Services","D3021","25/07/2017","47991764 - 0","149.58","Revenue","20010430","TERBERG MATEC UK LTD"
"OCC","Direct Services","D3021","25/07/2017","47991764 - 1","44.83","Revenue","20010430","TERBERG MATEC UK LTD"
"OCC","Direct Services","D3021","25/07/2017","47991764 - 2","44.83","Revenue","20010430","TERBERG MATEC UK LTD"
"OCC","Direct Services","D3021","25/07/2017","47991764 - 3","14.5","Revenue","20010430","TERBERG MATEC UK LTD"
"OCC","Direct Services","D3021","25/07/2017","47991764 - 4","227.43","Revenue","20010430","TERBERG MATEC UK LTD"
"OCC","Direct Services","D3401","01/08/2017","47991807 - 0","601.9","Revenue","20007968","IMPERIAL GARAGE EQUIPMENT"
"OCC","Direct Services","D3021","01/08/2017","47991811 - 0","14.5","Revenue","20010430","TERBERG MATEC UK LTD"
"OCC","Direct Services","D3021","01/08/2017","47991811 - 1","807.18","Revenue","20010430","TERBERG MATEC UK LTD"
"OCC","Direct Services","D3021","08/08/2017","47991879 - 0","128.83","Revenue","20002168","DENNIS EAGLE LTD"
"OCC","Direct Services","D3021","08/08/2017","47991879 - 1","58","Revenue","20002168","DENNIS EAGLE LTD"
"OCC","Direct Services","D3021","08/08/2017","47991879 - 2","58","Revenue","20002168","DENNIS EAGLE LTD"
"OCC","Direct Services","D3021","08/08/2017","47991879 - 3","660.37","Revenue","20002168","DENNIS EAGLE LTD"
"OCC","Direct Services","D3021","08/08/2017","47991879 - 4","69.13","Revenue","20002168","DENNIS EAGLE LTD"
"OCC","Direct Services","D3021","08/08/2017","47991879 - 6","6.95","Revenue","20002168","DENNIS EAGLE LTD"
"OCC","Direct Services","D3021","08/08/2017","47991879 - 7","20.35","Revenue","20002168","DENNIS EAGLE LTD"
"OCC","Direct Services","D3021","08/08/2017","47991879 - 8","39.4","Revenue","20002168","DENNIS EAGLE LTD"
"OCC","Direct Services","D3021","08/08/2017","47991879 - 9","121.99","Revenue","20002168","DENNIS EAGLE LTD"
"OCC","Direct Services","D3021","08/08/2017","47991879 - 10","13.69","Revenue","20002168","DENNIS EAGLE LTD"
"OCC","Direct Services","D3021","08/08/2017","47991879 - 11","28.47","Revenue","20002168","DENNIS EAGLE LTD"
"OCC","Direct Services","D3021","08/08/2017","47991879 - 12","114.38","Revenue","20002168","DENNIS EAGLE LTD"
"OCC","Direct Services","D3021","08/08/2017","47991879 - 13","57.44","Revenue","20002168","DENNIS EAGLE LTD"
"OCC","Direct Services","D3021","08/08/2017","47991879 - 14","134.4","Revenue","20002168","DENNIS EAGLE LTD"
"OCC","Direct Services","D3021","08/08/2017","47991879 - 15","12.65","Revenue","20002168","DENNIS EAGLE LTD"
"OCC","Direct Services","D3021","08/08/2017","47991887 - 2","55","Revenue","20007959","BRYCO GROUP LTD"
"OCC","Direct Services","D3021","08/08/2017","47991887 - 3","3316","Revenue","20007959","BRYCO GROUP LTD"
"OCC","Direct Services","D3021","08/08/2017","47991901 - 0","660.56","Revenue","20019207","BEACON GROUP (INTERNATIONAL) LTD T/A ADDEX GROUP"
"OCC","Direct Services","D3021","08/08/2017","47991903 - 0","627","Revenue","20019207","BEACON GROUP (INTERNATIONAL) LTD T/A ADDEX GROUP"
"OCC","Direct Services","D3021","08/08/2017","47991903 - 1","10","Revenue","20019207","BEACON GROUP (INTERNATIONAL) LTD T/A ADDEX GROUP"
"OCC","Direct Services","D3021","08/08/2017","47991907 - 2","446.24","Revenue","20018074","WITNEY SIGNS"
"OCC","Direct Services","D3021","08/08/2017","47991910 - 0","439.23","Revenue","20007940","CORDWALLIS OXFORD LTD"
"OCC","Direct Services","D3021","08/08/2017","47991910 - 1","19.71","Revenue","20007940","CORDWALLIS OXFORD LTD"
"OCC","Direct Services","D3021","08/08/2017","47991910 - 2","15.81","Revenue","20007940","CORDWALLIS OXFORD LTD"
"OCC","Direct Services","D3021","08/08/2017","47991910 - 3","36.92","Revenue","20007940","CORDWALLIS OXFORD LTD"
"OCC","Direct Services","D3021","08/08/2017","47991910 - 4","128.63","Revenue","20007940","CORDWALLIS OXFORD LTD"
"OCC","Direct Services","D3021","08/08/2017","47991910 - 5","27.48","Revenue","20007940","CORDWALLIS OXFORD LTD"
"OCC","Direct Services","D3021","08/08/2017","47991914 - 0","1242.35","Revenue","20002168","DENNIS EAGLE LTD"
"OCC","Direct Services","D3021","08/08/2017","47991927 - 1","39.73","Revenue","20002168","DENNIS EAGLE LTD"
"OCC","Direct Services","D3021","08/08/2017","47991927 - 2","32","Revenue","20002168","DENNIS EAGLE LTD"
"OCC","Direct Services","D3021","08/08/2017","47991927 - 3","33","Revenue","20002168","DENNIS EAGLE LTD"
"OCC","Direct Services","D3021","08/08/2017","47991927 - 4","220","Revenue","20002168","DENNIS EAGLE LTD"
"OCC","Direct Services","D3021","08/08/2017","47991927 - 6","140","Revenue","20002168","DENNIS EAGLE LTD"
"OCC","Direct Services","D3021","08/08/2017","47991932 - 1","926.34","Revenue","20002168","DENNIS EAGLE LTD"
"OCC","Direct Services","D3021","15/08/2017","47991998 - 0","548.99","Revenue","20002033","Green Machines Sweepers UK Ltd"
"OCC","Direct Services","D3021","15/08/2017","47991998 - 1","15","Revenue","20002033","Green Machines Sweepers UK Ltd"
"OCC","Direct Services","D3021","15/08/2017","47992000 - 0","376","Revenue","20017847","N A BROWN LTD"
"OCC","Direct Services","D3021","15/08/2017","47992000 - 1","275","Revenue","20017847","N A BROWN LTD"
"OCC","Direct Services","D3021","15/08/2017","47992000 - 2","117","Revenue","20017847","N A BROWN LTD"
"OCC","Direct Services","D3021","15/08/2017","47992000 - 3","211.5","Revenue","20017847","N A BROWN LTD"
"OCC","Direct Services","D3021","15/08/2017","47992000 - 4","141","Revenue","20017847","N A BROWN LTD"
"OCC","Direct Services","D3021","15/08/2017","47992001 - 1","16.37","Revenue","20002387","AEBI SCHMIDT UK LTD"
"OCC","Direct Services","D3021","15/08/2017","47992001 - 2","1002.92","Revenue","20002387","AEBI SCHMIDT UK LTD"
"OCC","Direct Services","D3021","15/08/2017","47992004 - 0","750","Revenue","20002168","DENNIS EAGLE LTD"
"OCC","Direct Services","D3021","15/08/2017","47992004 - 1","20","Revenue","20002168","DENNIS EAGLE LTD"
"OCC","Direct Services","D3021","15/08/2017","47992018 - 0","753.85","Revenue","20002134","HARTWELL FORD KIDLINGTON"
"OCC","Direct Services","D3021","15/08/2017","47992028 - 0","566.34","Revenue","20007940","CORDWALLIS OXFORD LTD"
"OCC","Direct Services","D3021","15/08/2017","47992028 - 1","69.82","Revenue","20007940","CORDWALLIS OXFORD LTD"
"OCC","Direct Services","D3021","15/08/2017","47992094 - 1","722.2","Revenue","20018111","JOHNSONS APPARELMASTER PLC"
"OCC","Direct Services","D3401","22/08/2017","47992115 - 0","560","Revenue","20007968","IMPERIAL GARAGE EQUIPMENT"
"OCC","Direct Services","D3338","22/08/2017","47992117 - 0","799","Revenue","20007968","IMPERIAL GARAGE EQUIPMENT"
"OCC","Direct Services","D3021","22/08/2017","47992125 - 1","1065.32","Revenue","20002168","DENNIS EAGLE LTD"
"OCC","Direct Services","D3021","22/08/2017","47992125 - 2","250","Revenue","20002168","DENNIS EAGLE LTD"
"OCC","Direct Services","D3021","22/08/2017","47992125 - 3","21.4","Revenue","20002168","DENNIS EAGLE LTD"
"OCC","Direct Services","D3021","22/08/2017","47992125 - 4","6.41","Revenue","20002168","DENNIS EAGLE LTD"
"OCC","Direct Services","D3021","22/08/2017","47992125 - 5","5.05","Revenue","20002168","DENNIS EAGLE LTD"
"OCC","Direct Services","D3021","22/08/2017","47992125 - 6","2.18","Revenue","20002168","DENNIS EAGLE LTD"
"OCC","Direct Services","D3021","22/08/2017","47992136 - 1","940.39","Revenue","20002033","Green Machines Sweepers UK Ltd"
"OCC","Direct Services","D3021","22/08/2017","47992136 - 2","20","Revenue","20002033","Green Machines Sweepers UK Ltd"
"OCC","Direct Services","D3021","22/08/2017","47992174 - 0","390.98","Revenue","20013677","ALLEN FORD"
"OCC","Direct Services","D3021","22/08/2017","47992174 - 1","150","Revenue","20013677","ALLEN FORD"
"OCC","Direct Services","D3021","22/08/2017","47992190 - 0","282","Revenue","20017847","N A BROWN LTD"
"OCC","Direct Services","D3021","22/08/2017","47992190 - 1","156","Revenue","20017847","N A BROWN LTD"
"OCC","Direct Services","D3021","22/08/2017","47992190 - 2","110","Revenue","20017847","N A BROWN LTD"
"OCC","Direct Services","D3021","22/08/2017","47992194 - 0","242.42","Revenue","20002610","JOHNSTON SWEEPERS LTD"
"OCC","Direct Services","D3021","22/08/2017","47992194 - 1","264","Revenue","20002610","JOHNSTON SWEEPERS LTD"
"OCC","Direct Services","D3021","22/08/2017","47992213 - 1","573.86","Revenue","20003127","AMLUC LTD T/AS PIRTEK OXFORD"
"OCC","Direct Services","D3401","30/08/2017","47992219 - 0","3482.25","Revenue","20017042","BANDVULC TRUCK TYRES"
"OCC","Direct Services","D3401","30/08/2017","47992220 - 1","1385","Revenue","20018213","VEHICLE TECHNOLOGY SOLUTIONS LTD"
"OCC","Direct Services","C2002","30/08/2017","47992231 - 0","439","Revenue","20010966","GEO BROWNS IMPLEMENTS LTD"
"OCC","Direct Services","D3021","30/08/2017","47992234 - 1","2724.46","Revenue","20002168","DENNIS EAGLE LTD"
"OCC","Direct Services","C2304","30/08/2017","47992240 - 1","435","Revenue","20012482","OXFORD & DISTRICT BUILDING SERVICES LIMITED"
"OCC","Direct Services","C2304","30/08/2017","47992240 - 2","312","Revenue","20012482","OXFORD & DISTRICT BUILDING SERVICES LIMITED"
"OCC","Direct Services","D3021","30/08/2017","47992252 - 1","312","Revenue","20016740","BOSS PLANT SALES"
"OCC","Direct Services","D3021","30/08/2017","47992252 - 2","208","Revenue","20016740","BOSS PLANT SALES"
"OCC","Direct Services","C2002","30/08/2017","47992253 - 0","440","Revenue","20012358","RT MACHINERY LTD"
"OCC","Direct Services","D3001","30/08/2017","47992254 - 1","438.44","Revenue","20000278","B & M ENGINEERS LIMITED"
"OCC","Direct Services","D3021","30/08/2017","47992256 - 1","540","Revenue","20013535","ARC AGRICULTURAL ENGINEERS LTD"
"OCC","Direct Services","D3031","30/08/2017","47992262 - 1","380","Revenue","20008002","FREIGHT TRANSPORT ASSOCIATION"
"OCC","Direct Services","D3031","30/08/2017","47992262 - 2","72","Revenue","20008002","FREIGHT TRANSPORT ASSOCIATION"
"OCC","Direct Services","C2002","30/08/2017","47992267 - 1","450","Revenue","20002435","P A TURNEY LTD"
"OCC","Direct Services","C2002","30/08/2017","47992271 - 1","1012","Revenue","20002435","P A TURNEY LTD"
"OCC","Direct Services","C2003","30/08/2017","47992272 - 0","32303.35","Revenue","20011436","PACE FUEL CARE"
"OCC","Direct Services","C2003","30/08/2017","47992273 - 1","3870.44","Revenue","20011436","PACE FUEL CARE"
"OCC","Direct Services","C2304","30/08/2017","47992315 - 1","691.3","Revenue","20006888","NORTHGATE VEHICLE HIRE LTD"
"OCC","Direct Services","C2304","30/08/2017","47992322 - 0","432","Revenue","20007929","BUDGET FORKTRUCKS LTD"
"OCC","Direct Services","C2304","30/08/2017","47992322 - 1","65","Revenue","20007929","BUDGET FORKTRUCKS LTD"
"OCC","Direct Services","C2304","30/08/2017","47992322 - 2","32","Revenue","20007929","BUDGET FORKTRUCKS LTD"
"OCC","Direct Services","C2304","30/08/2017","47992323 - 1","552","Revenue","20007929","BUDGET FORKTRUCKS LTD"
"OCC","Direct Services","D3021","30/08/2017","47992324 - 0","31.61","Revenue","20017438","LOCATORS FORKLIFTS & STORAGE SYSTEMS"
"OCC","Direct Services","D3021","30/08/2017","47992324 - 1","348.01","Revenue","20017438","LOCATORS FORKLIFTS & STORAGE SYSTEMS"
"OCC","Direct Services","D3021","30/08/2017","47992324 - 2","45.53","Revenue","20017438","LOCATORS FORKLIFTS & STORAGE SYSTEMS"
"OCC","Direct Services","D3021","30/08/2017","47992324 - 3","15","Revenue","20017438","LOCATORS FORKLIFTS & STORAGE SYSTEMS"
"OCC","Direct Services","C2304","30/08/2017","47992337 - 1","610.08","Revenue","20006888","NORTHGATE VEHICLE HIRE LTD"
"OCC","Direct Services","D3021","05/09/2017","47992349 - 0","4013.21","Revenue","20002435","P A TURNEY LTD"
"OCC","Direct Services","D3021","05/09/2017","47992365 - 1","969.1","Revenue","20016740","BOSS PLANT SALES"
"OCC","Direct Services","D3021","05/09/2017","47992366 - 0","880.9","Revenue","20016740","BOSS PLANT SALES"
"OCC","Direct Services","D3021","05/09/2017","47992369 - 1","33.36","Revenue","20002033","Green Machines Sweepers UK Ltd"
"OCC","Direct Services","D3021","05/09/2017","47992369 - 2","184","Revenue","20002033","Green Machines Sweepers UK Ltd"
"OCC","Direct Services","D3021","05/09/2017","47992369 - 3","21.63","Revenue","20002033","Green Machines Sweepers UK Ltd"
"OCC","Direct Services","D3021","05/09/2017","47992369 - 4","117.71","Revenue","20002033","Green Machines Sweepers UK Ltd"
"OCC","Direct Services","D3021","05/09/2017","47992369 - 5","42.96","Revenue","20002033","Green Machines Sweepers UK Ltd"
"OCC","Direct Services","D3021","05/09/2017","47992369 - 6","61.88","Revenue","20002033","Green Machines Sweepers UK Ltd"
"OCC","Direct Services","D3021","05/09/2017","47992369 - 7","19.82","Revenue","20002033","Green Machines Sweepers UK Ltd"
"OCC","Direct Services","D3021","05/09/2017","47992371 - 1","431.12","Revenue","20007941","VOLVO TRUCK & BUS LIMITED"
"OCC","Direct Services","D3031","05/09/2017","47992377 - 0","606","Revenue","20014043","CMS SUPATRAK LTD"
"OCC","Direct Services","D3031","05/09/2017","47992377 - 1","325","Revenue","20014043","CMS SUPATRAK LTD"
"OCC","Direct Services","D3031","05/09/2017","47992377 - 2","20","Revenue","20014043","CMS SUPATRAK LTD"
"OCC","Direct Services","D3021","05/09/2017","47992413 - 1","258.9","Revenue","20018857","GROUP TYRE WHOLESALE LTD"
"OCC","Direct Services","D3021","05/09/2017","47992413 - 2","335.9","Revenue","20018857","GROUP TYRE WHOLESALE LTD"
"OCC","Direct Services","D3401","12/09/2017","47992424 - 0","5747.23","Revenue","20017042","BANDVULC TRUCK TYRES"
"OCC","Direct Services","D3021","12/09/2017","47992437 - 1","141","Revenue","20017847","N A BROWN LTD"
"OCC","Direct Services","D3021","12/09/2017","47992437 - 2","141","Revenue","20017847","N A BROWN LTD"
"OCC","Direct Services","D3021","12/09/2017","47992437 - 3","78","Revenue","20017847","N A BROWN LTD"
"OCC","Direct Services","D3021","12/09/2017","47992437 - 4","55","Revenue","20017847","N A BROWN LTD"
"OCC","Direct Services","D3021","12/09/2017","47992437 - 5","165","Revenue","20017847","N A BROWN LTD"
"OCC","Direct Services","D3021","12/09/2017","47992439 - 1","690.7","Revenue","20002387","AEBI SCHMIDT UK LTD"
"OCC","Direct Services","D3021","12/09/2017","47992442 - 0","454.83","Revenue","20002610","JOHNSTON SWEEPERS LTD"
"OCC","Direct Services","D3021","12/09/2017","47992442 - 1","10.14","Revenue","20002610","JOHNSTON SWEEPERS LTD"
"OCC","Direct Services","D3021","12/09/2017","47992442 - 2","22.12","Revenue","20002610","JOHNSTON SWEEPERS LTD"
"OCC","Direct Services","D3021","12/09/2017","47992442 - 3","9.44","Revenue","20002610","JOHNSTON SWEEPERS LTD"
"OCC","Direct Services","D3021","12/09/2017","47992445 - 1","617.45","Revenue","20002168","DENNIS EAGLE LTD"
"OCC","Direct Services","D3021","12/09/2017","47992472 - 1","511.44","Revenue","20002387","AEBI SCHMIDT UK LTD"
"OCC","Direct Services","D3021","19/09/2017","47992547 - 1","550","Revenue","20002241","HURLEY INDUSTRIAL CLEANING EQU"
"OCC","Direct Services","D3021","19/09/2017","47992557 - 1","805.92","Revenue","20008216","GROENEVELD UK LTD"
"OCC","Direct Services","D3021","19/09/2017","47992579 - 1","861.36","Revenue","20007968","IMPERIAL GARAGE EQUIPMENT"
"OCC","Direct Services","Y021","19/09/2017","47992582 - 0","11867.83","Capital","20013677","ALLEN FORD"
"OCC","Direct Services","Y021","19/09/2017","47992582 - 1","295","Capital","20013677","ALLEN FORD"
"OCC","Direct Services","Y021","19/09/2017","47992582 - 2","1585","Capital","20013677","ALLEN FORD"
"OCC","Direct Services","C2003","19/09/2017","47992585 - 1","26149.2","Revenue","20011436","PACE FUEL CARE"
"OCC","Direct Services","C2003","19/09/2017","47992586 - 0","1865.6","Revenue","20011436","PACE FUEL CARE"
"OCC","Direct Services","C2003","19/09/2017","47992587 - 1","1863.73","Revenue","20011436","PACE FUEL CARE"
"OCC","Direct Services","C2003","19/09/2017","47992588 - 0","700.99","Revenue","20011436","PACE FUEL CARE"
"OCC","Direct Services","C2003","19/09/2017","47992590 - 0","33197.79","Revenue","20011436","PACE FUEL CARE"
"OCC","Direct Services","D3021","19/09/2017","47992595 - 1","1000","Revenue","20015455","HEATHROW TRUCK  CENTRE LTD"
"OCC","Direct Services","D3021","19/09/2017","47992596 - 0","430","Revenue","20015455","HEATHROW TRUCK  CENTRE LTD"
"OCC","Direct Services","Y021","26/09/2017","47992660 - 1","2164","Capital","20014043","CMS SUPATRAK LTD"
"OCC","Direct Services","D3401","26/09/2017","47992671 - 0","1171","Revenue","20018111","JOHNSONS APPARELMASTER PLC"
"OCC","Direct Services","D3021","26/09/2017","47992688 - 0","165","Revenue","20017847","N A BROWN LTD"
"OCC","Direct Services","D3021","26/09/2017","47992688 - 1","78","Revenue","20017847","N A BROWN LTD"
"OCC","Direct Services","D3021","26/09/2017","47992688 - 2","188","Revenue","20017847","N A BROWN LTD"
"OCC","Direct Services","D3021","26/09/2017","47992699 - 0","3200","Revenue","20015455","HEATHROW TRUCK  CENTRE LTD"
"OCC","Direct Services","D3021","26/09/2017","47992700 - 1","500","Revenue","20015455","HEATHROW TRUCK  CENTRE LTD"
"OCC","Direct Services","D3021","26/09/2017","47992704 - 0","78","Revenue","20002168","DENNIS EAGLE LTD"
"OCC","Direct Services","D3021","26/09/2017","47992704 - 1","156","Revenue","20002168","DENNIS EAGLE LTD"
"OCC","Direct Services","D3021","26/09/2017","47992704 - 2","220","Revenue","20002168","DENNIS EAGLE LTD"
"OCC","Direct Services","D3021","26/09/2017","47992706 - 0","493.43","Revenue","20002168","DENNIS EAGLE LTD"
"OCC","Direct Services","D3021","26/09/2017","47992706 - 1","453.43","Revenue","20002168","DENNIS EAGLE LTD"
"OCC","Direct Services","D3021","26/09/2017","47992750 - 0","465.3","Revenue","20013677","ALLEN FORD"
"OCC","Direct Services","C2202","11/08/2017","48021836 - 1","240","Revenue","20008465","POST OFFICE LTD"
"OCC","Direct Services","C2202","11/08/2017","48021836 - 2","240","Revenue","20008465","POST OFFICE LTD"
"OCC","Direct Services","C2202","11/08/2017","48021836 - 3","240","Revenue","20008465","POST OFFICE LTD"
"OCC","Direct Services","C2202","11/08/2017","48021836 - 4","240","Revenue","20008465","POST OFFICE LTD"
"OCC","Direct Services","C2202","11/08/2017","48021836 - 5","200","Revenue","20008465","POST OFFICE LTD"
"OCC","Direct Services","C2202","11/08/2017","48021836 - 6","135","Revenue","20008465","POST OFFICE LTD"
"OCC","Direct Services","C2202","11/08/2017","48021836 - 7","650","Revenue","20008465","POST OFFICE LTD"
"OCC","Direct Services","C2202","11/08/2017","48021836 - 8","650","Revenue","20008465","POST OFFICE LTD"
"OCC","Direct Services","C2202","11/08/2017","48021836 - 9","240","Revenue","20008465","POST OFFICE LTD"
"OCC","Direct Services","C2202","11/08/2017","48021836 - 10","650","Revenue","20008465","POST OFFICE LTD"
"OCC","Direct Services","C2202","11/08/2017","48021836 - 11","650","Revenue","20008465","POST OFFICE LTD"
"OCC","Direct Services","C2202","11/08/2017","48021836 - 12","165","Revenue","20008465","POST OFFICE LTD"
"OCC","Direct Services","C2202","11/08/2017","48021836 - 13","240","Revenue","20008465","POST OFFICE LTD"
"OCC","Direct Services","C2202","11/08/2017","48021836 - 14","135","Revenue","20008465","POST OFFICE LTD"
"OCC","Direct Services","C2202","11/08/2017","48021836 - 15","240","Revenue","20008465","POST OFFICE LTD"
"OCC","Direct Services","C2202","11/08/2017","48021836 - 16","240","Revenue","20008465","POST OFFICE LTD"
"OCC","Direct Services","C2202","11/08/2017","48021836 - 17","240","Revenue","20008465","POST OFFICE LTD"
"OCC","Direct Services","C2202","11/08/2017","48021836 - 18","240","Revenue","20008465","POST OFFICE LTD"
"OCC","Direct Services","C2202","11/08/2017","48021836 - 19","165","Revenue","20008465","POST OFFICE LTD"
"OCC","Direct Services","C2202","11/08/2017","48021836 - 20","240","Revenue","20008465","POST OFFICE LTD"
"OCC","Direct Services","C2202","11/08/2017","48021836 - 21","240","Revenue","20008465","POST OFFICE LTD"
"OCC","Direct Services","C2202","11/08/2017","48021836 - 22","240","Revenue","20008465","POST OFFICE LTD"
"OCC","Direct Services","C2202","11/08/2017","48021836 - 23","240","Revenue","20008465","POST OFFICE LTD"
"OCC","Direct Services","C2202","11/08/2017","48021836 - 24","240","Revenue","20008465","POST OFFICE LTD"
"OCC","Direct Services","B1015","04/07/2017","60075987 - 1","1195","Revenue","20018881","PREMIER TRAFFIC MANAGEMENT"
"OCC","Direct Services","D3021","04/07/2017","60075988 - 0","2736.75","Revenue","20019381","RAW WORKSHOP (FORMERLY THRIVE OXFORD"
"OCC","Direct Services","D3021","04/07/2017","60075990 - 0","482.04","Revenue","20012799","LAFARGE TARMAC TRADING LIMITED"
"OCC","Direct Services","D3021","04/07/2017","60075991 - 1","1126.32","Revenue","20012799","LAFARGE TARMAC TRADING LIMITED"
"OCC","Direct Services","D3311","04/07/2017","60075995 - 0","733.5","Revenue","20002254","GRAFTON MERCHANTING GB LTD"
"OCC","Direct Services","D3021","04/07/2017","60075999 - 0","3726.54","Revenue","20002254","GRAFTON MERCHANTING GB LTD"
"OCC","Direct Services","D3021","04/07/2017","60076001 - 0","517.82","Revenue","20017252","CHERWELL PACKAGING LTD"
"OCC","Direct Services","D3311","04/07/2017","60076009 - 1","568.21","Revenue","20002464","WOLSELEY UK LIMITED"
"OCC","Direct Services","D3023","04/07/2017","60076016 - 0","436.83","Revenue","20006342","JEWSON LTD"
"OCC","Direct Services","D3311","04/07/2017","60076017 - 2","527.85","Revenue","20006342","JEWSON LTD"
"OCC","Direct Services","D3311","04/07/2017","60076018 - 0","476.87","Revenue","20006342","JEWSON LTD"
"OCC","Direct Services","D3311","04/07/2017","60076019 - 1","594.56","Revenue","20006342","JEWSON LTD"
"OCC","Direct Services","D3021","04/07/2017","60076022 - 1","1055.7","Revenue","20006342","JEWSON LTD"
"OCC","Direct Services","D3311","04/07/2017","60076023 - 0","627.66","Revenue","20006342","JEWSON LTD"
"OCC","Direct Services","D3311","04/07/2017","60076024 - 1","519.15","Revenue","20006342","JEWSON LTD"
"OCC","Direct Services","D3021","04/07/2017","60076026 - 1","495.38","Revenue","20006342","JEWSON LTD"
"OCC","Direct Services","D3021","04/07/2017","60076027 - 0","1698.7","Revenue","20006342","JEWSON LTD"
"OCC","Direct Services","D3021","04/07/2017","60076029 - 0","599.6","Revenue","20006342","JEWSON LTD"
"OCC","Direct Services","D3021","04/07/2017","60076031 - 0","1609.88","Revenue","20006342","JEWSON LTD"
"OCC","Direct Services","D3021","04/07/2017","60076034 - 1","618.96","Revenue","20002254","GRAFTON MERCHANTING GB LTD"
"OCC","Direct Services","D3021","04/07/2017","60076035 - 0","4351.6","Revenue","20002254","GRAFTON MERCHANTING GB LTD"
"OCC","Direct Services","D3021","04/07/2017","60076037 - 1","832.4","Revenue","20017252","CHERWELL PACKAGING LTD"
"OCC","Direct Services","D3311","04/07/2017","60076047 - 0","2990","Revenue","20015370","TIMBERYTE"
"OCC","Direct Services","D3311","04/07/2017","60076051 - 0","668.77","Revenue","20002464","WOLSELEY UK LIMITED"
"OCC","Direct Services","D3311","04/07/2017","60076052 - 0","584","Revenue","20002464","WOLSELEY UK LIMITED"
"OCC","Direct Services","D3311","04/07/2017","60076053 - 1","651.15","Revenue","20002464","WOLSELEY UK LIMITED"
"OCC","Direct Services","D3311","04/07/2017","60076054 - 0","644.56","Revenue","20002464","WOLSELEY UK LIMITED"
"OCC","Direct Services","D3311","04/07/2017","60076055 - 1","625.72","Revenue","20002464","WOLSELEY UK LIMITED"
"OCC","Direct Services","D3311","04/07/2017","60076056 - 0","555.18","Revenue","20002464","WOLSELEY UK LIMITED"
"OCC","Direct Services","D3311","04/07/2017","60076057 - 1","657.64","Revenue","20006342","JEWSON LTD"
"OCC","Direct Services","B1111","04/07/2017","60076058 - 0","4560","Revenue","20000441","1ST CHOICE SCAFFOLDING (OXFORD) LTD"
"OCC","Direct Services","B1111","04/07/2017","60076062 - 0","660","Revenue","20000441","1ST CHOICE SCAFFOLDING (OXFORD) LTD"
"OCC","Direct Services","B1111","04/07/2017","60076064 - 0","860","Revenue","20000441","1ST CHOICE SCAFFOLDING (OXFORD) LTD"
"OCC","Direct Services","B1111","04/07/2017","60076096 - 0","6500","Revenue","20000258","L A WOOD (OXON) LTD"
"OCC","Direct Services","B1111","04/07/2017","60076100 - 0","824.85","Revenue","20015366","SGN CONNECTIONS PLC"
"OCC","Direct Services","B1111","04/07/2017","60076101 - 1","2746","Revenue","20011787","WESTLAKE ASPHALT COMPANY LTD"
"OCC","Direct Services","B1111","04/07/2017","60076104 - 0","450","Revenue","20009825","MAYLARCH ENVIRONMENTAL LTD"
"OCC","Direct Services","B1111","04/07/2017","60076105 - 1","3959","Revenue","20013257","CITY INSULATION CONTRACTORS LIMITED"
"OCC","Direct Services","D3319","04/07/2017","60076113 - 1","619.15","Revenue","20012482","OXFORD & DISTRICT BUILDING SERVICES LIMITED"
"OCC","Direct Services","D3319","04/07/2017","60076114 - 0","2008.6","Revenue","20012482","OXFORD & DISTRICT BUILDING SERVICES LIMITED"
"OCC","Direct Services","D3319","04/07/2017","60076115 - 1","4031.6","Revenue","20012482","OXFORD & DISTRICT BUILDING SERVICES LIMITED"
"OCC","Direct Services","D3319","04/07/2017","60076116 - 0","547.49","Revenue","20012482","OXFORD & DISTRICT BUILDING SERVICES LIMITED"
"OCC","Direct Services","D3319","04/07/2017","60076117 - 1","2567.25","Revenue","20012482","OXFORD & DISTRICT BUILDING SERVICES LIMITED"
"OCC","Direct Services","D3319","04/07/2017","60076118 - 0","1367.5","Revenue","20012482","OXFORD & DISTRICT BUILDING SERVICES LIMITED"
"OCC","Direct Services","D3319","04/07/2017","60076119 - 1","1852.6","Revenue","20012482","OXFORD & DISTRICT BUILDING SERVICES LIMITED"
"OCC","Direct Services","A0108","04/07/2017","60076120 - 0","644.8","Revenue","20012482","OXFORD & DISTRICT BUILDING SERVICES LIMITED"
"OCC","Direct Services","A0108","04/07/2017","60076121 - 1","886.6","Revenue","20012482","OXFORD & DISTRICT BUILDING SERVICES LIMITED"
"OCC","Direct Services","A0108","04/07/2017","60076123 - 1","1209","Revenue","20012482","OXFORD & DISTRICT BUILDING SERVICES LIMITED"
"OCC","Direct Services","A0108","04/07/2017","60076124 - 0","564.2","Revenue","20012482","OXFORD & DISTRICT BUILDING SERVICES LIMITED"
"OCC","Direct Services","D3401","04/07/2017","60076127 - 1","700","Revenue","20011742","CHARLTON ENVIRONMENTAL LIMITED"
"OCC","Direct Services","B1111","04/07/2017","60076128 - 0","20650","Revenue","20012692","FREECHOICE GROUP"
"OCC","Direct Services","B1111","04/07/2017","60076129 - 1","14970","Revenue","20014739","MULTI-FLOORS LIMITED"
"OCC","Direct Services","D3339","04/07/2017","60076131 - 1","952.38","Revenue","20009260","GLASDON UK LTD"
"OCC","Direct Services","D3021","04/07/2017","60076132 - 0","1252.68","Revenue","20012799","LAFARGE TARMAC TRADING LIMITED"
"OCC","Direct Services","D3021","04/07/2017","60076133 - 1","959.4","Revenue","20012799","LAFARGE TARMAC TRADING LIMITED"
"OCC","Direct Services","D3021","04/07/2017","60076134 - 0","834.6","Revenue","20012799","LAFARGE TARMAC TRADING LIMITED"
"OCC","Direct Services","D3004","04/07/2017","60076137 - 1","2088.18","Revenue","20008146","EGBERT H TAYLOR & CO LTD"
"OCC","Direct Services","D3021","11/07/2017","60076145 - 0","550.88","Revenue","20005720","CAPITOL TILE SUPPLIES LTD"
"OCC","Direct Services","D3311","11/07/2017","60076146 - 1","456.62","Revenue","20009535","CCF LTD"
"OCC","Direct Services","D3021","11/07/2017","60076147 - 0","717.1","Revenue","20002254","GRAFTON MERCHANTING GB LTD"
"OCC","Direct Services","D3311","11/07/2017","60076149 - 0","2226.16","Revenue","20002254","GRAFTON MERCHANTING GB LTD"
"OCC","Direct Services","D3021","11/07/2017","60076151 - 0","1212","Revenue","20002254","GRAFTON MERCHANTING GB LTD"
"OCC","Direct Services","D3021","11/07/2017","60076155 - 0","657.96","Revenue","20010401","HILTI (GT. BRITAIN) LIMITED"
"OCC","Direct Services","D3021","11/07/2017","60076158 - 1","610.79","Revenue","20006089","ICI CONTRACT DIRECT"
"OCC","Direct Services","D3021","11/07/2017","60076168 - 0","4488","Revenue","20006342","JEWSON LTD"
"OCC","Direct Services","D3311","11/07/2017","60076172 - 0","615.9","Revenue","20006342","JEWSON LTD"
"OCC","Direct Services","D3311","11/07/2017","60076174 - 0","584.48","Revenue","20006342","JEWSON LTD"
"OCC","Direct Services","D3021","11/07/2017","60076175 - 1","839.25","Revenue","20006342","JEWSON LTD"
"OCC","Direct Services","D3021","11/07/2017","60076176 - 0","2896.64","Revenue","20006342","JEWSON LTD"
"OCC","Direct Services","D3021","11/07/2017","60076177 - 1","1274.7","Revenue","20006342","JEWSON LTD"
"OCC","Direct Services","D3021","11/07/2017","60076180 - 0","471.9","Revenue","20002679","LOCKS & LATCHES (STAFFORD) LTD"
"OCC","Direct Services","D3021","11/07/2017","60076183 - 1","512.4","Revenue","20002680","OXFORD SAFETY SUPPLIES"
"OCC","Direct Services","D3021","11/07/2017","60076184 - 0","773.25","Revenue","20002680","OXFORD SAFETY SUPPLIES"
"OCC","Direct Services","D3021","11/07/2017","60076185 - 1","632","Revenue","20002680","OXFORD SAFETY SUPPLIES"
"OCC","Direct Services","D3420","11/07/2017","60076191 - 0","460","Revenue","20002279","M & M SKIP HIRE LTD"
"OCC","Direct Services","D3021","11/07/2017","60076193 - 1","2242.5","Revenue","20015370","TIMBERYTE"
"OCC","Direct Services","D3023","11/07/2017","60076201 - 0","505","Revenue","20002443","UNIVERSAL ACCESS & POWER PLAN"
"OCC","Direct Services","D3311","11/07/2017","60076214 - 1","568.43","Revenue","20002464","WOLSELEY UK LIMITED"
"OCC","Direct Services","D3311","11/07/2017","60076216 - 0","687.77","Revenue","20002464","WOLSELEY UK LIMITED"
"OCC","Direct Services","D3311","11/07/2017","60076218 - 0","729.29","Revenue","20002464","WOLSELEY UK LIMITED"
"OCC","Direct Services","D3311","11/07/2017","60076219 - 1","676.81","Revenue","20002464","WOLSELEY UK LIMITED"
"OCC","Direct Services","D3311","11/07/2017","60076220 - 0","592.98","Revenue","20002464","WOLSELEY UK LIMITED"
"OCC","Direct Services","D3311","11/07/2017","60076223 - 1","676.81","Revenue","20002464","WOLSELEY UK LIMITED"
